Transaction date,Beneficiary ID,Beneficiary Name,Purpose of Expenditure,Local Authority Department that incurred Expenditure,Amount
09/10/2020,1249077,The Advocacy Project,Hired and Contracted Services,ASC Procurement and Business Intelligenc,"51,294.00"
27/11/2020,1248618,Riverside Echg,Payments to Voluntary bodies,ASC Procurement and Business Intelligenc,"31,500.00"
04/12/2020,1271748,ADASS,Professional Subscriptions,Adult Social Care Finance and Resources,"1,860.00"
04/12/2020,1271748,ADASS,Professional Subscriptions,Adult Social Care Finance and Resources,"1,615.00"
03/12/2020,1252498,PERSONAL PAYMENTS,Legal Costs,Adult Social Care Finance and Resources,"1,902.50"
31/12/2020,D000000016,PERSONAL PAYMENTS,Legal Costs,Adult Social Care Finance and Resources,"10,646.92"
20/11/2020,1273976,PERSONAL PAYMENTS,Hired and Contracted Services,Adult Social Care Finance and Resources,"1,535.33"
19/11/2020,1255811,Paragon Group UK LTD,Printing,Adult Social Care Finance and Resources,"22,101.50"
16/10/2020,1245228,Pohwer,Hired and Contracted Services,Adult Social Care Finance and Resources,"5,176.02"
04/12/2020,1245228,Pohwer,Hired and Contracted Services,Adult Social Care Finance and Resources,"2,823.00"
04/12/2020,1245228,Pohwer,Hired and Contracted Services,Adult Social Care Finance and Resources,"2,823.00"
04/12/2020,1245228,Pohwer,Hired and Contracted Services,Adult Social Care Finance and Resources,"2,823.00"
04/12/2020,1245228,Pohwer,Hired and Contracted Services,Adult Social Care Finance and Resources,"2,823.00"
04/12/2020,1245228,Pohwer,Hired and Contracted Services,Adult Social Care Finance and Resources,"2,823.00"
04/12/2020,1245228,Pohwer,Hired and Contracted Services,Adult Social Care Finance and Resources,"2,823.00"
30/12/2020,1245228,Pohwer,Hired and Contracted Services,Adult Social Care Finance and Resources,"1,540.00"
30/12/2020,1245228,Pohwer,Hired and Contracted Services,Adult Social Care Finance and Resources,"1,520.00"
13/11/2020,1245693,London Borough Of Hammersmith &,B*Adult Education Grant,Adult Social Care Finance and Resources,"66,033.00"
10/11/2020,1251196,Royal Borough of Kensington and,B*Adult Education Grant,Adult Social Care Finance and Resources,"88,929.01"
10/11/2020,1251196,Royal Borough of Kensington and,B*Adult Education Grant,Adult Social Care Finance and Resources,"418,753.00"
07/12/2020,1245982,Anchor Trust,Hired and Contracted Services,Adult Social Care Operations,"14,867.98"
07/12/2020,1243931,Ashbourne Healthcare Services,Hired and Contracted Services,Adult Social Care Operations,"2,301.80"
27/11/2020,1245091,Care UK Community Partnerships Ltd,Hired and Contracted Services,Adult Social Care Operations,"45,682.00"
07/12/2020,1245091,Care UK Community Partnerships Ltd,Hired and Contracted Services,Adult Social Care Operations,"42,002.05"
07/12/2020,1268176,Conquest Care and Support,Hired and Contracted Services,Adult Social Care Operations,767.27
07/12/2020,1273817,GCH Alan Morkill House Ltd,Hired and Contracted Services,Adult Social Care Operations,"31,222.76"
07/12/2020,1244556,Homecare Alliance Ltd,Hired and Contracted Services,Adult Social Care Operations,"1,534.53"
07/12/2020,1254857,Hope Care Agency,Hired and Contracted Services,Adult Social Care Operations,"1,918.17"
07/12/2020,1256893,Kapital Care WCC,Hired and Contracted Services,Adult Social Care Operations,"3,964.21"
08/12/2020,1247650,London Care Ltd,Hired and Contracted Services,Adult Social Care Operations,"26,953.67"
07/12/2020,1259132,MMR Home Care LTD,Hired and Contracted Services,Adult Social Care Operations,"8,056.30"
18/12/2020,1266168,Midshire Care LTD,Hired and Contracted Services,Adult Social Care Operations,"2,614.91"
11/12/2020,1243783,NHS West London Ccg,Other Expenses,Adult Social Care Operations,"4,000.00"
08/12/2020,1274153,Notting Hill Genesis,Hired and Contracted Services,Adult Social Care Operations,"8,247.02"
07/12/2020,1244971,Octavia Housing (Main Account),Hired and Contracted Services,Adult Social Care Operations,"5,229.82"
07/12/2020,1268191,Prime Way Care Ltd London,Hired and Contracted Services,Adult Social Care Operations,"1,790.29"
07/12/2020,1248541,Priory Nursing Agency & Home Care,Hired and Contracted Services,Adult Social Care Operations,"2,173.92"
07/12/2020,1245316,Respect Care Services Ltd,Hired and Contracted Services,Adult Social Care Operations,"19,948.93"
07/12/2020,1248843,Sage Care Ltd,Hired and Contracted Services,Adult Social Care Operations,"18,925.91"
07/12/2020,1243532,Sanctuary Care Ltd,Hired and Contracted Services,Adult Social Care Operations,"14,867.98"
07/12/2020,1243532,Sanctuary Care Ltd,Hired and Contracted Services,Adult Social Care Operations,"15,611.38"
07/12/2020,1243532,Sanctuary Care Ltd,Hired and Contracted Services,Adult Social Care Operations,"8,549.09"
07/12/2020,1248878,Sevacare (Uk) Ltd,Hired and Contracted Services,Adult Social Care Operations,"1,150.90"
07/12/2020,1248913,Smithfield Health & Social Care,Hired and Contracted Services,Adult Social Care Operations,"2,173.92"
18/12/2020,1243548,St Georges Nursing Home Ltd,Hired and Contracted Services,Adult Social Care Operations,"16,354.78"
07/12/2020,1245182,Supporting Care Ltd,Hired and Contracted Services,Adult Social Care Operations,"1,023.02"
07/12/2020,1245825,Sweet Tree Home Care Services,Hired and Contracted Services,Adult Social Care Operations,"1,150.90"
08/12/2020,1249232,Vincentian Care Plus,Hired and Contracted Services,Adult Social Care Operations,"34,194.95"
07/12/2020,1249291,Westminster Society,Hired and Contracted Services,Adult Social Care Operations,"1,115.10"
07/12/2020,1249291,Westminster Society,Hired and Contracted Services,Adult Social Care Operations,"1,858.50"
07/12/2020,1249291,Westminster Society,Hired and Contracted Services,Adult Social Care Operations,"1,858.50"
07/12/2020,1249291,Westminster Society,Hired and Contracted Services,Adult Social Care Operations,"1,486.80"
07/12/2020,1249291,Westminster Society,Hired and Contracted Services,Adult Social Care Operations,"1,486.80"
08/12/2020,1249291,Westminster Society,Hired and Contracted Services,Adult Social Care Operations,"21,925.00"
18/12/2020,1243566,Yarrow Housing Ltd,Hired and Contracted Services,Adult Social Care Operations,"2,230.20"
08/12/2020,1249317,Zocalo Ltd T/as Bluebird Care,Hired and Contracted Services,Adult Social Care Operations,"11,264.22"
19/10/2020,1244309,Doro Care Ltd,###,Bi-Borough Director of Integrated Care,"3,780.00"
22/10/2020,1244309,Doro Care Ltd,###,Bi-Borough Director of Integrated Care,700.00
22/10/2020,1244309,Doro Care Ltd,###,Bi-Borough Director of Integrated Care,"5,670.00"
04/11/2020,1244309,Doro Care Ltd,###,Bi-Borough Director of Integrated Care,700.00
04/12/2020,1244309,Doro Care Ltd,###,Bi-Borough Director of Integrated Care,744.00
14/12/2020,1244309,Doro Care Ltd,###,Bi-Borough Director of Integrated Care,"3,780.00"
31/12/2020,1244309,Doro Care Ltd,###,Bi-Borough Director of Integrated Care,"9,450.00"
12/10/2020,1246138,Tunstall Healthcare (UK) Ltd (Use,###,Bi-Borough Director of Integrated Care,"4,950.00"
20/11/2020,1246138,Tunstall Healthcare (UK) Ltd (Use,###,Bi-Borough Director of Integrated Care,"1,105.00"
20/11/2020,1246138,Tunstall Healthcare (UK) Ltd (Use,###,Bi-Borough Director of Integrated Care,816.00
20/11/2020,1246138,Tunstall Healthcare (UK) Ltd (Use,###,Bi-Borough Director of Integrated Care,600.00
20/11/2020,1246138,Tunstall Healthcare (UK) Ltd (Use,###,Bi-Borough Director of Integrated Care,"1,400.00"
20/11/2020,1246138,Tunstall Healthcare (UK) Ltd (Use,###,Bi-Borough Director of Integrated Care,750.00
15/10/2020,1256112,Worcestershire Telecare Ltd,Hired and Contracted Services,Bi-Borough Director of Integrated Care,"5,989.50"
03/12/2020,1256112,Worcestershire Telecare Ltd,Hired and Contracted Services,Bi-Borough Director of Integrated Care,"4,821.96"
15/12/2020,1256112,Worcestershire Telecare Ltd,Hired and Contracted Services,Bi-Borough Director of Integrated Care,"5,927.89"
03/11/2020,1263854,Maria Takaendisa Consultancy Ltd,Training related expenditure,Bi-Borough Director of Integrated Care,"3,000.00"
23/10/2020,1246243,Blazie Engineering Ltd,IT Software,Bi-Borough Director of Integrated Care,"2,566.00"
14/10/2020,1271174,ASPECTS 2 LIMITED,,Bi-Borough Director of Integrated Care,"8,234.40"
11/11/2020,1271174,ASPECTS 2 LIMITED,,Bi-Borough Director of Integrated Care,"8,234.40"
09/12/2020,1271174,ASPECTS 2 LIMITED,,Bi-Borough Director of Integrated Care,"8,234.40"
14/10/2020,1243851,Accomplish Group Ltd,,Bi-Borough Director of Integrated Care,"8,877.40"
14/10/2020,1243851,Accomplish Group Ltd,,Bi-Borough Director of Integrated Care,"8,877.40"
14/10/2020,1243851,Accomplish Group Ltd,,Bi-Borough Director of Integrated Care,"6,748.80"
11/11/2020,1243851,Accomplish Group Ltd,,Bi-Borough Director of Integrated Care,"8,877.40"
11/11/2020,1243851,Accomplish Group Ltd,,Bi-Borough Director of Integrated Care,"8,877.40"
11/11/2020,1243851,Accomplish Group Ltd,,Bi-Borough Director of Integrated Care,"6,748.80"
09/12/2020,1243851,Accomplish Group Ltd,,Bi-Borough Director of Integrated Care,"8,877.40"
09/12/2020,1243851,Accomplish Group Ltd,,Bi-Borough Director of Integrated Care,"8,877.40"
09/12/2020,1243851,Accomplish Group Ltd,,Bi-Borough Director of Integrated Care,"6,748.80"
14/10/2020,1243435,Acorn Village,,Bi-Borough Director of Integrated Care,"5,221.08"
11/11/2020,1243435,Acorn Village,,Bi-Borough Director of Integrated Care,"5,221.08"
09/12/2020,1243435,Acorn Village,,Bi-Borough Director of Integrated Care,"5,221.08"
14/10/2020,1243942,Aspens Charities,,Bi-Borough Director of Integrated Care,"5,445.92"
11/11/2020,1243942,Aspens Charities,,Bi-Borough Director of Integrated Care,"5,445.92"
09/12/2020,1243942,Aspens Charities,,Bi-Borough Director of Integrated Care,"5,445.92"
14/10/2020,1243961,Autism Anglia,,Bi-Borough Director of Integrated Care,"10,644.00"
11/11/2020,1243961,Autism Anglia,,Bi-Borough Director of Integrated Care,"10,644.00"
09/12/2020,1243961,Autism Anglia,,Bi-Borough Director of Integrated Care,"10,644.00"
14/10/2020,1243962,Autism London,,Bi-Borough Director of Integrated Care,685.52
14/10/2020,1243962,Autism London,,Bi-Borough Director of Integrated Care,"4,812.00"
11/11/2020,1243962,Autism London,,Bi-Borough Director of Integrated Care,"4,812.00"
11/11/2020,1243962,Autism London,,Bi-Borough Director of Integrated Care,685.52
09/12/2020,1243962,Autism London,,Bi-Borough Director of Integrated Care,685.52
09/12/2020,1243962,Autism London,,Bi-Borough Director of Integrated Care,"4,812.00"
06/11/2020,1246066,Barrie Bookkeeping & Payroll,B*Junior group rec activities,Bi-Borough Director of Integrated Care,"2,308.45"
14/10/2020,1245084,Beau Sejour Residential Care Home,,Bi-Borough Director of Integrated Care,"4,632.00"
14/10/2020,1245084,Beau Sejour Residential Care Home,,Bi-Borough Director of Integrated Care,"1,768.36"
11/11/2020,1245084,Beau Sejour Residential Care Home,,Bi-Borough Director of Integrated Care,"1,768.36"
11/11/2020,1245084,Beau Sejour Residential Care Home,,Bi-Borough Director of Integrated Care,"4,632.00"
09/12/2020,1245084,Beau Sejour Residential Care Home,,Bi-Borough Director of Integrated Care,"3,599.67"
09/12/2020,1245084,Beau Sejour Residential Care Home,,Bi-Borough Director of Integrated Care,"1,136.80"
14/10/2020,1243444,Broadham Care Ltd,,Bi-Borough Director of Integrated Care,"1,400.00"
14/10/2020,1243444,Broadham Care Ltd,,Bi-Borough Director of Integrated Care,"6,200.00"
11/11/2020,1243444,Broadham Care Ltd,,Bi-Borough Director of Integrated Care,"6,200.00"
11/11/2020,1243444,Broadham Care Ltd,,Bi-Borough Director of Integrated Care,"1,400.00"
09/12/2020,1243444,Broadham Care Ltd,,Bi-Borough Director of Integrated Care,"6,200.00"
09/12/2020,1243444,Broadham Care Ltd,,Bi-Borough Director of Integrated Care,"1,400.00"
14/10/2020,1243445,Broadstreet House Limited,,Bi-Borough Director of Integrated Care,"4,096.00"
11/11/2020,1243445,Broadstreet House Limited,,Bi-Borough Director of Integrated Care,"4,096.00"
09/12/2020,1243445,Broadstreet House Limited,,Bi-Borough Director of Integrated Care,"4,096.00"
14/10/2020,1246286,Brunswick Supported Living,,Bi-Borough Director of Integrated Care,"2,629.28"
11/11/2020,1246286,Brunswick Supported Living,,Bi-Borough Director of Integrated Care,"2,629.28"
09/12/2020,1246286,Brunswick Supported Living,,Bi-Borough Director of Integrated Care,"2,629.28"
16/12/2020,1273390,CHILTERN SUPPORT & HOUSING LTD,,Bi-Borough Director of Integrated Care,"94,598.40"
14/10/2020,1244092,Cambrian Learning Disabilities Ltd,,Bi-Borough Director of Integrated Care,"5,690.00"
11/11/2020,1244092,Cambrian Learning Disabilities Ltd,,Bi-Borough Director of Integrated Care,"5,690.00"
09/12/2020,1244092,Cambrian Learning Disabilities Ltd,,Bi-Borough Director of Integrated Care,"5,690.00"
03/11/2020,1243795,Cambs & Peterborough Mental,B*Voluntary-Spot-V Dep-Enhanced - do not u,Bi-Borough Director of Integrated Care,568.14
03/11/2020,1243795,Cambs & Peterborough Mental,B*Voluntary-Spot-V Dep-Enhanced - do not u,Bi-Borough Director of Integrated Care,568.14
20/11/2020,1243795,Cambs & Peterborough Mental,B*Voluntary-Spot-V Dep-Enhanced - do not u,Bi-Borough Director of Integrated Care,"1,136.28"
11/12/2020,1243795,Cambs & Peterborough Mental,B*Voluntary-Spot-V Dep-Enhanced - do not u,Bi-Borough Director of Integrated Care,568.14
14/10/2020,1246321,Camphill Village Trust,,Bi-Borough Director of Integrated Care,"3,981.08"
11/11/2020,1246321,Camphill Village Trust,,Bi-Borough Director of Integrated Care,"3,981.08"
09/12/2020,1246321,Camphill Village Trust,,Bi-Borough Director of Integrated Care,"3,981.08"
14/10/2020,1246324,Candour Care Services (Broadview),,Bi-Borough Director of Integrated Care,"7,434.92"
11/11/2020,1246324,Candour Care Services (Broadview),,Bi-Borough Director of Integrated Care,"7,434.92"
09/12/2020,1246324,Candour Care Services (Broadview),,Bi-Borough Director of Integrated Care,"7,434.92"
14/10/2020,1246327,Canterbury Oast Trust Ltd,,Bi-Borough Director of Integrated Care,"1,998.00"
11/11/2020,1246327,Canterbury Oast Trust Ltd,,Bi-Borough Director of Integrated Care,"1,444.50"
09/12/2020,1246327,Canterbury Oast Trust Ltd,,Bi-Borough Director of Integrated Care,"1,260.00"
11/11/2020,1259100,Care Assist Limited,,Bi-Borough Director of Integrated Care,"14,571.80"
09/12/2020,1259100,Care Assist Limited,,Bi-Borough Director of Integrated Care,"7,761.60"
14/10/2020,1246339,Caretech Community Services Ltd,,Bi-Borough Director of Integrated Care,"5,379.96"
14/10/2020,1246339,Caretech Community Services Ltd,,Bi-Borough Director of Integrated Care,987.40
14/10/2020,1246339,Caretech Community Services Ltd,,Bi-Borough Director of Integrated Care,"1,325.00"
14/10/2020,1246339,Caretech Community Services Ltd,,Bi-Borough Director of Integrated Care,"5,379.96"
14/10/2020,1246339,Caretech Community Services Ltd,,Bi-Borough Director of Integrated Care,"4,331.80"
14/10/2020,1246339,Caretech Community Services Ltd,,Bi-Borough Director of Integrated Care,"4,331.84"
11/11/2020,1246339,Caretech Community Services Ltd,,Bi-Borough Director of Integrated Care,"1,325.00"
11/11/2020,1246339,Caretech Community Services Ltd,,Bi-Borough Director of Integrated Care,"5,379.96"
11/11/2020,1246339,Caretech Community Services Ltd,,Bi-Borough Director of Integrated Care,"4,331.84"
11/11/2020,1246339,Caretech Community Services Ltd,,Bi-Borough Director of Integrated Care,"4,331.80"
11/11/2020,1246339,Caretech Community Services Ltd,,Bi-Borough Director of Integrated Care,"5,379.96"
11/11/2020,1246339,Caretech Community Services Ltd,,Bi-Borough Director of Integrated Care,987.40
09/12/2020,1246339,Caretech Community Services Ltd,,Bi-Borough Director of Integrated Care,"4,331.80"
09/12/2020,1246339,Caretech Community Services Ltd,,Bi-Borough Director of Integrated Care,"4,331.84"
09/12/2020,1246339,Caretech Community Services Ltd,,Bi-Borough Director of Integrated Care,"5,379.96"
09/12/2020,1246339,Caretech Community Services Ltd,,Bi-Borough Director of Integrated Care,987.40
09/12/2020,1246339,Caretech Community Services Ltd,,Bi-Borough Director of Integrated Care,"5,379.96"
09/12/2020,1246339,Caretech Community Services Ltd,,Bi-Borough Director of Integrated Care,"1,325.00"
05/10/2020,1246364,Central Recruitment Services Ltd,B*Voluntary-Spot-V Dep-Enhanced - do not u,Bi-Borough Director of Integrated Care,"1,872.00"
03/11/2020,1246364,Central Recruitment Services Ltd,B*Voluntary-Spot-V Dep-Enhanced - do not u,Bi-Borough Director of Integrated Care,"1,872.00"
14/10/2020,1244167,Choice Support,,Bi-Borough Director of Integrated Care,"8,936.00"
11/11/2020,1244167,Choice Support,,Bi-Borough Director of Integrated Care,"8,936.00"
09/12/2020,1244167,Choice Support,,Bi-Borough Director of Integrated Care,"8,936.00"
14/10/2020,1243457,Cmg Homes Ltd - The Care House,,Bi-Borough Director of Integrated Care,"6,222.20"
14/10/2020,1243457,Cmg Homes Ltd - The Care House,,Bi-Borough Director of Integrated Care,"9,292.60"
11/11/2020,1243457,Cmg Homes Ltd - The Care House,,Bi-Borough Director of Integrated Care,"6,222.20"
11/11/2020,1243457,Cmg Homes Ltd - The Care House,,Bi-Borough Director of Integrated Care,"9,292.60"
09/12/2020,1243457,Cmg Homes Ltd - The Care House,,Bi-Borough Director of Integrated Care,"6,222.20"
09/12/2020,1243457,Cmg Homes Ltd - The Care House,,Bi-Borough Director of Integrated Care,"9,292.60"
14/10/2020,1243458,Cocklebury Farmhouse Homes Ltd,,Bi-Borough Director of Integrated Care,"5,536.00"
14/10/2020,1243458,Cocklebury Farmhouse Homes Ltd,,Bi-Borough Director of Integrated Care,"5,568.00"
14/10/2020,1243458,Cocklebury Farmhouse Homes Ltd,,Bi-Borough Director of Integrated Care,"4,952.00"
14/10/2020,1243458,Cocklebury Farmhouse Homes Ltd,,Bi-Borough Director of Integrated Care,"6,408.00"
14/10/2020,1243458,Cocklebury Farmhouse Homes Ltd,,Bi-Borough Director of Integrated Care,"7,028.00"
11/11/2020,1243458,Cocklebury Farmhouse Homes Ltd,,Bi-Borough Director of Integrated Care,"6,408.00"
11/11/2020,1243458,Cocklebury Farmhouse Homes Ltd,,Bi-Borough Director of Integrated Care,"7,028.00"
11/11/2020,1243458,Cocklebury Farmhouse Homes Ltd,,Bi-Borough Director of Integrated Care,"5,568.00"
11/11/2020,1243458,Cocklebury Farmhouse Homes Ltd,,Bi-Borough Director of Integrated Care,"5,536.00"
11/11/2020,1243458,Cocklebury Farmhouse Homes Ltd,,Bi-Borough Director of Integrated Care,"4,952.00"
09/12/2020,1243458,Cocklebury Farmhouse Homes Ltd,,Bi-Borough Director of Integrated Care,"6,408.00"
09/12/2020,1243458,Cocklebury Farmhouse Homes Ltd,,Bi-Borough Director of Integrated Care,"7,028.00"
09/12/2020,1243458,Cocklebury Farmhouse Homes Ltd,,Bi-Borough Director of Integrated Care,"4,952.00"
09/12/2020,1243458,Cocklebury Farmhouse Homes Ltd,,Bi-Borough Director of Integrated Care,"5,536.00"
09/12/2020,1243458,Cocklebury Farmhouse Homes Ltd,,Bi-Borough Director of Integrated Care,"5,568.00"
14/10/2020,1244212,PERSONAL PAYMENTS,,Bi-Borough Director of Integrated Care,"3,320.00"
14/10/2020,1244212,PERSONAL PAYMENTS,,Bi-Borough Director of Integrated Care,"5,950.00"
14/10/2020,1244212,PERSONAL PAYMENTS,,Bi-Borough Director of Integrated Care,"4,820.00"
11/11/2020,1244212,PERSONAL PAYMENTS,,Bi-Borough Director of Integrated Care,"4,820.00"
11/11/2020,1244212,PERSONAL PAYMENTS,,Bi-Borough Director of Integrated Care,"3,320.00"
09/12/2020,1244212,PERSONAL PAYMENTS,,Bi-Borough Director of Integrated Care,"3,320.00"
09/12/2020,1244212,PERSONAL PAYMENTS,,Bi-Borough Director of Integrated Care,"4,820.00"
14/10/2020,1243470,Downing (Chertsey Road) Ltd,,Bi-Borough Director of Integrated Care,"5,971.20"
14/10/2020,1243470,Downing (Chertsey Road) Ltd,,Bi-Borough Director of Integrated Care,"5,971.20"
11/11/2020,1243470,Downing (Chertsey Road) Ltd,,Bi-Borough Director of Integrated Care,"5,971.20"
11/11/2020,1243470,Downing (Chertsey Road) Ltd,,Bi-Borough Director of Integrated Care,"5,971.20"
09/12/2020,1243470,Downing (Chertsey Road) Ltd,,Bi-Borough Director of Integrated Care,"5,971.20"
09/12/2020,1243470,Downing (Chertsey Road) Ltd,,Bi-Borough Director of Integrated Care,"5,971.20"
14/10/2020,1243473,Drs Care Homes Ltd,,Bi-Borough Director of Integrated Care,"3,183.44"
11/11/2020,1243473,Drs Care Homes Ltd,,Bi-Borough Director of Integrated Care,"3,183.44"
09/12/2020,1243473,Drs Care Homes Ltd,,Bi-Borough Director of Integrated Care,"3,183.44"
14/10/2020,1243474,Duckyls Farm Centre,,Bi-Borough Director of Integrated Care,"2,959.12"
11/11/2020,1243474,Duckyls Farm Centre,,Bi-Borough Director of Integrated Care,"2,959.12"
09/12/2020,1243474,Duckyls Farm Centre,,Bi-Borough Director of Integrated Care,"2,959.12"
14/10/2020,1245108,Elysium Healthcare No 2 Ltd,,Bi-Borough Director of Integrated Care,"8,722.20"
11/11/2020,1245108,Elysium Healthcare No 2 Ltd,,Bi-Borough Director of Integrated Care,"8,722.20"
09/12/2020,1245108,Elysium Healthcare No 2 Ltd,,Bi-Borough Director of Integrated Care,"8,722.20"
27/10/2020,1246934,Equal People Mencap (Kensington &,B*Voluntary-Spot-V Dep-Enhanced - do not u,Bi-Borough Director of Integrated Care,"2,880.00"
17/11/2020,1246934,Equal People Mencap (Kensington &,B*Voluntary-Spot-V Dep-Enhanced - do not u,Bi-Borough Director of Integrated Care,"2,304.00"
11/12/2020,1246934,Equal People Mencap (Kensington &,B*Voluntary-Spot-V Dep-Enhanced - do not u,Bi-Borough Director of Integrated Care,"1,800.00"
14/10/2020,1245110,Eric Patrick Care Ltd,,Bi-Borough Director of Integrated Care,"5,339.00"
11/11/2020,1245110,Eric Patrick Care Ltd,,Bi-Borough Director of Integrated Care,"3,934.00"
09/12/2020,1245110,Eric Patrick Care Ltd,,Bi-Borough Director of Integrated Care,"7,165.50"
26/11/2020,1252498,PERSONAL PAYMENTS,Legal Costs,Bi-Borough Director of Integrated Care,"1,030.00"
30/11/2020,1252498,PERSONAL PAYMENTS,Legal Costs,Bi-Borough Director of Integrated Care,"1,030.00"
01/12/2020,1252498,PERSONAL PAYMENTS,Legal Costs,Bi-Borough Director of Integrated Care,"3,000.00"
14/10/2020,1243485,Grove Care Partnership Ltd,,Bi-Borough Director of Integrated Care,"8,051.84"
11/11/2020,1243485,Grove Care Partnership Ltd,,Bi-Borough Director of Integrated Care,"8,051.84"
09/12/2020,1243485,Grove Care Partnership Ltd,,Bi-Borough Director of Integrated Care,"8,051.84"
14/10/2020,1258503,Guyatt House Care Limited,,Bi-Borough Director of Integrated Care,"8,566.16"
11/11/2020,1258503,Guyatt House Care Limited,,Bi-Borough Director of Integrated Care,"8,566.16"
09/12/2020,1258503,Guyatt House Care Limited,,Bi-Borough Director of Integrated Care,"8,566.16"
14/10/2020,1244549,HF Trust Ltd,,Bi-Borough Director of Integrated Care,"3,539.28"
14/10/2020,1244549,HF Trust Ltd,,Bi-Borough Director of Integrated Care,"10,344.56"
11/11/2020,1244549,HF Trust Ltd,,Bi-Borough Director of Integrated Care,"10,344.56"
11/11/2020,1244549,HF Trust Ltd,,Bi-Borough Director of Integrated Care,"3,539.28"
09/12/2020,1244549,HF Trust Ltd,,Bi-Borough Director of Integrated Care,"10,344.56"
09/12/2020,1244549,HF Trust Ltd,,Bi-Borough Director of Integrated Care,"3,539.28"
14/10/2020,1244515,Hampshire Autistic Society,,Bi-Borough Director of Integrated Care,"5,307.08"
11/11/2020,1244515,Hampshire Autistic Society,,Bi-Borough Director of Integrated Care,"5,307.08"
09/12/2020,1244515,Hampshire Autistic Society,,Bi-Borough Director of Integrated Care,"5,307.08"
14/10/2020,1243490,Haydon Park Lodge Ltd,,Bi-Borough Director of Integrated Care,"4,000.00"
11/11/2020,1243490,Haydon Park Lodge Ltd,,Bi-Borough Director of Integrated Care,"4,000.00"
09/12/2020,1243490,Haydon Park Lodge Ltd,,Bi-Borough Director of Integrated Care,"4,000.00"
14/10/2020,1260257,Hazel Homes for Autism Ltd,,Bi-Borough Director of Integrated Care,"15,746.24"
11/11/2020,1260257,Hazel Homes for Autism Ltd,,Bi-Borough Director of Integrated Care,"15,746.24"
09/12/2020,1260257,Hazel Homes for Autism Ltd,,Bi-Borough Director of Integrated Care,"15,746.24"
15/10/2020,1247257,Health Vision Uk,,Bi-Borough Director of Integrated Care,589.32
15/10/2020,1247257,Health Vision Uk,,Bi-Borough Director of Integrated Care,"1,047.68"
15/10/2020,1247257,Health Vision Uk,,Bi-Borough Director of Integrated Care,"2,025.96"
15/10/2020,1247257,Health Vision Uk,,Bi-Borough Director of Integrated Care,"2,025.95"
16/11/2020,1247257,Health Vision Uk,,Bi-Borough Director of Integrated Care,"2,035.04"
16/11/2020,1247257,Health Vision Uk,,Bi-Borough Director of Integrated Care,"2,035.04"
16/12/2020,1247257,Health Vision Uk,,Bi-Borough Director of Integrated Care,"2,053.21"
16/12/2020,1247257,Health Vision Uk,,Bi-Borough Director of Integrated Care,"2,035.04"
14/10/2020,1245125,Heathcotes (Southern) Ltd,,Bi-Borough Director of Integrated Care,"14,838.72"
14/10/2020,1245125,Heathcotes (Southern) Ltd,,Bi-Borough Director of Integrated Care,"7,935.20"
11/11/2020,1245125,Heathcotes (Southern) Ltd,,Bi-Borough Director of Integrated Care,"7,935.20"
11/11/2020,1245125,Heathcotes (Southern) Ltd,,Bi-Borough Director of Integrated Care,"14,838.72"
09/12/2020,1245125,Heathcotes (Southern) Ltd,,Bi-Borough Director of Integrated Care,"7,935.20"
09/12/2020,1245125,Heathcotes (Southern) Ltd,,Bi-Borough Director of Integrated Care,"14,838.72"
14/10/2020,1267460,Hunters Lodge Care Home,,Bi-Borough Director of Integrated Care,"3,930.64"
11/11/2020,1267460,Hunters Lodge Care Home,,Bi-Borough Director of Integrated Care,"3,930.64"
09/12/2020,1267460,Hunters Lodge Care Home,,Bi-Borough Director of Integrated Care,"3,930.64"
01/10/2020,1247526,Integrity Care and Support Ltd,B*Voluntary-Spot-V Dep-Enhanced - do not u,Bi-Borough Director of Integrated Care,696.96
01/10/2020,1247526,Integrity Care and Support Ltd,B*Voluntary-Spot-V Dep-Enhanced - do not u,Bi-Borough Director of Integrated Care,619.52
01/10/2020,1247526,Integrity Care and Support Ltd,B*Voluntary-Spot-V Dep-Enhanced - do not u,Bi-Borough Director of Integrated Care,"1,510.08"
01/10/2020,1247526,Integrity Care and Support Ltd,B*Voluntary-Spot-V Dep-Enhanced - do not u,Bi-Borough Director of Integrated Care,"3,097.60"
01/10/2020,1247526,Integrity Care and Support Ltd,B*Voluntary-Spot-V Dep-Enhanced - do not u,Bi-Borough Director of Integrated Care,"1,161.60"
01/10/2020,1247526,Integrity Care and Support Ltd,B*Voluntary-Spot-V Dep-Enhanced - do not u,Bi-Borough Director of Integrated Care,696.96
01/10/2020,1247526,Integrity Care and Support Ltd,B*Voluntary-Spot-V Dep-Enhanced - do not u,Bi-Borough Director of Integrated Care,968.00
27/10/2020,1247526,Integrity Care and Support Ltd,B*Voluntary-Spot-V Dep-Enhanced - do not u,Bi-Borough Director of Integrated Care,842.16
27/10/2020,1247526,Integrity Care and Support Ltd,B*Voluntary-Spot-V Dep-Enhanced - do not u,Bi-Borough Director of Integrated Care,696.96
27/10/2020,1247526,Integrity Care and Support Ltd,B*Voluntary-Spot-V Dep-Enhanced - do not u,Bi-Borough Director of Integrated Care,712.32
27/10/2020,1247526,Integrity Care and Support Ltd,B*Voluntary-Spot-V Dep-Enhanced - do not u,Bi-Borough Director of Integrated Care,"1,761.76"
27/10/2020,1247526,Integrity Care and Support Ltd,B*Voluntary-Spot-V Dep-Enhanced - do not u,Bi-Borough Director of Integrated Care,658.24
27/10/2020,1247526,Integrity Care and Support Ltd,B*Voluntary-Spot-V Dep-Enhanced - do not u,Bi-Borough Director of Integrated Care,"1,142.24"
27/10/2020,1247526,Integrity Care and Support Ltd,B*Voluntary-Spot-V Dep-Enhanced - do not u,Bi-Borough Director of Integrated Care,542.08
27/10/2020,1247526,Integrity Care and Support Ltd,B*Voluntary-Spot-V Dep-Enhanced - do not u,Bi-Borough Director of Integrated Care,"1,258.84"
27/10/2020,1247526,Integrity Care and Support Ltd,B*Voluntary-Spot-V Dep-Enhanced - do not u,Bi-Borough Director of Integrated Care,580.80
27/10/2020,1247526,Integrity Care and Support Ltd,B*Voluntary-Spot-V Dep-Enhanced - do not u,Bi-Borough Director of Integrated Care,"2,632.96"
01/12/2020,1247526,Integrity Care and Support Ltd,B*Voluntary-Spot-V Dep-Enhanced - do not u,Bi-Borough Director of Integrated Care,696.96
01/12/2020,1247526,Integrity Care and Support Ltd,B*Voluntary-Spot-V Dep-Enhanced - do not u,Bi-Borough Director of Integrated Care,"1,287.44"
01/12/2020,1247526,Integrity Care and Support Ltd,B*Voluntary-Spot-V Dep-Enhanced - do not u,Bi-Borough Director of Integrated Care,948.64
01/12/2020,1247526,Integrity Care and Support Ltd,B*Voluntary-Spot-V Dep-Enhanced - do not u,Bi-Borough Director of Integrated Care,"1,161.60"
01/12/2020,1247526,Integrity Care and Support Ltd,B*Voluntary-Spot-V Dep-Enhanced - do not u,Bi-Borough Director of Integrated Care,"1,084.16"
01/12/2020,1247526,Integrity Care and Support Ltd,B*Voluntary-Spot-V Dep-Enhanced - do not u,Bi-Borough Director of Integrated Care,"1,239.04"
01/12/2020,1247526,Integrity Care and Support Ltd,B*Voluntary-Spot-V Dep-Enhanced - do not u,Bi-Borough Director of Integrated Care,619.52
01/12/2020,1247526,Integrity Care and Support Ltd,B*Voluntary-Spot-V Dep-Enhanced - do not u,Bi-Borough Director of Integrated Care,871.20
01/12/2020,1247526,Integrity Care and Support Ltd,B*Voluntary-Spot-V Dep-Enhanced - do not u,Bi-Borough Director of Integrated Care,929.28
01/12/2020,1247526,Integrity Care and Support Ltd,B*Voluntary-Spot-V Dep-Enhanced - do not u,Bi-Borough Director of Integrated Care,"2,168.32"
23/12/2020,1247526,Integrity Care and Support Ltd,B*Voluntary-Spot-V Dep-Enhanced - do not u,Bi-Borough Director of Integrated Care,658.24
23/12/2020,1247526,Integrity Care and Support Ltd,B*Voluntary-Spot-V Dep-Enhanced - do not u,Bi-Borough Director of Integrated Care,522.72
23/12/2020,1247526,Integrity Care and Support Ltd,B*Voluntary-Spot-V Dep-Enhanced - do not u,Bi-Borough Director of Integrated Care,"1,084.16"
23/12/2020,1247526,Integrity Care and Support Ltd,B*Voluntary-Spot-V Dep-Enhanced - do not u,Bi-Borough Director of Integrated Care,542.08
23/12/2020,1247526,Integrity Care and Support Ltd,B*Voluntary-Spot-V Dep-Enhanced - do not u,Bi-Borough Director of Integrated Care,"2,168.32"
23/12/2020,1247526,Integrity Care and Support Ltd,B*Voluntary-Spot-V Dep-Enhanced - do not u,Bi-Borough Director of Integrated Care,"1,355.20"
23/12/2020,1247526,Integrity Care and Support Ltd,B*Voluntary-Spot-V Dep-Enhanced - do not u,Bi-Borough Director of Integrated Care,"1,161.60"
23/12/2020,1247526,Integrity Care and Support Ltd,B*Voluntary-Spot-V Dep-Enhanced - do not u,Bi-Borough Director of Integrated Care,"1,006.72"
23/12/2020,1247526,Integrity Care and Support Ltd,B*Voluntary-Spot-V Dep-Enhanced - do not u,Bi-Borough Director of Integrated Care,"1,277.76"
23/12/2020,1247526,Integrity Care and Support Ltd,B*Voluntary-Spot-V Dep-Enhanced - do not u,Bi-Borough Director of Integrated Care,929.28
23/12/2020,1247526,Integrity Care and Support Ltd,B*Voluntary-Spot-V Dep-Enhanced - do not u,Bi-Borough Director of Integrated Care,909.92
23/12/2020,1247526,Integrity Care and Support Ltd,B*Voluntary-Spot-V Dep-Enhanced - do not u,Bi-Borough Director of Integrated Care,696.96
23/12/2020,1247526,Integrity Care and Support Ltd,B*Voluntary-Spot-V Dep-Enhanced - do not u,Bi-Borough Director of Integrated Care,"1,239.04"
23/12/2020,1247526,Integrity Care and Support Ltd,B*Voluntary-Spot-V Dep-Enhanced - do not u,Bi-Borough Director of Integrated Care,"1,035.76"
23/12/2020,1247526,Integrity Care and Support Ltd,B*Voluntary-Spot-V Dep-Enhanced - do not u,Bi-Borough Director of Integrated Care,"2,071.52"
16/12/2020,1272617,Jessal Akman Services Ltd,,Bi-Borough Director of Integrated Care,"71,960.94"
14/10/2020,1247598,Kisimul Group Ltd,,Bi-Borough Director of Integrated Care,"13,955.32"
11/11/2020,1247598,Kisimul Group Ltd,,Bi-Borough Director of Integrated Care,"13,955.32"
09/12/2020,1247598,Kisimul Group Ltd,,Bi-Borough Director of Integrated Care,"13,955.32"
14/10/2020,1243503,Life Opportunities Trust,,Bi-Borough Director of Integrated Care,"3,399.00"
14/10/2020,1243503,Life Opportunities Trust,,Bi-Borough Director of Integrated Care,"3,399.00"
14/10/2020,1243503,Life Opportunities Trust,,Bi-Borough Director of Integrated Care,"5,176.00"
14/10/2020,1243503,Life Opportunities Trust,,Bi-Borough Director of Integrated Care,"3,399.80"
14/10/2020,1243503,Life Opportunities Trust,,Bi-Borough Director of Integrated Care,"6,095.60"
14/10/2020,1243503,Life Opportunities Trust,,Bi-Borough Director of Integrated Care,"4,663.00"
14/10/2020,1243503,Life Opportunities Trust,,Bi-Borough Director of Integrated Care,"6,199.20"
11/11/2020,1243503,Life Opportunities Trust,,Bi-Borough Director of Integrated Care,"5,176.00"
11/11/2020,1243503,Life Opportunities Trust,,Bi-Borough Director of Integrated Care,"6,095.60"
11/11/2020,1243503,Life Opportunities Trust,,Bi-Borough Director of Integrated Care,"3,399.80"
11/11/2020,1243503,Life Opportunities Trust,,Bi-Borough Director of Integrated Care,"4,663.00"
11/11/2020,1243503,Life Opportunities Trust,,Bi-Borough Director of Integrated Care,"6,199.20"
11/11/2020,1243503,Life Opportunities Trust,,Bi-Borough Director of Integrated Care,"3,399.00"
11/11/2020,1243503,Life Opportunities Trust,,Bi-Borough Director of Integrated Care,"3,399.00"
09/12/2020,1243503,Life Opportunities Trust,,Bi-Borough Director of Integrated Care,"5,176.00"
09/12/2020,1243503,Life Opportunities Trust,,Bi-Borough Director of Integrated Care,"4,663.00"
09/12/2020,1243503,Life Opportunities Trust,,Bi-Borough Director of Integrated Care,"6,199.20"
09/12/2020,1243503,Life Opportunities Trust,,Bi-Borough Director of Integrated Care,"3,399.00"
09/12/2020,1243503,Life Opportunities Trust,,Bi-Borough Director of Integrated Care,"3,399.00"
09/12/2020,1243503,Life Opportunities Trust,,Bi-Borough Director of Integrated Care,"3,399.80"
09/12/2020,1243503,Life Opportunities Trust,,Bi-Borough Director of Integrated Care,"6,095.60"
14/10/2020,1243506,Lifeways Community Care Ltd,,Bi-Borough Director of Integrated Care,"11,633.00"
14/10/2020,1243506,Lifeways Community Care Ltd,,Bi-Borough Director of Integrated Care,"6,760.88"
11/11/2020,1243506,Lifeways Community Care Ltd,,Bi-Borough Director of Integrated Care,"11,633.00"
11/11/2020,1243506,Lifeways Community Care Ltd,,Bi-Borough Director of Integrated Care,"6,760.88"
09/12/2020,1243506,Lifeways Community Care Ltd,,Bi-Borough Director of Integrated Care,"11,633.00"
09/12/2020,1243506,Lifeways Community Care Ltd,,Bi-Borough Director of Integrated Care,"6,760.88"
14/10/2020,1244762,Livability,,Bi-Borough Director of Integrated Care,"6,180.00"
11/11/2020,1244762,Livability,,Bi-Borough Director of Integrated Care,"6,180.00"
09/12/2020,1244762,Livability,,Bi-Borough Director of Integrated Care,"6,180.00"
07/10/2020,1247650,London Care Ltd,,Bi-Borough Director of Integrated Care,716.88
15/10/2020,1247650,London Care Ltd,,Bi-Borough Director of Integrated Care,727.61
15/10/2020,1247650,London Care Ltd,,Bi-Borough Director of Integrated Care,"1,481.42"
11/11/2020,1247650,London Care Ltd,,Bi-Borough Director of Integrated Care,"1,162.50"
16/11/2020,1247650,London Care Ltd,,Bi-Borough Director of Integrated Care,658.81
16/11/2020,1247650,London Care Ltd,,Bi-Borough Director of Integrated Care,"1,480.43"
07/12/2020,1247650,London Care Ltd,,Bi-Borough Director of Integrated Care,930.00
10/12/2020,1247650,London Care Ltd,,Bi-Borough Director of Integrated Care,708.67
10/12/2020,1247650,London Care Ltd,,Bi-Borough Director of Integrated Care,774.03
10/12/2020,1247650,London Care Ltd,,Bi-Borough Director of Integrated Care,"1,502.31"
14/10/2020,1247651,London Care Partnership Ltd,,Bi-Borough Director of Integrated Care,"8,348.56"
11/11/2020,1247651,London Care Partnership Ltd,,Bi-Borough Director of Integrated Care,"8,348.56"
09/12/2020,1247651,London Care Partnership Ltd,,Bi-Borough Director of Integrated Care,"8,348.56"
14/10/2020,1247656,London Cyrenians Housing Ltd,,Bi-Borough Director of Integrated Care,"14,280.00"
11/11/2020,1247656,London Cyrenians Housing Ltd,,Bi-Borough Director of Integrated Care,"14,280.00"
09/12/2020,1247656,London Cyrenians Housing Ltd,,Bi-Borough Director of Integrated Care,"14,280.00"
24/10/2020,1247846,London Vip Cars,Payments to Transport Operators,Bi-Borough Director of Integrated Care,723.00
20/11/2020,1247846,London Vip Cars,Payments to Transport Operators,Bi-Borough Director of Integrated Care,"2,094.00"
16/12/2020,1247846,London Vip Cars,Payments to Transport Operators,Bi-Borough Director of Integrated Care,"2,187.00"
14/10/2020,1247854,Look Ahead Housing & Care Ltd,,Bi-Borough Director of Integrated Care,"3,015.48"
11/11/2020,1247854,Look Ahead Housing & Care Ltd,,Bi-Borough Director of Integrated Care,"3,015.48"
09/12/2020,1247854,Look Ahead Housing & Care Ltd,,Bi-Borough Director of Integrated Care,"3,015.48"
07/12/2020,1259132,MMR Home Care LTD,,Bi-Borough Director of Integrated Care,"1,604.26"
07/12/2020,1259132,MMR Home Care LTD,,Bi-Borough Director of Integrated Care,"1,604.26"
07/12/2020,1259132,MMR Home Care LTD,,Bi-Borough Director of Integrated Care,"1,604.26"
07/12/2020,1259132,MMR Home Care LTD,,Bi-Borough Director of Integrated Care,"1,604.26"
07/12/2020,1259132,MMR Home Care LTD,,Bi-Borough Director of Integrated Care,"1,604.26"
07/12/2020,1259132,MMR Home Care LTD,,Bi-Borough Director of Integrated Care,"1,604.26"
07/12/2020,1259132,MMR Home Care LTD,,Bi-Borough Director of Integrated Care,"1,604.26"
07/12/2020,1259132,MMR Home Care LTD,,Bi-Borough Director of Integrated Care,"1,604.26"
07/12/2020,1259132,MMR Home Care LTD,,Bi-Borough Director of Integrated Care,"1,604.26"
07/12/2020,1259132,MMR Home Care LTD,,Bi-Borough Director of Integrated Care,"1,604.26"
07/12/2020,1259132,MMR Home Care LTD,,Bi-Borough Director of Integrated Care,"1,604.26"
07/12/2020,1259132,MMR Home Care LTD,,Bi-Borough Director of Integrated Care,"1,604.26"
07/12/2020,1259132,MMR Home Care LTD,,Bi-Borough Director of Integrated Care,"1,604.26"
07/12/2020,1259132,MMR Home Care LTD,,Bi-Borough Director of Integrated Care,"1,604.26"
15/12/2020,1259132,MMR Home Care LTD,,Bi-Borough Director of Integrated Care,"1,489.67"
15/12/2020,1259132,MMR Home Care LTD,,Bi-Borough Director of Integrated Care,"1,489.67"
23/12/2020,1259132,MMR Home Care LTD,,Bi-Borough Director of Integrated Care,"1,145.90"
23/12/2020,1259132,MMR Home Care LTD,,Bi-Borough Director of Integrated Care,"1,145.90"
14/10/2020,1245144,Methodist Homes For The Aged,,Bi-Borough Director of Integrated Care,"3,090.44"
11/11/2020,1245144,Methodist Homes For The Aged,,Bi-Borough Director of Integrated Care,"3,090.44"
09/12/2020,1245144,Methodist Homes For The Aged,,Bi-Borough Director of Integrated Care,"3,090.44"
14/10/2020,1247933,Minster Pathways Ltd,,Bi-Borough Director of Integrated Care,"3,504.00"
14/10/2020,1247933,Minster Pathways Ltd,,Bi-Borough Director of Integrated Care,"1,248.00"
11/11/2020,1247933,Minster Pathways Ltd,,Bi-Borough Director of Integrated Care,"1,248.00"
11/11/2020,1247933,Minster Pathways Ltd,,Bi-Borough Director of Integrated Care,"3,504.00"
09/12/2020,1247933,Minster Pathways Ltd,,Bi-Borough Director of Integrated Care,"1,248.00"
09/12/2020,1247933,Minster Pathways Ltd,,Bi-Borough Director of Integrated Care,"3,504.00"
14/10/2020,1244905,Nas Services Ltd (Residential),,Bi-Borough Director of Integrated Care,"4,058.88"
14/10/2020,1244905,Nas Services Ltd (Residential),,Bi-Borough Director of Integrated Care,"4,076.80"
14/10/2020,1244905,Nas Services Ltd (Residential),,Bi-Borough Director of Integrated Care,"9,629.48"
14/10/2020,1244905,Nas Services Ltd (Residential),,Bi-Borough Director of Integrated Care,"7,400.08"
14/10/2020,1244905,Nas Services Ltd (Residential),,Bi-Borough Director of Integrated Care,"3,379.32"
14/10/2020,1244905,Nas Services Ltd (Residential),,Bi-Borough Director of Integrated Care,"7,199.28"
14/10/2020,1244905,Nas Services Ltd (Residential),,Bi-Borough Director of Integrated Care,"7,738.00"
14/10/2020,1244905,Nas Services Ltd (Residential),,Bi-Borough Director of Integrated Care,"6,307.20"
14/10/2020,1244905,Nas Services Ltd (Residential),,Bi-Borough Director of Integrated Care,"3,211.00"
14/10/2020,1244905,Nas Services Ltd (Residential),,Bi-Borough Director of Integrated Care,"5,698.56"
14/10/2020,1244905,Nas Services Ltd (Residential),,Bi-Borough Director of Integrated Care,"9,360.68"
14/10/2020,1244905,Nas Services Ltd (Residential),,Bi-Borough Director of Integrated Care,"3,816.60"
03/11/2020,1244905,Nas Services Ltd (Residential),B*Voluntary-Spot-V Dep-Enhanced - do not u,Bi-Borough Director of Integrated Care,"1,418.44"
03/11/2020,1244905,Nas Services Ltd (Residential),B*Voluntary-Spot-V Dep-Enhanced - do not u,Bi-Borough Director of Integrated Care,"1,418.44"
11/11/2020,1244905,Nas Services Ltd (Residential),,Bi-Borough Director of Integrated Care,"5,698.56"
11/11/2020,1244905,Nas Services Ltd (Residential),,Bi-Borough Director of Integrated Care,"2,408.25"
11/11/2020,1244905,Nas Services Ltd (Residential),,Bi-Borough Director of Integrated Care,"5,497.66"
11/11/2020,1244905,Nas Services Ltd (Residential),,Bi-Borough Director of Integrated Care,"7,020.51"
11/11/2020,1244905,Nas Services Ltd (Residential),,Bi-Borough Director of Integrated Care,"2,862.45"
11/11/2020,1244905,Nas Services Ltd (Residential),,Bi-Borough Director of Integrated Care,"5,399.46"
11/11/2020,1244905,Nas Services Ltd (Residential),,Bi-Borough Director of Integrated Care,"7,738.00"
11/11/2020,1244905,Nas Services Ltd (Residential),,Bi-Borough Director of Integrated Care,"4,058.88"
11/11/2020,1244905,Nas Services Ltd (Residential),,Bi-Borough Director of Integrated Care,"3,057.60"
11/11/2020,1244905,Nas Services Ltd (Residential),,Bi-Borough Director of Integrated Care,"7,222.11"
11/11/2020,1244905,Nas Services Ltd (Residential),,Bi-Borough Director of Integrated Care,"3,379.32"
11/11/2020,1244905,Nas Services Ltd (Residential),,Bi-Borough Director of Integrated Care,"7,400.08"
08/12/2020,1244905,Nas Services Ltd (Residential),B*Voluntary-Spot-V Dep-Enhanced - do not u,Bi-Borough Director of Integrated Care,"1,418.44"
09/12/2020,1244905,Nas Services Ltd (Residential),,Bi-Borough Director of Integrated Care,"4,058.88"
09/12/2020,1244905,Nas Services Ltd (Residential),,Bi-Borough Director of Integrated Care,"7,400.08"
09/12/2020,1244905,Nas Services Ltd (Residential),,Bi-Borough Director of Integrated Care,"3,379.32"
09/12/2020,1244905,Nas Services Ltd (Residential),,Bi-Borough Director of Integrated Care,"7,738.00"
09/12/2020,1244905,Nas Services Ltd (Residential),,Bi-Borough Director of Integrated Care,"5,698.56"
03/11/2020,1244906,Nas Services Ltd (Use 3009018),B*Voluntary-Spot-V Dep-Enhanced - do not u,Bi-Borough Director of Integrated Care,"5,335.00"
03/11/2020,1244906,Nas Services Ltd (Use 3009018),B*Voluntary-Spot-V Dep-Enhanced - do not u,Bi-Borough Director of Integrated Care,"1,744.52"
03/11/2020,1244906,Nas Services Ltd (Use 3009018),B*Voluntary-Spot-V Dep-Enhanced - do not u,Bi-Borough Director of Integrated Care,"1,772.04"
03/11/2020,1244906,Nas Services Ltd (Use 3009018),B*Voluntary-Spot-V Dep-Enhanced - do not u,Bi-Borough Director of Integrated Care,"1,308.36"
03/11/2020,1244906,Nas Services Ltd (Use 3009018),B*Voluntary-Spot-V Dep-Enhanced - do not u,Bi-Borough Director of Integrated Care,"2,915.36"
03/11/2020,1244906,Nas Services Ltd (Use 3009018),B*Voluntary-Spot-V Dep-Enhanced - do not u,Bi-Borough Director of Integrated Care,"4,195.04"
03/11/2020,1244906,Nas Services Ltd (Use 3009018),B*Voluntary-Spot-V Dep-Enhanced - do not u,Bi-Borough Director of Integrated Care,"2,970.72"
03/11/2020,1244906,Nas Services Ltd (Use 3009018),B*Voluntary-Spot-V Dep-Enhanced - do not u,Bi-Borough Director of Integrated Care,"1,848.96"
03/11/2020,1244906,Nas Services Ltd (Use 3009018),B*Voluntary-Spot-V Dep-Enhanced - do not u,Bi-Borough Director of Integrated Care,"1,744.52"
03/11/2020,1244906,Nas Services Ltd (Use 3009018),B*Voluntary-Spot-V Dep-Enhanced - do not u,Bi-Borough Director of Integrated Care,"4,879.20"
03/11/2020,1244906,Nas Services Ltd (Use 3009018),B*Voluntary-Spot-V Dep-Enhanced - do not u,Bi-Borough Director of Integrated Care,"1,124.96"
03/11/2020,1244906,Nas Services Ltd (Use 3009018),B*Voluntary-Spot-V Dep-Enhanced - do not u,Bi-Borough Director of Integrated Care,"2,027.52"
03/11/2020,1244906,Nas Services Ltd (Use 3009018),B*Voluntary-Spot-V Dep-Enhanced - do not u,Bi-Borough Director of Integrated Care,"2,027.52"
11/11/2020,1244906,Nas Services Ltd (Use 3009018),B*Voluntary-Spot-V Dep-Enhanced - do not u,Bi-Borough Director of Integrated Care,"2,970.72"
11/11/2020,1244906,Nas Services Ltd (Use 3009018),B*Voluntary-Spot-V Dep-Enhanced - do not u,Bi-Borough Director of Integrated Care,"4,879.20"
11/11/2020,1244906,Nas Services Ltd (Use 3009018),B*Voluntary-Spot-V Dep-Enhanced - do not u,Bi-Borough Director of Integrated Care,"2,970.72"
11/11/2020,1244906,Nas Services Ltd (Use 3009018),B*Voluntary-Spot-V Dep-Enhanced - do not u,Bi-Borough Director of Integrated Care,981.27
11/11/2020,1244906,Nas Services Ltd (Use 3009018),B*Voluntary-Spot-V Dep-Enhanced - do not u,Bi-Borough Director of Integrated Care,"1,848.96"
11/11/2020,1244906,Nas Services Ltd (Use 3009018),B*Voluntary-Spot-V Dep-Enhanced - do not u,Bi-Borough Director of Integrated Care,"5,243.80"
11/11/2020,1244906,Nas Services Ltd (Use 3009018),B*Voluntary-Spot-V Dep-Enhanced - do not u,Bi-Borough Director of Integrated Care,"1,124.96"
11/11/2020,1244906,Nas Services Ltd (Use 3009018),B*Voluntary-Spot-V Dep-Enhanced - do not u,Bi-Borough Director of Integrated Care,"2,915.36"
11/11/2020,1244906,Nas Services Ltd (Use 3009018),B*Voluntary-Spot-V Dep-Enhanced - do not u,Bi-Borough Director of Integrated Care,"5,335.00"
08/12/2020,1244906,Nas Services Ltd (Use 3009018),B*Voluntary-Spot-V Dep-Enhanced - do not u,Bi-Borough Director of Integrated Care,"5,243.80"
08/12/2020,1244906,Nas Services Ltd (Use 3009018),B*Voluntary-Spot-V Dep-Enhanced - do not u,Bi-Borough Director of Integrated Care,"2,027.52"
08/12/2020,1244906,Nas Services Ltd (Use 3009018),B*Voluntary-Spot-V Dep-Enhanced - do not u,Bi-Borough Director of Integrated Care,"1,744.52"
08/12/2020,1244906,Nas Services Ltd (Use 3009018),B*Voluntary-Spot-V Dep-Enhanced - do not u,Bi-Borough Director of Integrated Care,"2,970.72"
08/12/2020,1244906,Nas Services Ltd (Use 3009018),B*Voluntary-Spot-V Dep-Enhanced - do not u,Bi-Borough Director of Integrated Care,728.84
08/12/2020,1244906,Nas Services Ltd (Use 3009018),B*Voluntary-Spot-V Dep-Enhanced - do not u,Bi-Borough Director of Integrated Care,"1,772.04"
08/12/2020,1244906,Nas Services Ltd (Use 3009018),B*Voluntary-Spot-V Dep-Enhanced - do not u,Bi-Borough Director of Integrated Care,"2,970.72"
08/12/2020,1244906,Nas Services Ltd (Use 3009018),B*Voluntary-Spot-V Dep-Enhanced - do not u,Bi-Borough Director of Integrated Care,"1,124.96"
08/12/2020,1244906,Nas Services Ltd (Use 3009018),B*Voluntary-Spot-V Dep-Enhanced - do not u,Bi-Borough Director of Integrated Care,"1,848.96"
08/12/2020,1244906,Nas Services Ltd (Use 3009018),B*Voluntary-Spot-V Dep-Enhanced - do not u,Bi-Borough Director of Integrated Care,"5,335.00"
08/12/2020,1244906,Nas Services Ltd (Use 3009018),B*Voluntary-Spot-V Dep-Enhanced - do not u,Bi-Borough Director of Integrated Care,"4,879.20"
08/12/2020,1244906,Nas Services Ltd (Use 3009018),B*Voluntary-Spot-V Dep-Enhanced - do not u,Bi-Borough Director of Integrated Care,"2,970.72"
11/12/2020,1244906,Nas Services Ltd (Use 3009018),B*Voluntary-Spot-V Dep-Enhanced - do not u,Bi-Borough Director of Integrated Care,"1,772.04"
14/10/2020,1247147,Norwood Schools Ltd,,Bi-Borough Director of Integrated Care,"5,253.52"
14/10/2020,1247147,Norwood Schools Ltd,,Bi-Borough Director of Integrated Care,"5,998.48"
14/10/2020,1247147,Norwood Schools Ltd,,Bi-Borough Director of Integrated Care,"8,758.72"
14/10/2020,1247147,Norwood Schools Ltd,,Bi-Borough Director of Integrated Care,"6,755.08"
11/11/2020,1247147,Norwood Schools Ltd,,Bi-Borough Director of Integrated Care,"5,998.48"
11/11/2020,1247147,Norwood Schools Ltd,,Bi-Borough Director of Integrated Care,"8,758.72"
11/11/2020,1247147,Norwood Schools Ltd,,Bi-Borough Director of Integrated Care,"5,253.52"
11/11/2020,1247147,Norwood Schools Ltd,,Bi-Borough Director of Integrated Care,"6,755.08"
09/12/2020,1247147,Norwood Schools Ltd,,Bi-Borough Director of Integrated Care,"5,998.48"
09/12/2020,1247147,Norwood Schools Ltd,,Bi-Borough Director of Integrated Care,"5,253.52"
09/12/2020,1247147,Norwood Schools Ltd,,Bi-Borough Director of Integrated Care,"6,755.08"
09/12/2020,1247147,Norwood Schools Ltd,,Bi-Borough Director of Integrated Care,"8,758.72"
11/11/2020,1273024,Oakland Support Ltd,,Bi-Borough Director of Integrated Care,"4,893.71"
11/11/2020,1273024,Oakland Support Ltd,,Bi-Borough Director of Integrated Care,"4,893.71"
09/12/2020,1273024,Oakland Support Ltd,,Bi-Borough Director of Integrated Care,"1,370.24"
09/12/2020,1273024,Oakland Support Ltd,,Bi-Borough Director of Integrated Care,"1,370.24"
14/10/2020,1243520,Oakview Care (Berkshire) Ltd,,Bi-Borough Director of Integrated Care,"6,536.56"
11/11/2020,1243520,Oakview Care (Berkshire) Ltd,,Bi-Borough Director of Integrated Care,"6,536.56"
09/12/2020,1243520,Oakview Care (Berkshire) Ltd,,Bi-Borough Director of Integrated Care,"59,821.07"
13/10/2020,1244970,Octavia Housing & Care (Rent,Rent,Bi-Borough Director of Integrated Care,"1,787.26"
13/11/2020,1244971,Octavia Housing (Main Account),Rent,Bi-Borough Director of Integrated Care,"1,694.43"
13/11/2020,1244971,Octavia Housing (Main Account),Rent,Bi-Borough Director of Integrated Care,"1,317.89"
14/10/2020,1263497,Optima Care Ltd,,Bi-Borough Director of Integrated Care,"4,802.96"
14/10/2020,1263497,Optima Care Ltd,,Bi-Borough Director of Integrated Care,"4,800.96"
14/10/2020,1263497,Optima Care Ltd,,Bi-Borough Director of Integrated Care,"17,877.68"
11/11/2020,1263497,Optima Care Ltd,,Bi-Borough Director of Integrated Care,"17,877.68"
11/11/2020,1263497,Optima Care Ltd,,Bi-Borough Director of Integrated Care,"4,800.96"
11/11/2020,1263497,Optima Care Ltd,,Bi-Borough Director of Integrated Care,"4,802.96"
09/12/2020,1263497,Optima Care Ltd,,Bi-Borough Director of Integrated Care,"17,877.68"
09/12/2020,1263497,Optima Care Ltd,,Bi-Borough Director of Integrated Care,"4,802.96"
09/12/2020,1263497,Optima Care Ltd,,Bi-Borough Director of Integrated Care,"4,800.96"
21/10/2020,1248252,Origin Housing Ltd,B*Voluntary-Spot-V Dep-Enhanced - do not u,Bi-Borough Director of Integrated Care,640.00
03/11/2020,1248252,Origin Housing Ltd,B*Voluntary-Spot-V Dep-Enhanced - do not u,Bi-Borough Director of Integrated Care,640.00
14/10/2020,1243524,PERSONAL PAYMENTS,,Bi-Borough Director of Integrated Care,"3,379.76"
14/10/2020,1243524,PERSONAL PAYMENTS,,Bi-Borough Director of Integrated Care,936.00
11/11/2020,1243524,PERSONAL PAYMENTS,,Bi-Borough Director of Integrated Care,936.00
11/11/2020,1243524,PERSONAL PAYMENTS,,Bi-Borough Director of Integrated Care,"3,379.76"
09/12/2020,1243524,PERSONAL PAYMENTS,,Bi-Borough Director of Integrated Care,936.00
09/12/2020,1243524,PERSONAL PAYMENTS,,Bi-Borough Director of Integrated Care,"3,379.76"
14/10/2020,1245005,PERSONAL PAYMENTS,,Bi-Borough Director of Integrated Care,"2,146.88"
14/10/2020,1245005,PERSONAL PAYMENTS,,Bi-Borough Director of Integrated Care,"1,744.80"
14/10/2020,1245005,PERSONAL PAYMENTS,,Bi-Borough Director of Integrated Care,840.00
14/10/2020,1245005,PERSONAL PAYMENTS,,Bi-Borough Director of Integrated Care,"2,446.88"
14/10/2020,1245005,PERSONAL PAYMENTS,,Bi-Borough Director of Integrated Care,"2,902.96"
14/10/2020,1245005,PERSONAL PAYMENTS,,Bi-Borough Director of Integrated Care,"1,337.68"
14/10/2020,1245005,PERSONAL PAYMENTS,,Bi-Borough Director of Integrated Care,"2,146.88"
14/10/2020,1245005,PERSONAL PAYMENTS,,Bi-Borough Director of Integrated Care,"2,146.88"
14/10/2020,1245005,PERSONAL PAYMENTS,,Bi-Borough Director of Integrated Care,"1,337.68"
11/11/2020,1245005,PERSONAL PAYMENTS,,Bi-Borough Director of Integrated Care,"2,902.96"
11/11/2020,1245005,PERSONAL PAYMENTS,,Bi-Borough Director of Integrated Care,"2,146.88"
11/11/2020,1245005,PERSONAL PAYMENTS,,Bi-Borough Director of Integrated Care,"1,337.68"
11/11/2020,1245005,PERSONAL PAYMENTS,,Bi-Borough Director of Integrated Care,"2,146.88"
11/11/2020,1245005,PERSONAL PAYMENTS,,Bi-Borough Director of Integrated Care,"1,337.68"
11/11/2020,1245005,PERSONAL PAYMENTS,,Bi-Borough Director of Integrated Care,"2,146.88"
11/11/2020,1245005,PERSONAL PAYMENTS,,Bi-Borough Director of Integrated Care,"1,744.80"
11/11/2020,1245005,PERSONAL PAYMENTS,,Bi-Borough Director of Integrated Care,840.00
11/11/2020,1245005,PERSONAL PAYMENTS,,Bi-Borough Director of Integrated Care,"2,545.88"
09/12/2020,1245005,PERSONAL PAYMENTS,,Bi-Borough Director of Integrated Care,"2,146.88"
09/12/2020,1245005,PERSONAL PAYMENTS,,Bi-Borough Director of Integrated Care,"1,337.68"
09/12/2020,1245005,PERSONAL PAYMENTS,,Bi-Borough Director of Integrated Care,"2,902.96"
09/12/2020,1245005,PERSONAL PAYMENTS,,Bi-Borough Director of Integrated Care,"2,146.88"
09/12/2020,1245005,PERSONAL PAYMENTS,,Bi-Borough Director of Integrated Care,"1,337.68"
09/12/2020,1245005,PERSONAL PAYMENTS,,Bi-Borough Director of Integrated Care,"1,744.80"
09/12/2020,1245005,PERSONAL PAYMENTS,,Bi-Borough Director of Integrated Care,"2,146.88"
09/12/2020,1245005,PERSONAL PAYMENTS,,Bi-Borough Director of Integrated Care,840.00
09/12/2020,1245005,PERSONAL PAYMENTS,,Bi-Borough Director of Integrated Care,"2,842.88"
05/10/2020,1245825,Sweet Tree Home Care Services,Adult Social Care - Other Transfer Pay,Bi-Borough Director of Integrated Care,"3,749.26"
07/10/2020,1246066,Barrie Bookkeeping & Payroll,Adult Social Care - Other Transfer Pay,Bi-Borough Director of Integrated Care,"5,074.21"
09/10/2020,1246066,Barrie Bookkeeping & Payroll,Adult Social Care - Other Transfer Pay,Bi-Borough Director of Integrated Care,"22,640.00"
09/10/2020,1246066,Barrie Bookkeeping & Payroll,Adult Social Care - Other Transfer Pay,Bi-Borough Director of Integrated Care,"17,037.21"
23/10/2020,1247355,PERSONAL PAYMENTS,Social Care - Direct Payments,Bi-Borough Director of Integrated Care,857.28
23/10/2020,1246066,Barrie Bookkeeping & Payroll,Adult Social Care - Other Transfer Pay,Bi-Borough Director of Integrated Care,835.60
23/10/2020,1250074,PERSONAL PAYMENTS,Adult Social Care - Other Transfer Pay,Bi-Borough Director of Integrated Care,"8,290.76"
23/10/2020,1246066,Barrie Bookkeeping & Payroll,Adult Social Care - Other Transfer Pay,Bi-Borough Director of Integrated Care,"1,821.60"
23/10/2020,1246066,Barrie Bookkeeping & Payroll,Adult Social Care - Other Transfer Pay,Bi-Borough Director of Integrated Care,848.40
23/10/2020,1248354,PERSONAL PAYMENTS,Adult Social Care - Other Transfer Pay,Bi-Borough Director of Integrated Care,"2,791.72"
23/10/2020,1250044,PERSONAL PAYMENTS,Adult Social Care - Other Transfer Pay,Bi-Borough Director of Integrated Care,648.00
23/10/2020,1246066,Barrie Bookkeeping & Payroll,Adult Social Care - Other Transfer Pay,Bi-Borough Director of Integrated Care,"1,275.60"
23/10/2020,1248292,PERSONAL PAYMENTS,Adult Social Care - Other Transfer Pay,Bi-Borough Director of Integrated Care,"8,640.00"
23/10/2020,1246066,Barrie Bookkeeping & Payroll,Adult Social Care - Other Transfer Pay,Bi-Borough Director of Integrated Care,"4,603.40"
23/10/2020,1250368,PERSONAL PAYMENTS,Adult Social Care - Other Transfer Pay,Bi-Borough Director of Integrated Care,"1,794.08"
23/10/2020,1250138,PERSONAL PAYMENTS,Social Care - Direct Payments,Bi-Borough Director of Integrated Care,"1,200.00"
23/10/2020,1246066,Barrie Bookkeeping & Payroll,Adult Social Care - Other Transfer Pay,Bi-Borough Director of Integrated Care,"1,603.60"
23/10/2020,1250656,PERSONAL PAYMENTS,Social Care - Direct Payments,Bi-Borough Director of Integrated Care,"1,118.36"
23/10/2020,1249009,PERSONAL PAYMENTS,Social Care - Direct Payments,Bi-Borough Director of Integrated Care,"2,301.12"
23/10/2020,1245611,Solo Support Services Ltd,Adult Social Care - Other Transfer Pay,Bi-Borough Director of Integrated Care,"7,733.52"
23/10/2020,1248292,PERSONAL PAYMENTS,Adult Social Care - Other Transfer Pay,Bi-Borough Director of Integrated Care,"1,208.96"
23/10/2020,1247820,PERSONAL PAYMENTS,Social Care - Direct Payments,Bi-Borough Director of Integrated Care,"9,196.00"
23/10/2020,1250068,PERSONAL PAYMENTS,Social Care - Direct Payments,Bi-Borough Director of Integrated Care,740.00
23/10/2020,1246066,Barrie Bookkeeping & Payroll,Adult Social Care - Other Transfer Pay,Bi-Borough Director of Integrated Care,"1,228.00"
23/10/2020,1246066,Barrie Bookkeeping & Payroll,Adult Social Care - Other Transfer Pay,Bi-Borough Director of Integrated Care,"1,633.00"
23/10/2020,1246066,Barrie Bookkeeping & Payroll,Adult Social Care - Other Transfer Pay,Bi-Borough Director of Integrated Care,"1,680.00"
23/10/2020,1246066,Barrie Bookkeeping & Payroll,Adult Social Care - Other Transfer Pay,Bi-Borough Director of Integrated Care,"2,058.00"
23/10/2020,1248154,PERSONAL PAYMENTS,Adult Social Care - Other Transfer Pay,Bi-Borough Director of Integrated Care,"1,540.00"
23/10/2020,1250186,PERSONAL PAYMENTS,Adult Social Care - Other Transfer Pay,Bi-Borough Director of Integrated Care,"2,540.00"
23/10/2020,1246066,Barrie Bookkeeping & Payroll,Adult Social Care - Other Transfer Pay,Bi-Borough Director of Integrated Care,"7,987.60"
23/10/2020,1246066,Barrie Bookkeeping & Payroll,Adult Social Care - Other Transfer Pay,Bi-Borough Director of Integrated Care,818.00
23/10/2020,1246066,Barrie Bookkeeping & Payroll,Adult Social Care - Other Transfer Pay,Bi-Borough Director of Integrated Care,759.92
23/10/2020,1248059,PERSONAL PAYMENTS,Social Care - Direct Payments,Bi-Borough Director of Integrated Care,"5,808.52"
23/10/2020,1250360,PERSONAL PAYMENTS,Adult Social Care - Other Transfer Pay,Bi-Borough Director of Integrated Care,"3,328.00"
23/10/2020,1250674,PERSONAL PAYMENTS,Adult Social Care - Other Transfer Pay,Bi-Borough Director of Integrated Care,"2,372.80"
23/10/2020,1246066,Barrie Bookkeeping & Payroll,Adult Social Care - Other Transfer Pay,Bi-Borough Director of Integrated Care,"2,830.00"
23/10/2020,1248715,PERSONAL PAYMENTS,Social Care - Direct Payments,Bi-Borough Director of Integrated Care,992.64
23/10/2020,1256833,PERSONAL PAYMENTS,Adult Social Care - Other Transfer Pay,Bi-Borough Director of Integrated Care,572.00
23/10/2020,1254540,PERSONAL PAYMENTS,Adult Social Care - Other Transfer Pay,Bi-Borough Director of Integrated Care,811.80
23/10/2020,1248010,PERSONAL PAYMENTS,Adult Social Care - Other Transfer Pay,Bi-Borough Director of Integrated Care,541.44
23/10/2020,1246066,Barrie Bookkeeping & Payroll,Adult Social Care - Other Transfer Pay,Bi-Borough Director of Integrated Care,"1,991.00"
23/10/2020,1247452,PERSONAL PAYMENTS,Social Care - Direct Payments,Bi-Borough Director of Integrated Care,"1,353.60"
23/10/2020,1248468,PERSONAL PAYMENTS,Social Care - Direct Payments,Bi-Borough Director of Integrated Care,996.00
23/10/2020,1247732,PERSONAL PAYMENTS,Social Care - Direct Payments,Bi-Borough Director of Integrated Care,"1,985.28"
23/10/2020,1250612,PERSONAL PAYMENTS,Social Care - Direct Payments,Bi-Borough Director of Integrated Care,540.00
23/10/2020,1249796,PERSONAL PAYMENTS,Adult Social Care - Other Transfer Pay,Bi-Borough Director of Integrated Care,992.64
23/10/2020,1250012,PERSONAL PAYMENTS,Adult Social Care - Other Transfer Pay,Bi-Borough Director of Integrated Care,"2,015.00"
23/10/2020,1250670,PERSONAL PAYMENTS,Adult Social Care - Other Transfer Pay,Bi-Borough Director of Integrated Care,"1,024.00"
23/10/2020,1247727,PERSONAL PAYMENTS,Social Care - Direct Payments,Bi-Borough Director of Integrated Care,"1,950.00"
23/10/2020,1248148,PERSONAL PAYMENTS,Adult Social Care - Other Transfer Pay,Bi-Borough Director of Integrated Care,"1,638.96"
23/10/2020,1249942,PERSONAL PAYMENTS,Adult Social Care - Other Transfer Pay,Bi-Borough Director of Integrated Care,"5,975.56"
23/10/2020,1256952,PERSONAL PAYMENTS,Adult Social Care - Other Transfer Pay,Bi-Borough Director of Integrated Care,"1,920.00"
23/10/2020,1246066,Barrie Bookkeeping & Payroll,Adult Social Care - Other Transfer Pay,Bi-Borough Director of Integrated Care,"2,140.44"
23/10/2020,1246066,Barrie Bookkeeping & Payroll,Adult Social Care - Other Transfer Pay,Bi-Borough Director of Integrated Care,"5,914.56"
23/10/2020,1273750,PERSONAL PAYMENTS,Adult Social Care - Other Transfer Pay,Bi-Borough Director of Integrated Care,"4,056.00"
23/10/2020,1246066,Barrie Bookkeeping & Payroll,Adult Social Care - Other Transfer Pay,Bi-Borough Director of Integrated Care,773.20
23/10/2020,1247804,PERSONAL PAYMENTS,Social Care - Direct Payments,Bi-Borough Director of Integrated Care,902.40
23/10/2020,1250310,PERSONAL PAYMENTS,Adult Social Care - Other Transfer Pay,Bi-Borough Director of Integrated Care,"1,368.00"
23/10/2020,1246066,Barrie Bookkeeping & Payroll,Adult Social Care - Other Transfer Pay,Bi-Borough Director of Integrated Care,"2,740.12"
23/10/2020,1250627,PERSONAL PAYMENTS,Social Care - Direct Payments,Bi-Borough Director of Integrated Care,"2,253.00"
05/11/2020,1245825,Sweet Tree Home Care Services,Adult Social Care - Other Transfer Pay,Bi-Borough Director of Integrated Care,"3,857.96"
06/11/2020,1250631,PERSONAL PAYMENTS,Adult Social Care - Other Transfer Pay,Bi-Borough Director of Integrated Care,"4,359.90"
06/11/2020,1246066,Barrie Bookkeeping & Payroll,Adult Social Care - Other Transfer Pay,Bi-Borough Director of Integrated Care,"1,832.94"
10/11/2020,1246066,Barrie Bookkeeping & Payroll,Adult Social Care - Other Transfer Pay,Bi-Borough Director of Integrated Care,990.47
13/11/2020,1246066,Barrie Bookkeeping & Payroll,Adult Social Care - Other Transfer Pay,Bi-Borough Director of Integrated Care,"5,677.65"
20/11/2020,1248148,PERSONAL PAYMENTS,Adult Social Care - Other Transfer Pay,Bi-Borough Director of Integrated Care,"1,638.96"
20/11/2020,1256952,PERSONAL PAYMENTS,Adult Social Care - Other Transfer Pay,Bi-Borough Director of Integrated Care,"1,920.00"
20/11/2020,1246066,Barrie Bookkeeping & Payroll,Adult Social Care - Other Transfer Pay,Bi-Borough Director of Integrated Care,"2,140.44"
20/11/2020,1246066,Barrie Bookkeeping & Payroll,Adult Social Care - Other Transfer Pay,Bi-Borough Director of Integrated Care,"1,228.00"
20/11/2020,1250186,PERSONAL PAYMENTS,Adult Social Care - Other Transfer Pay,Bi-Borough Director of Integrated Care,"2,540.00"
20/11/2020,1246066,Barrie Bookkeeping & Payroll,Adult Social Care - Other Transfer Pay,Bi-Borough Director of Integrated Care,759.92
20/11/2020,1250068,PERSONAL PAYMENTS,Social Care - Direct Payments,Bi-Borough Director of Integrated Care,740.00
20/11/2020,1248154,PERSONAL PAYMENTS,Adult Social Care - Other Transfer Pay,Bi-Borough Director of Integrated Care,"1,540.00"
20/11/2020,1248010,PERSONAL PAYMENTS,Adult Social Care - Other Transfer Pay,Bi-Borough Director of Integrated Care,541.44
20/11/2020,1248059,PERSONAL PAYMENTS,Social Care - Direct Payments,Bi-Borough Director of Integrated Care,"5,808.52"
20/11/2020,1250360,PERSONAL PAYMENTS,Adult Social Care - Other Transfer Pay,Bi-Borough Director of Integrated Care,"3,328.00"
20/11/2020,1248715,PERSONAL PAYMENTS,Social Care - Direct Payments,Bi-Borough Director of Integrated Care,992.64
20/11/2020,1246066,Barrie Bookkeeping & Payroll,Adult Social Care - Other Transfer Pay,Bi-Borough Director of Integrated Care,"2,830.00"
20/11/2020,1250674,PERSONAL PAYMENTS,Adult Social Care - Other Transfer Pay,Bi-Borough Director of Integrated Care,"2,372.80"
20/11/2020,1254540,PERSONAL PAYMENTS,Adult Social Care - Other Transfer Pay,Bi-Borough Director of Integrated Care,811.80
20/11/2020,1246066,Barrie Bookkeeping & Payroll,Adult Social Care - Other Transfer Pay,Bi-Borough Director of Integrated Care,"1,991.00"
20/11/2020,1247452,PERSONAL PAYMENTS,Social Care - Direct Payments,Bi-Borough Director of Integrated Care,"1,353.60"
20/11/2020,1248468,PERSONAL PAYMENTS,Social Care - Direct Payments,Bi-Borough Director of Integrated Care,996.00
20/11/2020,1247732,PERSONAL PAYMENTS,Social Care - Direct Payments,Bi-Borough Director of Integrated Care,"1,985.28"
20/11/2020,1250612,PERSONAL PAYMENTS,Social Care - Direct Payments,Bi-Borough Director of Integrated Care,540.00
20/11/2020,1250670,PERSONAL PAYMENTS,Adult Social Care - Other Transfer Pay,Bi-Borough Director of Integrated Care,"1,024.00"
20/11/2020,1249796,PERSONAL PAYMENTS,Adult Social Care - Other Transfer Pay,Bi-Borough Director of Integrated Care,992.64
20/11/2020,1250012,PERSONAL PAYMENTS,Adult Social Care - Other Transfer Pay,Bi-Borough Director of Integrated Care,"2,015.00"
20/11/2020,1247727,PERSONAL PAYMENTS,Social Care - Direct Payments,Bi-Borough Director of Integrated Care,"1,950.00"
20/11/2020,1246066,Barrie Bookkeeping & Payroll,Adult Social Care - Other Transfer Pay,Bi-Borough Director of Integrated Care,835.60
20/11/2020,1247804,PERSONAL PAYMENTS,Social Care - Direct Payments,Bi-Borough Director of Integrated Care,902.40
20/11/2020,1250310,PERSONAL PAYMENTS,Adult Social Care - Other Transfer Pay,Bi-Borough Director of Integrated Care,"1,368.00"
20/11/2020,1247355,PERSONAL PAYMENTS,Social Care - Direct Payments,Bi-Borough Director of Integrated Care,857.28
20/11/2020,1249942,PERSONAL PAYMENTS,Adult Social Care - Other Transfer Pay,Bi-Borough Director of Integrated Care,"5,975.56"
20/11/2020,1268346,PERSONAL PAYMENTS,Adult Social Care - Other Transfer Pay,Bi-Borough Director of Integrated Care,"1,374.66"
20/11/2020,1248354,PERSONAL PAYMENTS,Adult Social Care - Other Transfer Pay,Bi-Borough Director of Integrated Care,"2,791.72"
20/11/2020,1250368,PERSONAL PAYMENTS,Adult Social Care - Other Transfer Pay,Bi-Borough Director of Integrated Care,"1,794.08"
20/11/2020,1250138,PERSONAL PAYMENTS,Social Care - Direct Payments,Bi-Borough Director of Integrated Care,"1,200.00"
20/11/2020,1246066,Barrie Bookkeeping & Payroll,Adult Social Care - Other Transfer Pay,Bi-Borough Director of Integrated Care,"1,275.60"
20/11/2020,1248292,PERSONAL PAYMENTS,Adult Social Care - Other Transfer Pay,Bi-Borough Director of Integrated Care,"8,640.00"
20/11/2020,1246066,Barrie Bookkeeping & Payroll,Adult Social Care - Other Transfer Pay,Bi-Borough Director of Integrated Care,773.20
20/11/2020,1250627,PERSONAL PAYMENTS,Social Care - Direct Payments,Bi-Borough Director of Integrated Care,"2,253.00"
20/11/2020,1246066,Barrie Bookkeeping & Payroll,Adult Social Care - Other Transfer Pay,Bi-Borough Director of Integrated Care,"1,603.60"
20/11/2020,1250656,PERSONAL PAYMENTS,Social Care - Direct Payments,Bi-Borough Director of Integrated Care,"1,118.36"
20/11/2020,1249009,PERSONAL PAYMENTS,Social Care - Direct Payments,Bi-Borough Director of Integrated Care,"2,301.12"
20/11/2020,1248292,PERSONAL PAYMENTS,Adult Social Care - Other Transfer Pay,Bi-Borough Director of Integrated Care,"1,208.96"
20/11/2020,1246066,Barrie Bookkeeping & Payroll,Adult Social Care - Other Transfer Pay,Bi-Borough Director of Integrated Care,"1,633.00"
20/11/2020,1246066,Barrie Bookkeeping & Payroll,Adult Social Care - Other Transfer Pay,Bi-Borough Director of Integrated Care,"1,680.00"
20/11/2020,1247820,PERSONAL PAYMENTS,Social Care - Direct Payments,Bi-Borough Director of Integrated Care,"9,196.00"
20/11/2020,1246066,Barrie Bookkeeping & Payroll,Adult Social Care - Other Transfer Pay,Bi-Borough Director of Integrated Care,"5,914.56"
20/11/2020,1246066,Barrie Bookkeeping & Payroll,Adult Social Care - Other Transfer Pay,Bi-Borough Director of Integrated Care,"2,740.12"
20/11/2020,1250631,PERSONAL PAYMENTS,Adult Social Care - Other Transfer Pay,Bi-Borough Director of Integrated Care,"2,906.60"
20/11/2020,1246066,Barrie Bookkeeping & Payroll,Adult Social Care - Other Transfer Pay,Bi-Borough Director of Integrated Care,"7,987.60"
20/11/2020,1250074,PERSONAL PAYMENTS,Adult Social Care - Other Transfer Pay,Bi-Borough Director of Integrated Care,"8,290.76"
20/11/2020,1250044,PERSONAL PAYMENTS,Adult Social Care - Other Transfer Pay,Bi-Borough Director of Integrated Care,648.00
20/11/2020,1256833,PERSONAL PAYMENTS,Adult Social Care - Other Transfer Pay,Bi-Borough Director of Integrated Care,572.00
20/11/2020,1246066,Barrie Bookkeeping & Payroll,Adult Social Care - Other Transfer Pay,Bi-Borough Director of Integrated Care,"1,821.60"
23/11/2020,1246066,Barrie Bookkeeping & Payroll,Adult Social Care - Other Transfer Pay,Bi-Borough Director of Integrated Care,"2,058.00"
26/11/2020,1246066,Barrie Bookkeeping & Payroll,Adult Social Care - Other Transfer Pay,Bi-Borough Director of Integrated Care,818.00
26/11/2020,1246066,Barrie Bookkeeping & Payroll,Adult Social Care - Other Transfer Pay,Bi-Borough Director of Integrated Care,"1,187.72"
26/11/2020,1246066,Barrie Bookkeeping & Payroll,Adult Social Care - Other Transfer Pay,Bi-Borough Director of Integrated Care,"4,603.40"
01/12/2020,1246066,Barrie Bookkeeping & Payroll,Adult Social Care - Other Transfer Pay,Bi-Borough Director of Integrated Care,"4,441.70"
17/12/2020,1245825,Sweet Tree Home Care Services,Adult Social Care - Other Transfer Pay,Bi-Borough Director of Integrated Care,"3,626.96"
18/12/2020,1246066,Barrie Bookkeeping & Payroll,Adult Social Care - Other Transfer Pay,Bi-Borough Director of Integrated Care,835.60
18/12/2020,1250138,PERSONAL PAYMENTS,Social Care - Direct Payments,Bi-Borough Director of Integrated Care,"1,200.00"
18/12/2020,1248148,PERSONAL PAYMENTS,Adult Social Care - Other Transfer Pay,Bi-Borough Director of Integrated Care,"1,638.96"
18/12/2020,1248354,PERSONAL PAYMENTS,Adult Social Care - Other Transfer Pay,Bi-Borough Director of Integrated Care,"3,318.85"
18/12/2020,1248059,PERSONAL PAYMENTS,Social Care - Direct Payments,Bi-Borough Director of Integrated Care,"5,808.52"
18/12/2020,1248010,PERSONAL PAYMENTS,Adult Social Care - Other Transfer Pay,Bi-Borough Director of Integrated Care,541.44
18/12/2020,1250360,PERSONAL PAYMENTS,Adult Social Care - Other Transfer Pay,Bi-Borough Director of Integrated Care,"3,328.00"
18/12/2020,1248715,PERSONAL PAYMENTS,Social Care - Direct Payments,Bi-Borough Director of Integrated Care,992.64
18/12/2020,1250368,PERSONAL PAYMENTS,Adult Social Care - Other Transfer Pay,Bi-Borough Director of Integrated Care,"1,794.08"
18/12/2020,1249942,PERSONAL PAYMENTS,Adult Social Care - Other Transfer Pay,Bi-Borough Director of Integrated Care,"5,975.56"
18/12/2020,1256952,PERSONAL PAYMENTS,Adult Social Care - Other Transfer Pay,Bi-Borough Director of Integrated Care,"1,920.00"
18/12/2020,1268346,PERSONAL PAYMENTS,Adult Social Care - Other Transfer Pay,Bi-Borough Director of Integrated Care,785.52
18/12/2020,1246066,Barrie Bookkeeping & Payroll,Adult Social Care - Other Transfer Pay,Bi-Borough Director of Integrated Care,"4,603.40"
18/12/2020,1250656,PERSONAL PAYMENTS,Social Care - Direct Payments,Bi-Borough Director of Integrated Care,"1,118.36"
18/12/2020,1250627,PERSONAL PAYMENTS,Social Care - Direct Payments,Bi-Borough Director of Integrated Care,"2,253.00"
18/12/2020,1249009,PERSONAL PAYMENTS,Social Care - Direct Payments,Bi-Borough Director of Integrated Care,"2,301.12"
18/12/2020,1246066,Barrie Bookkeeping & Payroll,Adult Social Care - Other Transfer Pay,Bi-Borough Director of Integrated Care,"1,603.60"
18/12/2020,1246066,Barrie Bookkeeping & Payroll,Adult Social Care - Other Transfer Pay,Bi-Borough Director of Integrated Care,"2,140.44"
18/12/2020,1246066,Barrie Bookkeeping & Payroll,Adult Social Care - Other Transfer Pay,Bi-Borough Director of Integrated Care,773.20
18/12/2020,1246066,Barrie Bookkeeping & Payroll,Adult Social Care - Other Transfer Pay,Bi-Borough Director of Integrated Care,"5,914.56"
18/12/2020,1246066,Barrie Bookkeeping & Payroll,Adult Social Care - Other Transfer Pay,Bi-Borough Director of Integrated Care,"2,740.12"
18/12/2020,1247820,PERSONAL PAYMENTS,Social Care - Direct Payments,Bi-Borough Director of Integrated Care,"9,196.00"
18/12/2020,1250215,PERSONAL PAYMENTS,Adult Social Care - Other Transfer Pay,Bi-Borough Director of Integrated Care,"1,107.20"
18/12/2020,1250186,PERSONAL PAYMENTS,Adult Social Care - Other Transfer Pay,Bi-Borough Director of Integrated Care,"2,540.00"
18/12/2020,1250068,PERSONAL PAYMENTS,Social Care - Direct Payments,Bi-Borough Director of Integrated Care,740.00
18/12/2020,1248154,PERSONAL PAYMENTS,Adult Social Care - Other Transfer Pay,Bi-Borough Director of Integrated Care,"1,540.00"
18/12/2020,1250674,PERSONAL PAYMENTS,Adult Social Care - Other Transfer Pay,Bi-Borough Director of Integrated Care,"2,372.80"
18/12/2020,1254540,PERSONAL PAYMENTS,Adult Social Care - Other Transfer Pay,Bi-Borough Director of Integrated Care,811.80
18/12/2020,1246066,Barrie Bookkeeping & Payroll,Adult Social Care - Other Transfer Pay,Bi-Borough Director of Integrated Care,"1,680.00"
18/12/2020,1246066,Barrie Bookkeeping & Payroll,Adult Social Care - Other Transfer Pay,Bi-Borough Director of Integrated Care,"1,633.00"
18/12/2020,1246066,Barrie Bookkeeping & Payroll,Adult Social Care - Other Transfer Pay,Bi-Borough Director of Integrated Care,"2,058.00"
18/12/2020,1246066,Barrie Bookkeeping & Payroll,Adult Social Care - Other Transfer Pay,Bi-Borough Director of Integrated Care,"7,987.60"
18/12/2020,1248292,PERSONAL PAYMENTS,Adult Social Care - Other Transfer Pay,Bi-Borough Director of Integrated Care,"1,208.96"
18/12/2020,1256833,PERSONAL PAYMENTS,Adult Social Care - Other Transfer Pay,Bi-Borough Director of Integrated Care,572.00
18/12/2020,1250044,PERSONAL PAYMENTS,Adult Social Care - Other Transfer Pay,Bi-Borough Director of Integrated Care,648.00
18/12/2020,1246066,Barrie Bookkeeping & Payroll,Adult Social Care - Other Transfer Pay,Bi-Borough Director of Integrated Care,"2,830.00"
18/12/2020,1246066,Barrie Bookkeeping & Payroll,Adult Social Care - Other Transfer Pay,Bi-Borough Director of Integrated Care,"1,991.00"
18/12/2020,1250074,PERSONAL PAYMENTS,Adult Social Care - Other Transfer Pay,Bi-Borough Director of Integrated Care,"8,290.76"
18/12/2020,1246066,Barrie Bookkeeping & Payroll,Adult Social Care - Other Transfer Pay,Bi-Borough Director of Integrated Care,"1,228.00"
18/12/2020,1246066,Barrie Bookkeeping & Payroll,Adult Social Care - Other Transfer Pay,Bi-Borough Director of Integrated Care,818.00
18/12/2020,1246066,Barrie Bookkeeping & Payroll,Adult Social Care - Other Transfer Pay,Bi-Borough Director of Integrated Care,759.92
18/12/2020,1250670,PERSONAL PAYMENTS,Adult Social Care - Other Transfer Pay,Bi-Borough Director of Integrated Care,"1,024.00"
18/12/2020,1246066,Barrie Bookkeeping & Payroll,Adult Social Care - Other Transfer Pay,Bi-Borough Director of Integrated Care,"1,275.60"
18/12/2020,1246066,Barrie Bookkeeping & Payroll,Adult Social Care - Other Transfer Pay,Bi-Borough Director of Integrated Care,"1,821.60"
18/12/2020,1246066,Barrie Bookkeeping & Payroll,Adult Social Care - Other Transfer Pay,Bi-Borough Director of Integrated Care,852.72
18/12/2020,1248292,PERSONAL PAYMENTS,Adult Social Care - Other Transfer Pay,Bi-Borough Director of Integrated Care,"8,640.00"
18/12/2020,1247452,PERSONAL PAYMENTS,Social Care - Direct Payments,Bi-Borough Director of Integrated Care,"1,353.60"
18/12/2020,1250612,PERSONAL PAYMENTS,Social Care - Direct Payments,Bi-Borough Director of Integrated Care,540.00
18/12/2020,1247732,PERSONAL PAYMENTS,Social Care - Direct Payments,Bi-Borough Director of Integrated Care,"1,985.28"
18/12/2020,1275590,PERSONAL PAYMENTS,Adult Social Care - Other Transfer Pay,Bi-Borough Director of Integrated Care,"1,446.43"
18/12/2020,1250012,PERSONAL PAYMENTS,Adult Social Care - Other Transfer Pay,Bi-Borough Director of Integrated Care,"2,015.00"
18/12/2020,1249796,PERSONAL PAYMENTS,Adult Social Care - Other Transfer Pay,Bi-Borough Director of Integrated Care,992.64
18/12/2020,1247727,PERSONAL PAYMENTS,Social Care - Direct Payments,Bi-Borough Director of Integrated Care,"1,950.00"
18/12/2020,1247804,PERSONAL PAYMENTS,Social Care - Direct Payments,Bi-Borough Director of Integrated Care,902.40
18/12/2020,1250310,PERSONAL PAYMENTS,Adult Social Care - Other Transfer Pay,Bi-Borough Director of Integrated Care,"1,368.00"
18/12/2020,1247355,PERSONAL PAYMENTS,Social Care - Direct Payments,Bi-Borough Director of Integrated Care,857.28
29/12/2020,1247727,PERSONAL PAYMENTS,Social Care - Direct Payments,Bi-Borough Director of Integrated Care,"2,287.44"
31/12/2020,1246066,Barrie Bookkeeping & Payroll,Adult Social Care - Other Transfer Pay,Bi-Borough Director of Integrated Care,"9,040.73"
31/12/2020,1246066,Barrie Bookkeeping & Payroll,Adult Social Care - Other Transfer Pay,Bi-Borough Director of Integrated Care,674.10
14/10/2020,1243531,PJL Healthcare Ltd T/A Mayfield,,Bi-Borough Director of Integrated Care,"24,284.00"
14/10/2020,1258049,PSS (UK),,Bi-Borough Director of Integrated Care,"2,660.96"
11/11/2020,1258049,PSS (UK),,Bi-Borough Director of Integrated Care,"2,660.96"
09/12/2020,1258049,PSS (UK),,Bi-Borough Director of Integrated Care,"2,660.96"
14/10/2020,1245021,Paradise Community,,Bi-Borough Director of Integrated Care,"10,414.68"
11/11/2020,1245021,Paradise Community,,Bi-Borough Director of Integrated Care,"10,414.68"
09/12/2020,1245021,Paradise Community,,Bi-Borough Director of Integrated Care,"10,414.68"
14/10/2020,1250448,PERSONAL PAYMENTS,,Bi-Borough Director of Integrated Care,"1,419.24"
11/11/2020,1250448,PERSONAL PAYMENTS,,Bi-Borough Director of Integrated Care,"1,419.24"
09/12/2020,1250448,PERSONAL PAYMENTS,,Bi-Borough Director of Integrated Care,"1,419.24"
14/10/2020,1245163,Poor Servants of the mother of,,Bi-Borough Director of Integrated Care,"2,878.88"
11/11/2020,1245163,Poor Servants of the mother of,,Bi-Borough Director of Integrated Care,"2,878.88"
09/12/2020,1245163,Poor Servants of the mother of,,Bi-Borough Director of Integrated Care,"2,878.88"
14/10/2020,1245165,Precious Homes Ltd,,Bi-Borough Director of Integrated Care,"5,320.00"
14/10/2020,1245165,Precious Homes Ltd,,Bi-Borough Director of Integrated Care,"13,976.16"
11/11/2020,1245165,Precious Homes Ltd,,Bi-Borough Director of Integrated Care,"13,976.16"
11/11/2020,1245165,Precious Homes Ltd,,Bi-Borough Director of Integrated Care,"5,320.00"
09/12/2020,1245165,Precious Homes Ltd,,Bi-Borough Director of Integrated Care,"13,976.16"
09/12/2020,1245165,Precious Homes Ltd,,Bi-Borough Director of Integrated Care,"5,320.00"
13/10/2020,1248563,Pursuing Independent Paths,B*Voluntary-Spot-V Dep-Enhanced - do not u,Bi-Borough Director of Integrated Care,"1,531.32"
13/10/2020,1248563,Pursuing Independent Paths,B*Voluntary-Spot-V Dep-Enhanced - do not u,Bi-Borough Director of Integrated Care,546.90
13/10/2020,1248563,Pursuing Independent Paths,B*Voluntary-Spot-V Dep-Enhanced - do not u,Bi-Borough Director of Integrated Care,510.44
13/10/2020,1248563,Pursuing Independent Paths,B*Voluntary-Spot-V Dep-Enhanced - do not u,Bi-Borough Director of Integrated Care,"1,020.88"
13/10/2020,1248563,Pursuing Independent Paths,B*Voluntary-Spot-V Dep-Enhanced - do not u,Bi-Borough Director of Integrated Care,510.44
13/10/2020,1248563,Pursuing Independent Paths,B*Voluntary-Spot-V Dep-Enhanced - do not u,Bi-Borough Director of Integrated Care,"1,531.32"
13/10/2020,1248563,Pursuing Independent Paths,B*Voluntary-Spot-V Dep-Enhanced - do not u,Bi-Borough Director of Integrated Care,"1,276.10"
13/10/2020,1248563,Pursuing Independent Paths,B*Voluntary-Spot-V Dep-Enhanced - do not u,Bi-Borough Director of Integrated Care,"2,552.20"
13/10/2020,1248563,Pursuing Independent Paths,B*Voluntary-Spot-V Dep-Enhanced - do not u,Bi-Borough Director of Integrated Care,"1,531.32"
13/10/2020,1248563,Pursuing Independent Paths,B*Voluntary-Spot-V Dep-Enhanced - do not u,Bi-Borough Director of Integrated Care,"1,531.32"
13/10/2020,1248563,Pursuing Independent Paths,B*Voluntary-Spot-V Dep-Enhanced - do not u,Bi-Borough Director of Integrated Care,"1,531.32"
13/10/2020,1248563,Pursuing Independent Paths,B*Voluntary-Spot-V Dep-Enhanced - do not u,Bi-Borough Director of Integrated Care,"1,531.32"
13/10/2020,1248563,Pursuing Independent Paths,B*Voluntary-Spot-V Dep-Enhanced - do not u,Bi-Borough Director of Integrated Care,"1,531.32"
13/10/2020,1248563,Pursuing Independent Paths,B*Voluntary-Spot-V Dep-Enhanced - do not u,Bi-Borough Director of Integrated Care,"1,020.88"
13/10/2020,1248563,Pursuing Independent Paths,B*Voluntary-Spot-V Dep-Enhanced - do not u,Bi-Borough Director of Integrated Care,"1,276.10"
13/10/2020,1248563,Pursuing Independent Paths,B*Voluntary-Spot-V Dep-Enhanced - do not u,Bi-Borough Director of Integrated Care,510.44
13/10/2020,1248563,Pursuing Independent Paths,B*Voluntary-Spot-V Dep-Enhanced - do not u,Bi-Borough Director of Integrated Care,"1,531.32"
13/10/2020,1248563,Pursuing Independent Paths,B*Voluntary-Spot-V Dep-Enhanced - do not u,Bi-Borough Director of Integrated Care,"1,252.72"
13/10/2020,1248563,Pursuing Independent Paths,B*Voluntary-Spot-V Dep-Enhanced - do not u,Bi-Borough Director of Integrated Care,510.44
13/10/2020,1248563,Pursuing Independent Paths,B*Voluntary-Spot-V Dep-Enhanced - do not u,Bi-Borough Director of Integrated Care,510.44
13/10/2020,1248563,Pursuing Independent Paths,B*Voluntary-Spot-V Dep-Enhanced - do not u,Bi-Borough Director of Integrated Care,"1,879.08"
13/10/2020,1248563,Pursuing Independent Paths,B*Voluntary-Spot-V Dep-Enhanced - do not u,Bi-Borough Director of Integrated Care,510.44
13/10/2020,1248563,Pursuing Independent Paths,B*Voluntary-Spot-V Dep-Enhanced - do not u,Bi-Borough Director of Integrated Care,583.36
13/10/2020,1248563,Pursuing Independent Paths,B*Voluntary-Spot-V Dep-Enhanced - do not u,Bi-Borough Director of Integrated Care,"1,531.32"
13/10/2020,1248563,Pursuing Independent Paths,B*Voluntary-Spot-V Dep-Enhanced - do not u,Bi-Borough Director of Integrated Care,"2,041.76"
13/10/2020,1248563,Pursuing Independent Paths,B*Voluntary-Spot-V Dep-Enhanced - do not u,Bi-Borough Director of Integrated Care,"1,276.10"
13/10/2020,1248563,Pursuing Independent Paths,B*Voluntary-Spot-V Dep-Enhanced - do not u,Bi-Borough Director of Integrated Care,"1,531.32"
13/10/2020,1248563,Pursuing Independent Paths,B*Voluntary-Spot-V Dep-Enhanced - do not u,Bi-Borough Director of Integrated Care,"1,531.32"
13/10/2020,1248563,Pursuing Independent Paths,B*Voluntary-Spot-V Dep-Enhanced - do not u,Bi-Borough Director of Integrated Care,"1,020.88"
13/10/2020,1248563,Pursuing Independent Paths,B*Voluntary-Spot-V Dep-Enhanced - do not u,Bi-Borough Director of Integrated Care,"1,276.10"
13/10/2020,1248563,Pursuing Independent Paths,B*Voluntary-Spot-V Dep-Enhanced - do not u,Bi-Borough Director of Integrated Care,"1,531.32"
13/10/2020,1248563,Pursuing Independent Paths,B*Voluntary-Spot-V Dep-Enhanced - do not u,Bi-Borough Director of Integrated Care,"1,786.54"
13/10/2020,1248563,Pursuing Independent Paths,B*Voluntary-Spot-V Dep-Enhanced - do not u,Bi-Borough Director of Integrated Care,"1,289.32"
13/10/2020,1248563,Pursuing Independent Paths,B*Voluntary-Spot-V Dep-Enhanced - do not u,Bi-Borough Director of Integrated Care,510.44
13/10/2020,1248563,Pursuing Independent Paths,B*Voluntary-Spot-V Dep-Enhanced - do not u,Bi-Borough Director of Integrated Care,"1,020.88"
13/10/2020,1248563,Pursuing Independent Paths,B*Voluntary-Spot-V Dep-Enhanced - do not u,Bi-Borough Director of Integrated Care,"1,020.88"
13/10/2020,1248563,Pursuing Independent Paths,B*Voluntary-Spot-V Dep-Enhanced - do not u,Bi-Borough Director of Integrated Care,"2,552.20"
13/10/2020,1248563,Pursuing Independent Paths,B*Voluntary-Spot-V Dep-Enhanced - do not u,Bi-Borough Director of Integrated Care,"1,531.32"
23/11/2020,1248563,Pursuing Independent Paths,B*Voluntary-Spot-V Dep-Enhanced - do not u,Bi-Borough Director of Integrated Care,"1,020.88"
23/11/2020,1248563,Pursuing Independent Paths,B*Voluntary-Spot-V Dep-Enhanced - do not u,Bi-Borough Director of Integrated Care,"1,276.10"
23/11/2020,1248563,Pursuing Independent Paths,B*Voluntary-Spot-V Dep-Enhanced - do not u,Bi-Borough Director of Integrated Care,"1,531.32"
23/11/2020,1248563,Pursuing Independent Paths,B*Voluntary-Spot-V Dep-Enhanced - do not u,Bi-Borough Director of Integrated Care,"1,786.54"
23/11/2020,1248563,Pursuing Independent Paths,B*Voluntary-Spot-V Dep-Enhanced - do not u,Bi-Borough Director of Integrated Care,"1,289.32"
23/11/2020,1248563,Pursuing Independent Paths,B*Voluntary-Spot-V Dep-Enhanced - do not u,Bi-Borough Director of Integrated Care,510.44
23/11/2020,1248563,Pursuing Independent Paths,B*Voluntary-Spot-V Dep-Enhanced - do not u,Bi-Borough Director of Integrated Care,"1,020.88"
23/11/2020,1248563,Pursuing Independent Paths,B*Voluntary-Spot-V Dep-Enhanced - do not u,Bi-Borough Director of Integrated Care,"1,020.88"
23/11/2020,1248563,Pursuing Independent Paths,B*Voluntary-Spot-V Dep-Enhanced - do not u,Bi-Borough Director of Integrated Care,"2,552.20"
23/11/2020,1248563,Pursuing Independent Paths,B*Voluntary-Spot-V Dep-Enhanced - do not u,Bi-Borough Director of Integrated Care,"1,531.32"
23/11/2020,1248563,Pursuing Independent Paths,B*Voluntary-Spot-V Dep-Enhanced - do not u,Bi-Borough Director of Integrated Care,"1,531.32"
23/11/2020,1248563,Pursuing Independent Paths,B*Voluntary-Spot-V Dep-Enhanced - do not u,Bi-Borough Director of Integrated Care,"1,531.32"
23/11/2020,1248563,Pursuing Independent Paths,B*Voluntary-Spot-V Dep-Enhanced - do not u,Bi-Borough Director of Integrated Care,546.90
23/11/2020,1248563,Pursuing Independent Paths,B*Voluntary-Spot-V Dep-Enhanced - do not u,Bi-Borough Director of Integrated Care,510.44
23/11/2020,1248563,Pursuing Independent Paths,B*Voluntary-Spot-V Dep-Enhanced - do not u,Bi-Borough Director of Integrated Care,"1,020.88"
23/11/2020,1248563,Pursuing Independent Paths,B*Voluntary-Spot-V Dep-Enhanced - do not u,Bi-Borough Director of Integrated Care,510.44
23/11/2020,1248563,Pursuing Independent Paths,B*Voluntary-Spot-V Dep-Enhanced - do not u,Bi-Borough Director of Integrated Care,"1,531.32"
23/11/2020,1248563,Pursuing Independent Paths,B*Voluntary-Spot-V Dep-Enhanced - do not u,Bi-Borough Director of Integrated Care,"1,276.10"
23/11/2020,1248563,Pursuing Independent Paths,B*Voluntary-Spot-V Dep-Enhanced - do not u,Bi-Borough Director of Integrated Care,"2,552.20"
23/11/2020,1248563,Pursuing Independent Paths,B*Voluntary-Spot-V Dep-Enhanced - do not u,Bi-Borough Director of Integrated Care,"1,531.32"
23/11/2020,1248563,Pursuing Independent Paths,B*Voluntary-Spot-V Dep-Enhanced - do not u,Bi-Borough Director of Integrated Care,"1,531.32"
23/11/2020,1248563,Pursuing Independent Paths,B*Voluntary-Spot-V Dep-Enhanced - do not u,Bi-Borough Director of Integrated Care,"1,531.32"
23/11/2020,1248563,Pursuing Independent Paths,B*Voluntary-Spot-V Dep-Enhanced - do not u,Bi-Borough Director of Integrated Care,"1,531.32"
23/11/2020,1248563,Pursuing Independent Paths,B*Voluntary-Spot-V Dep-Enhanced - do not u,Bi-Borough Director of Integrated Care,"1,020.88"
23/11/2020,1248563,Pursuing Independent Paths,B*Voluntary-Spot-V Dep-Enhanced - do not u,Bi-Borough Director of Integrated Care,"1,276.10"
23/11/2020,1248563,Pursuing Independent Paths,B*Voluntary-Spot-V Dep-Enhanced - do not u,Bi-Borough Director of Integrated Care,510.44
23/11/2020,1248563,Pursuing Independent Paths,B*Voluntary-Spot-V Dep-Enhanced - do not u,Bi-Borough Director of Integrated Care,"1,531.32"
23/11/2020,1248563,Pursuing Independent Paths,B*Voluntary-Spot-V Dep-Enhanced - do not u,Bi-Borough Director of Integrated Care,"1,252.72"
23/11/2020,1248563,Pursuing Independent Paths,B*Voluntary-Spot-V Dep-Enhanced - do not u,Bi-Borough Director of Integrated Care,510.44
23/11/2020,1248563,Pursuing Independent Paths,B*Voluntary-Spot-V Dep-Enhanced - do not u,Bi-Borough Director of Integrated Care,510.44
23/11/2020,1248563,Pursuing Independent Paths,B*Voluntary-Spot-V Dep-Enhanced - do not u,Bi-Borough Director of Integrated Care,"1,879.08"
23/11/2020,1248563,Pursuing Independent Paths,B*Voluntary-Spot-V Dep-Enhanced - do not u,Bi-Borough Director of Integrated Care,510.44
23/11/2020,1248563,Pursuing Independent Paths,B*Voluntary-Spot-V Dep-Enhanced - do not u,Bi-Borough Director of Integrated Care,583.36
23/11/2020,1248563,Pursuing Independent Paths,B*Voluntary-Spot-V Dep-Enhanced - do not u,Bi-Borough Director of Integrated Care,"1,531.32"
23/11/2020,1248563,Pursuing Independent Paths,B*Voluntary-Spot-V Dep-Enhanced - do not u,Bi-Borough Director of Integrated Care,"2,041.76"
23/11/2020,1248563,Pursuing Independent Paths,B*Voluntary-Spot-V Dep-Enhanced - do not u,Bi-Borough Director of Integrated Care,"1,276.10"
23/11/2020,1248563,Pursuing Independent Paths,B*Voluntary-Spot-V Dep-Enhanced - do not u,Bi-Borough Director of Integrated Care,"1,531.32"
23/11/2020,1248563,Pursuing Independent Paths,B*Voluntary-Spot-V Dep-Enhanced - do not u,Bi-Borough Director of Integrated Care,"1,531.32"
17/12/2020,1248563,Pursuing Independent Paths,B*Voluntary-Spot-V Dep-Enhanced - do not u,Bi-Borough Director of Integrated Care,"1,020.88"
17/12/2020,1248563,Pursuing Independent Paths,B*Voluntary-Spot-V Dep-Enhanced - do not u,Bi-Borough Director of Integrated Care,"1,276.10"
17/12/2020,1248563,Pursuing Independent Paths,B*Voluntary-Spot-V Dep-Enhanced - do not u,Bi-Borough Director of Integrated Care,"1,531.32"
17/12/2020,1248563,Pursuing Independent Paths,B*Voluntary-Spot-V Dep-Enhanced - do not u,Bi-Borough Director of Integrated Care,"1,786.54"
17/12/2020,1248563,Pursuing Independent Paths,B*Voluntary-Spot-V Dep-Enhanced - do not u,Bi-Borough Director of Integrated Care,"1,289.32"
17/12/2020,1248563,Pursuing Independent Paths,B*Voluntary-Spot-V Dep-Enhanced - do not u,Bi-Borough Director of Integrated Care,510.44
17/12/2020,1248563,Pursuing Independent Paths,B*Voluntary-Spot-V Dep-Enhanced - do not u,Bi-Borough Director of Integrated Care,"1,020.88"
17/12/2020,1248563,Pursuing Independent Paths,B*Voluntary-Spot-V Dep-Enhanced - do not u,Bi-Borough Director of Integrated Care,"1,020.88"
17/12/2020,1248563,Pursuing Independent Paths,B*Voluntary-Spot-V Dep-Enhanced - do not u,Bi-Borough Director of Integrated Care,"2,552.20"
17/12/2020,1248563,Pursuing Independent Paths,B*Voluntary-Spot-V Dep-Enhanced - do not u,Bi-Borough Director of Integrated Care,"1,531.32"
17/12/2020,1248563,Pursuing Independent Paths,B*Voluntary-Spot-V Dep-Enhanced - do not u,Bi-Borough Director of Integrated Care,"1,531.32"
17/12/2020,1248563,Pursuing Independent Paths,B*Voluntary-Spot-V Dep-Enhanced - do not u,Bi-Borough Director of Integrated Care,"1,531.32"
17/12/2020,1248563,Pursuing Independent Paths,B*Voluntary-Spot-V Dep-Enhanced - do not u,Bi-Borough Director of Integrated Care,546.90
17/12/2020,1248563,Pursuing Independent Paths,B*Voluntary-Spot-V Dep-Enhanced - do not u,Bi-Borough Director of Integrated Care,510.44
17/12/2020,1248563,Pursuing Independent Paths,B*Voluntary-Spot-V Dep-Enhanced - do not u,Bi-Borough Director of Integrated Care,"1,020.88"
17/12/2020,1248563,Pursuing Independent Paths,B*Voluntary-Spot-V Dep-Enhanced - do not u,Bi-Borough Director of Integrated Care,510.44
17/12/2020,1248563,Pursuing Independent Paths,B*Voluntary-Spot-V Dep-Enhanced - do not u,Bi-Borough Director of Integrated Care,"1,531.32"
17/12/2020,1248563,Pursuing Independent Paths,B*Voluntary-Spot-V Dep-Enhanced - do not u,Bi-Borough Director of Integrated Care,"1,276.10"
17/12/2020,1248563,Pursuing Independent Paths,B*Voluntary-Spot-V Dep-Enhanced - do not u,Bi-Borough Director of Integrated Care,"2,552.20"
17/12/2020,1248563,Pursuing Independent Paths,B*Voluntary-Spot-V Dep-Enhanced - do not u,Bi-Borough Director of Integrated Care,"1,531.32"
17/12/2020,1248563,Pursuing Independent Paths,B*Voluntary-Spot-V Dep-Enhanced - do not u,Bi-Borough Director of Integrated Care,"1,531.32"
17/12/2020,1248563,Pursuing Independent Paths,B*Voluntary-Spot-V Dep-Enhanced - do not u,Bi-Borough Director of Integrated Care,"1,531.32"
17/12/2020,1248563,Pursuing Independent Paths,B*Voluntary-Spot-V Dep-Enhanced - do not u,Bi-Borough Director of Integrated Care,"1,531.32"
17/12/2020,1248563,Pursuing Independent Paths,B*Voluntary-Spot-V Dep-Enhanced - do not u,Bi-Borough Director of Integrated Care,"1,020.88"
17/12/2020,1248563,Pursuing Independent Paths,B*Voluntary-Spot-V Dep-Enhanced - do not u,Bi-Borough Director of Integrated Care,"1,276.10"
17/12/2020,1248563,Pursuing Independent Paths,B*Voluntary-Spot-V Dep-Enhanced - do not u,Bi-Borough Director of Integrated Care,510.44
17/12/2020,1248563,Pursuing Independent Paths,B*Voluntary-Spot-V Dep-Enhanced - do not u,Bi-Borough Director of Integrated Care,"1,531.32"
17/12/2020,1248563,Pursuing Independent Paths,B*Voluntary-Spot-V Dep-Enhanced - do not u,Bi-Borough Director of Integrated Care,"1,252.72"
17/12/2020,1248563,Pursuing Independent Paths,B*Voluntary-Spot-V Dep-Enhanced - do not u,Bi-Borough Director of Integrated Care,510.44
17/12/2020,1248563,Pursuing Independent Paths,B*Voluntary-Spot-V Dep-Enhanced - do not u,Bi-Borough Director of Integrated Care,510.44
17/12/2020,1248563,Pursuing Independent Paths,B*Voluntary-Spot-V Dep-Enhanced - do not u,Bi-Borough Director of Integrated Care,"1,879.08"
17/12/2020,1248563,Pursuing Independent Paths,B*Voluntary-Spot-V Dep-Enhanced - do not u,Bi-Borough Director of Integrated Care,510.44
17/12/2020,1248563,Pursuing Independent Paths,B*Voluntary-Spot-V Dep-Enhanced - do not u,Bi-Borough Director of Integrated Care,510.44
17/12/2020,1248563,Pursuing Independent Paths,B*Voluntary-Spot-V Dep-Enhanced - do not u,Bi-Borough Director of Integrated Care,583.36
17/12/2020,1248563,Pursuing Independent Paths,B*Voluntary-Spot-V Dep-Enhanced - do not u,Bi-Borough Director of Integrated Care,"1,531.32"
17/12/2020,1248563,Pursuing Independent Paths,B*Voluntary-Spot-V Dep-Enhanced - do not u,Bi-Borough Director of Integrated Care,"2,041.76"
17/12/2020,1248563,Pursuing Independent Paths,B*Voluntary-Spot-V Dep-Enhanced - do not u,Bi-Borough Director of Integrated Care,"1,276.10"
17/12/2020,1248563,Pursuing Independent Paths,B*Voluntary-Spot-V Dep-Enhanced - do not u,Bi-Borough Director of Integrated Care,"1,531.32"
17/12/2020,1248563,Pursuing Independent Paths,B*Voluntary-Spot-V Dep-Enhanced - do not u,Bi-Borough Director of Integrated Care,"1,531.32"
14/10/2020,1245169,Rcp Residential Care Providers Ltd,,Bi-Borough Director of Integrated Care,930.96
14/10/2020,1245169,Rcp Residential Care Providers Ltd,,Bi-Borough Director of Integrated Care,"5,767.40"
11/11/2020,1245169,Rcp Residential Care Providers Ltd,,Bi-Borough Director of Integrated Care,"5,767.40"
11/11/2020,1245169,Rcp Residential Care Providers Ltd,,Bi-Borough Director of Integrated Care,930.96
09/12/2020,1245169,Rcp Residential Care Providers Ltd,,Bi-Borough Director of Integrated Care,930.96
09/12/2020,1245169,Rcp Residential Care Providers Ltd,,Bi-Borough Director of Integrated Care,"5,767.40"
11/11/2020,1269718,Reliant Care Limited,,Bi-Borough Director of Integrated Care,"3,392.86"
11/11/2020,1269718,Reliant Care Limited,,Bi-Borough Director of Integrated Care,"3,392.86"
09/12/2020,1269718,Reliant Care Limited,,Bi-Borough Director of Integrated Care,"2,500.00"
09/12/2020,1269718,Reliant Care Limited,,Bi-Borough Director of Integrated Care,"2,500.00"
05/10/2020,1245316,Respect Care Services Ltd,,Bi-Borough Director of Integrated Care,"1,506.04"
29/10/2020,1245316,Respect Care Services Ltd,,Bi-Borough Director of Integrated Care,"1,506.04"
02/11/2020,1245316,Respect Care Services Ltd,,Bi-Borough Director of Integrated Care,"1,506.04"
20/11/2020,1245316,Respect Care Services Ltd,,Bi-Borough Director of Integrated Care,"1,506.04"
01/12/2020,1245316,Respect Care Services Ltd,,Bi-Borough Director of Integrated Care,"1,506.04"
21/12/2020,1245316,Respect Care Services Ltd,,Bi-Borough Director of Integrated Care,"1,506.04"
23/12/2020,1245316,Respect Care Services Ltd,,Bi-Borough Director of Integrated Care,"1,506.04"
14/10/2020,1245172,Richmond Health Care Ltd,,Bi-Borough Director of Integrated Care,"4,512.00"
11/11/2020,1245172,Richmond Health Care Ltd,,Bi-Borough Director of Integrated Care,"4,512.00"
09/12/2020,1245172,Richmond Health Care Ltd,,Bi-Borough Director of Integrated Care,"4,512.00"
14/10/2020,1248621,Rnib Redhill College,,Bi-Borough Director of Integrated Care,"5,380.40"
11/11/2020,1248621,Rnib Redhill College,,Bi-Borough Director of Integrated Care,"5,380.40"
09/12/2020,1248621,Rnib Redhill College,,Bi-Borough Director of Integrated Care,"5,380.40"
15/10/2020,1248843,Sage Care Ltd,,Bi-Borough Director of Integrated Care,"1,526.10"
15/10/2020,1248843,Sage Care Ltd,,Bi-Borough Director of Integrated Care,787.90
15/10/2020,1248843,Sage Care Ltd,,Bi-Borough Director of Integrated Care,903.97
15/10/2020,1248843,Sage Care Ltd,,Bi-Borough Director of Integrated Care,"1,618.52"
15/10/2020,1248843,Sage Care Ltd,,Bi-Borough Director of Integrated Care,698.04
16/11/2020,1248843,Sage Care Ltd,,Bi-Borough Director of Integrated Care,"1,542.51"
16/11/2020,1248843,Sage Care Ltd,,Bi-Borough Director of Integrated Care,781.47
16/11/2020,1248843,Sage Care Ltd,,Bi-Borough Director of Integrated Care,915.83
16/11/2020,1248843,Sage Care Ltd,,Bi-Borough Director of Integrated Care,"1,576.99"
16/11/2020,1248843,Sage Care Ltd,,Bi-Borough Director of Integrated Care,673.65
14/10/2020,1262057,Sense - The National Deafbllind,,Bi-Borough Director of Integrated Care,"4,550.00"
14/10/2020,1262057,Sense - The National Deafbllind,,Bi-Borough Director of Integrated Care,"4,550.00"
11/11/2020,1262057,Sense - The National Deafbllind,,Bi-Borough Director of Integrated Care,"4,550.00"
11/11/2020,1262057,Sense - The National Deafbllind,,Bi-Borough Director of Integrated Care,"4,550.00"
09/12/2020,1262057,Sense - The National Deafbllind,,Bi-Borough Director of Integrated Care,"4,550.00"
09/12/2020,1262057,Sense - The National Deafbllind,,Bi-Borough Director of Integrated Care,"4,550.00"
14/10/2020,1243535,Sequence Care Ltd,,Bi-Borough Director of Integrated Care,"17,007.48"
14/10/2020,1243535,Sequence Care Ltd,,Bi-Borough Director of Integrated Care,"14,167.47"
14/10/2020,1243535,Sequence Care Ltd,,Bi-Borough Director of Integrated Care,"14,167.47"
11/11/2020,1243535,Sequence Care Ltd,,Bi-Borough Director of Integrated Care,"17,007.48"
11/11/2020,1243535,Sequence Care Ltd,,Bi-Borough Director of Integrated Care,"21,651.31"
11/11/2020,1243535,Sequence Care Ltd,,Bi-Borough Director of Integrated Care,"21,651.31"
09/12/2020,1243535,Sequence Care Ltd,,Bi-Borough Director of Integrated Care,"17,007.48"
09/12/2020,1243535,Sequence Care Ltd,,Bi-Borough Director of Integrated Care,"10,171.52"
09/12/2020,1243535,Sequence Care Ltd,,Bi-Borough Director of Integrated Care,"10,171.52"
14/10/2020,1245566,Shaw Care Uk Ltd,,Bi-Borough Director of Integrated Care,"3,200.00"
14/10/2020,1245566,Shaw Care Uk Ltd,,Bi-Borough Director of Integrated Care,"3,200.00"
11/11/2020,1245566,Shaw Care Uk Ltd,,Bi-Borough Director of Integrated Care,"3,200.00"
11/11/2020,1245566,Shaw Care Uk Ltd,,Bi-Borough Director of Integrated Care,"3,200.00"
09/12/2020,1245566,Shaw Care Uk Ltd,,Bi-Borough Director of Integrated Care,"3,200.00"
09/12/2020,1245566,Shaw Care Uk Ltd,,Bi-Borough Director of Integrated Care,"3,200.00"
14/10/2020,1248935,Southside Partnership,,Bi-Borough Director of Integrated Care,"2,546.68"
14/10/2020,1248935,Southside Partnership,,Bi-Borough Director of Integrated Care,800.00
14/10/2020,1248935,Southside Partnership,,Bi-Borough Director of Integrated Care,800.00
14/10/2020,1248935,Southside Partnership,,Bi-Borough Director of Integrated Care,"3,592.80"
11/11/2020,1248935,Southside Partnership,,Bi-Borough Director of Integrated Care,"2,546.68"
11/11/2020,1248935,Southside Partnership,,Bi-Borough Director of Integrated Care,800.00
11/11/2020,1248935,Southside Partnership,,Bi-Borough Director of Integrated Care,800.00
11/11/2020,1248935,Southside Partnership,,Bi-Borough Director of Integrated Care,"3,592.80"
11/11/2020,1248935,Southside Partnership,,Bi-Borough Director of Integrated Care,"3,461.46"
09/12/2020,1248935,Southside Partnership,,Bi-Borough Director of Integrated Care,800.00
09/12/2020,1248935,Southside Partnership,,Bi-Borough Director of Integrated Care,"2,546.68"
09/12/2020,1248935,Southside Partnership,,Bi-Borough Director of Integrated Care,"3,592.80"
09/12/2020,1248935,Southside Partnership,,Bi-Borough Director of Integrated Care,800.00
07/10/2020,1248940,Special People,B*Voluntary-Spot-V Dep-Enhanced - do not u,Bi-Borough Director of Integrated Care,"3,957.16"
27/10/2020,1248940,Special People,B*Voluntary-Spot-V Dep-Enhanced - do not u,Bi-Borough Director of Integrated Care,"1,855.41"
27/10/2020,1248940,Special People,B*Voluntary-Spot-V Dep-Enhanced - do not u,Bi-Borough Director of Integrated Care,"1,408.26"
06/11/2020,1248940,Special People,B*Voluntary-Spot-V Dep-Enhanced - do not u,Bi-Borough Director of Integrated Care,"4,613.10"
01/12/2020,1248940,Special People,B*Voluntary-Spot-V Dep-Enhanced - do not u,Bi-Borough Director of Integrated Care,"3,035.32"
08/12/2020,1248940,Special People,B*Voluntary-Spot-V Dep-Enhanced - do not u,Bi-Borough Director of Integrated Care,"1,827.44"
23/12/2020,1248940,Special People,B*Voluntary-Spot-V Dep-Enhanced - do not u,Bi-Borough Director of Integrated Care,"1,543.04"
14/10/2020,1245620,Spencer & Arlington,,Bi-Borough Director of Integrated Care,"12,835.20"
14/10/2020,1245620,Spencer & Arlington,,Bi-Borough Director of Integrated Care,"3,724.56"
14/10/2020,1245620,Spencer & Arlington,,Bi-Borough Director of Integrated Care,"6,627.60"
14/10/2020,1245620,Spencer & Arlington,,Bi-Borough Director of Integrated Care,"2,576.00"
11/11/2020,1245620,Spencer & Arlington,,Bi-Borough Director of Integrated Care,"2,576.00"
11/11/2020,1245620,Spencer & Arlington,,Bi-Borough Director of Integrated Care,"6,627.60"
11/11/2020,1245620,Spencer & Arlington,,Bi-Borough Director of Integrated Care,"12,835.20"
11/11/2020,1245620,Spencer & Arlington,,Bi-Borough Director of Integrated Care,"3,724.56"
09/12/2020,1245620,Spencer & Arlington,,Bi-Borough Director of Integrated Care,"6,627.60"
09/12/2020,1245620,Spencer & Arlington,,Bi-Borough Director of Integrated Care,"2,576.00"
09/12/2020,1245620,Spencer & Arlington,,Bi-Borough Director of Integrated Care,"12,835.20"
09/12/2020,1245620,Spencer & Arlington,,Bi-Borough Director of Integrated Care,"3,724.56"
14/10/2020,1243543,Springlake Care Home Ltd,,Bi-Borough Director of Integrated Care,"6,800.00"
14/10/2020,1243543,Springlake Care Home Ltd,,Bi-Borough Director of Integrated Care,"5,400.00"
14/10/2020,1243543,Springlake Care Home Ltd,,Bi-Borough Director of Integrated Care,"6,000.00"
11/11/2020,1243543,Springlake Care Home Ltd,,Bi-Borough Director of Integrated Care,"6,000.00"
11/11/2020,1243543,Springlake Care Home Ltd,,Bi-Borough Director of Integrated Care,"5,400.00"
11/11/2020,1243543,Springlake Care Home Ltd,,Bi-Borough Director of Integrated Care,"6,800.00"
09/12/2020,1243543,Springlake Care Home Ltd,,Bi-Borough Director of Integrated Care,"6,800.00"
09/12/2020,1243543,Springlake Care Home Ltd,,Bi-Borough Director of Integrated Care,"5,400.00"
09/12/2020,1243543,Springlake Care Home Ltd,,Bi-Borough Director of Integrated Care,"6,000.00"
14/10/2020,1248948,St Davids Care In The Community,,Bi-Borough Director of Integrated Care,"3,132.56"
14/10/2020,1248948,St Davids Care In The Community,,Bi-Borough Director of Integrated Care,"3,440.00"
11/11/2020,1248948,St Davids Care In The Community,,Bi-Borough Director of Integrated Care,"3,440.00"
11/11/2020,1248948,St Davids Care In The Community,,Bi-Borough Director of Integrated Care,"3,132.56"
09/12/2020,1248948,St Davids Care In The Community,,Bi-Borough Director of Integrated Care,"3,132.56"
09/12/2020,1248948,St Davids Care In The Community,,Bi-Borough Director of Integrated Care,"3,440.00"
21/10/2020,1245825,Sweet Tree Home Care Services,,Bi-Borough Director of Integrated Care,"4,638.64"
09/11/2020,1245825,Sweet Tree Home Care Services,,Bi-Borough Director of Integrated Care,"4,518.39"
21/12/2020,1245825,Sweet Tree Home Care Services,,Bi-Borough Director of Integrated Care,"4,403.31"
14/10/2020,1245900,The Grace Eyre Foundation,,Bi-Borough Director of Integrated Care,"3,290.16"
14/10/2020,1245900,The Grace Eyre Foundation,,Bi-Borough Director of Integrated Care,"4,235.96"
14/10/2020,1245900,The Grace Eyre Foundation,,Bi-Borough Director of Integrated Care,"2,800.00"
11/11/2020,1245900,The Grace Eyre Foundation,,Bi-Borough Director of Integrated Care,"4,235.96"
11/11/2020,1245900,The Grace Eyre Foundation,,Bi-Borough Director of Integrated Care,"2,400.00"
11/11/2020,1245900,The Grace Eyre Foundation,,Bi-Borough Director of Integrated Care,"3,290.16"
09/12/2020,1245900,The Grace Eyre Foundation,,Bi-Borough Director of Integrated Care,"2,400.00"
09/12/2020,1245900,The Grace Eyre Foundation,,Bi-Borough Director of Integrated Care,"4,235.96"
09/12/2020,1245900,The Grace Eyre Foundation,,Bi-Borough Director of Integrated Care,"3,290.16"
14/10/2020,1245929,The Regard Partnership Ltd,,Bi-Borough Director of Integrated Care,"3,932.76"
11/11/2020,1245929,The Regard Partnership Ltd,,Bi-Borough Director of Integrated Care,"3,932.76"
09/12/2020,1245929,The Regard Partnership Ltd,,Bi-Borough Director of Integrated Care,"3,932.76"
14/10/2020,1249156,The Wirral Autistic Society,,Bi-Borough Director of Integrated Care,"6,838.24"
11/11/2020,1249156,The Wirral Autistic Society,,Bi-Borough Director of Integrated Care,"5,554.72"
09/12/2020,1249156,The Wirral Autistic Society,,Bi-Borough Director of Integrated Care,"4,271.20"
14/10/2020,1246095,Theana Ltd T/a Enlighten Homes,,Bi-Borough Director of Integrated Care,"5,892.00"
11/11/2020,1246095,Theana Ltd T/a Enlighten Homes,,Bi-Borough Director of Integrated Care,"5,892.00"
09/12/2020,1246095,Theana Ltd T/a Enlighten Homes,,Bi-Borough Director of Integrated Care,"5,892.00"
22/10/2020,1249232,Vincentian Care Plus,,Bi-Borough Director of Integrated Care,587.48
16/11/2020,1249232,Vincentian Care Plus,,Bi-Borough Director of Integrated Care,584.78
21/12/2020,1249232,Vincentian Care Plus,,Bi-Borough Director of Integrated Care,581.44
14/10/2020,1243552,Vision Homes Association,,Bi-Borough Director of Integrated Care,"7,760.00"
11/11/2020,1243552,Vision Homes Association,,Bi-Borough Director of Integrated Care,"7,760.00"
09/12/2020,1243552,Vision Homes Association,,Bi-Borough Director of Integrated Care,"7,760.00"
14/10/2020,1243553,Voyage Care (Bridge House),,Bi-Borough Director of Integrated Care,"4,566.00"
11/11/2020,1243553,Voyage Care (Bridge House),,Bi-Borough Director of Integrated Care,"4,566.00"
09/12/2020,1243553,Voyage Care (Bridge House),,Bi-Borough Director of Integrated Care,"4,566.00"
14/10/2020,1243554,Voyage Care (Kenton House),,Bi-Borough Director of Integrated Care,"5,809.96"
11/11/2020,1243554,Voyage Care (Kenton House),,Bi-Borough Director of Integrated Care,"5,809.96"
09/12/2020,1243554,Voyage Care (Kenton House),,Bi-Borough Director of Integrated Care,"5,809.96"
06/10/2020,1249291,Westminster Society,Rent,Bi-Borough Director of Integrated Care,"5,760.29"
14/10/2020,1249291,Westminster Society,,Bi-Borough Director of Integrated Care,"3,133.92"
14/10/2020,1249291,Westminster Society,,Bi-Borough Director of Integrated Care,853.96
14/10/2020,1249291,Westminster Society,,Bi-Borough Director of Integrated Care,"3,184.72"
14/10/2020,1249291,Westminster Society,,Bi-Borough Director of Integrated Care,"2,236.08"
14/10/2020,1249291,Westminster Society,,Bi-Borough Director of Integrated Care,"1,624.56"
14/10/2020,1249291,Westminster Society,,Bi-Borough Director of Integrated Care,"1,897.28"
14/10/2020,1249291,Westminster Society,,Bi-Borough Director of Integrated Care,713.64
14/10/2020,1249291,Westminster Society,,Bi-Borough Director of Integrated Care,853.96
14/10/2020,1249291,Westminster Society,,Bi-Borough Director of Integrated Care,"8,537.76"
14/10/2020,1249291,Westminster Society,,Bi-Borough Director of Integrated Care,721.00
14/10/2020,1249291,Westminster Society,,Bi-Borough Director of Integrated Care,"1,253.56"
14/10/2020,1249291,Westminster Society,,Bi-Borough Director of Integrated Care,"1,829.52"
14/10/2020,1249291,Westminster Society,,Bi-Borough Director of Integrated Care,540.76
14/10/2020,1249291,Westminster Society,,Bi-Borough Director of Integrated Care,"3,930.08"
14/10/2020,1249291,Westminster Society,,Bi-Borough Director of Integrated Care,"3,083.08"
14/10/2020,1249291,Westminster Society,,Bi-Borough Director of Integrated Care,"1,406.04"
14/10/2020,1249291,Westminster Society,,Bi-Borough Director of Integrated Care,"4,336.64"
14/10/2020,1249291,Westminster Society,,Bi-Borough Director of Integrated Care,"3,320.24"
14/10/2020,1249291,Westminster Society,,Bi-Borough Director of Integrated Care,713.64
14/10/2020,1249291,Westminster Society,,Bi-Borough Director of Integrated Care,"3,394.76"
14/10/2020,1249291,Westminster Society,,Bi-Borough Director of Integrated Care,853.96
14/10/2020,1249291,Westminster Society,,Bi-Borough Director of Integrated Care,"2,236.08"
14/10/2020,1249291,Westminster Society,,Bi-Borough Director of Integrated Care,721.00
14/10/2020,1249291,Westminster Society,,Bi-Borough Director of Integrated Care,"1,067.44"
14/10/2020,1249291,Westminster Society,,Bi-Borough Director of Integrated Care,721.00
14/10/2020,1249291,Westminster Society,,Bi-Borough Director of Integrated Care,"5,601.72"
14/10/2020,1249291,Westminster Society,,Bi-Borough Director of Integrated Care,"4,901.08"
14/10/2020,1249291,Westminster Society,,Bi-Borough Director of Integrated Care,721.00
14/10/2020,1249291,Westminster Society,,Bi-Borough Director of Integrated Care,"1,421.20"
14/10/2020,1249291,Westminster Society,,Bi-Borough Director of Integrated Care,540.76
14/10/2020,1249291,Westminster Society,,Bi-Borough Director of Integrated Care,"3,320.24"
14/10/2020,1249291,Westminster Society,,Bi-Borough Director of Integrated Care,"3,879.28"
14/10/2020,1249291,Westminster Society,,Bi-Borough Director of Integrated Care,853.96
14/10/2020,1249291,Westminster Society,,Bi-Borough Director of Integrated Care,"1,490.72"
14/10/2020,1249291,Westminster Society,,Bi-Borough Director of Integrated Care,540.76
14/10/2020,1249291,Westminster Society,,Bi-Borough Director of Integrated Care,"6,213.60"
14/10/2020,1249291,Westminster Society,,Bi-Borough Director of Integrated Care,713.64
14/10/2020,1249291,Westminster Society,,Bi-Borough Director of Integrated Care,"1,118.04"
14/10/2020,1249291,Westminster Society,,Bi-Borough Director of Integrated Care,853.96
14/10/2020,1249291,Westminster Society,,Bi-Borough Director of Integrated Care,721.00
14/10/2020,1249291,Westminster Society,,Bi-Borough Director of Integrated Care,"7,833.04"
14/10/2020,1249291,Westminster Society,,Bi-Borough Director of Integrated Care,"1,626.24"
14/10/2020,1249291,Westminster Society,,Bi-Borough Director of Integrated Care,"3,659.76"
14/10/2020,1249291,Westminster Society,,Bi-Borough Director of Integrated Care,"1,219.68"
14/10/2020,1249291,Westminster Society,,Bi-Borough Director of Integrated Care,540.76
14/10/2020,1249291,Westminster Society,,Bi-Borough Director of Integrated Care,"3,320.24"
14/10/2020,1249291,Westminster Society,,Bi-Borough Director of Integrated Care,"3,049.20"
14/10/2020,1249291,Westminster Society,,Bi-Borough Director of Integrated Care,"3,252.48"
14/10/2020,1249291,Westminster Society,,Bi-Borough Director of Integrated Care,542.08
14/10/2020,1249291,Westminster Society,,Bi-Borough Director of Integrated Care,"1,185.80"
14/10/2020,1249291,Westminster Society,,Bi-Borough Director of Integrated Care,540.76
14/10/2020,1249291,Westminster Society,,Bi-Borough Director of Integrated Care,"1,897.28"
14/10/2020,1249291,Westminster Society,,Bi-Borough Director of Integrated Care,713.64
14/10/2020,1249291,Westminster Society,,Bi-Borough Director of Integrated Care,"4,987.12"
14/10/2020,1249291,Westminster Society,,Bi-Borough Director of Integrated Care,542.08
14/10/2020,1249291,Westminster Society,,Bi-Borough Director of Integrated Care,"3,388.00"
14/10/2020,1249291,Westminster Society,,Bi-Borough Director of Integrated Care,"2,032.80"
14/10/2020,1249291,Westminster Society,,Bi-Borough Director of Integrated Care,540.76
14/10/2020,1249291,Westminster Society,,Bi-Borough Director of Integrated Care,713.64
14/10/2020,1249291,Westminster Society,,Bi-Borough Director of Integrated Care,"6,233.92"
14/10/2020,1249291,Westminster Society,,Bi-Borough Director of Integrated Care,"3,659.04"
14/10/2020,1249291,Westminster Society,,Bi-Borough Director of Integrated Care,853.96
14/10/2020,1249291,Westminster Society,,Bi-Borough Director of Integrated Care,"3,676.00"
14/10/2020,1249291,Westminster Society,,Bi-Borough Director of Integrated Care,"3,794.56"
14/10/2020,1249291,Westminster Society,,Bi-Borough Director of Integrated Care,"1,422.96"
14/10/2020,1249291,Westminster Society,,Bi-Borough Director of Integrated Care,"1,761.76"
14/10/2020,1249291,Westminster Society,,Bi-Borough Director of Integrated Care,"5,488.56"
14/10/2020,1249291,Westminster Society,,Bi-Borough Director of Integrated Care,713.64
14/10/2020,1249291,Westminster Society,,Bi-Borough Director of Integrated Care,"3,442.20"
14/10/2020,1249291,Westminster Society,,Bi-Borough Director of Integrated Care,713.64
14/10/2020,1249291,Westminster Society,,Bi-Borough Director of Integrated Care,"5,522.44"
14/10/2020,1249291,Westminster Society,,Bi-Borough Director of Integrated Care,"2,710.40"
14/10/2020,1249291,Westminster Society,,Bi-Borough Director of Integrated Care,"2,330.96"
14/10/2020,1249291,Westminster Society,,Bi-Borough Director of Integrated Care,"1,624.56"
14/10/2020,1249291,Westminster Society,,Bi-Borough Director of Integrated Care,"4,268.88"
14/10/2020,1249291,Westminster Society,,Bi-Borough Director of Integrated Care,"2,236.08"
14/10/2020,1249291,Westminster Society,,Bi-Borough Director of Integrated Care,"4,289.20"
14/10/2020,1249291,Westminster Society,,Bi-Borough Director of Integrated Care,948.64
14/10/2020,1249291,Westminster Society,,Bi-Borough Director of Integrated Care,"1,067.44"
14/10/2020,1249291,Westminster Society,,Bi-Borough Director of Integrated Care,721.00
14/10/2020,1249291,Westminster Society,,Bi-Borough Director of Integrated Care,"5,601.72"
14/10/2020,1249291,Westminster Society,,Bi-Borough Director of Integrated Care,982.52
14/10/2020,1249291,Westminster Society,,Bi-Borough Director of Integrated Care,"3,455.76"
14/10/2020,1249291,Westminster Society,,Bi-Borough Director of Integrated Care,"1,421.20"
14/10/2020,1249291,Westminster Society,,Bi-Borough Director of Integrated Care,"4,901.08"
14/10/2020,1249291,Westminster Society,,Bi-Borough Director of Integrated Care,"3,455.76"
14/10/2020,1249291,Westminster Society,,Bi-Borough Director of Integrated Care,"3,902.96"
14/10/2020,1249291,Westminster Society,,Bi-Borough Director of Integrated Care,721.00
14/10/2020,1249291,Westminster Society,,Bi-Borough Director of Integrated Care,853.96
14/10/2020,1249291,Westminster Society,,Bi-Borough Director of Integrated Care,609.84
14/10/2020,1249291,Westminster Society,,Bi-Borough Director of Integrated Care,"2,574.88"
14/10/2020,1249291,Westminster Society,,Bi-Borough Director of Integrated Care,540.76
14/10/2020,1249291,Westminster Society,,Bi-Borough Director of Integrated Care,"4,269.72"
14/10/2020,1249291,Westminster Society,,Bi-Borough Director of Integrated Care,853.96
14/10/2020,1249291,Westminster Society,,Bi-Borough Director of Integrated Care,"3,608.24"
14/10/2020,1249291,Westminster Society,,Bi-Borough Director of Integrated Care,"2,507.12"
14/10/2020,1249291,Westminster Society,,Bi-Borough Director of Integrated Care,"2,371.60"
14/10/2020,1249291,Westminster Society,,Bi-Borough Director of Integrated Care,713.64
14/10/2020,1249291,Westminster Society,,Bi-Borough Director of Integrated Care,"2,676.52"
14/10/2020,1249291,Westminster Society,,Bi-Borough Director of Integrated Care,"2,032.80"
14/10/2020,1249291,Westminster Society,,Bi-Borough Director of Integrated Care,"4,106.24"
14/10/2020,1249291,Westminster Society,,Bi-Borough Director of Integrated Care,853.96
14/10/2020,1249291,Westminster Society,,Bi-Borough Director of Integrated Care,721.00
14/10/2020,1249291,Westminster Society,,Bi-Borough Director of Integrated Care,"3,394.76"
14/10/2020,1249291,Westminster Society,,Bi-Borough Director of Integrated Care,713.64
14/10/2020,1249291,Westminster Society,,Bi-Borough Director of Integrated Care,"2,778.16"
14/10/2020,1249291,Westminster Society,,Bi-Borough Director of Integrated Care,"2,303.84"
14/10/2020,1249291,Westminster Society,,Bi-Borough Director of Integrated Care,"3,902.96"
14/10/2020,1249291,Westminster Society,,Bi-Borough Director of Integrated Care,853.96
14/10/2020,1249291,Westminster Society,,Bi-Borough Director of Integrated Care,721.00
14/10/2020,1249291,Westminster Society,,Bi-Borough Director of Integrated Care,"5,901.88"
14/10/2020,1249291,Westminster Society,,Bi-Borough Director of Integrated Care,"1,067.44"
14/10/2020,1249291,Westminster Society,,Bi-Borough Director of Integrated Care,721.00
14/10/2020,1249291,Westminster Society,,Bi-Borough Director of Integrated Care,"2,100.56"
14/10/2020,1249291,Westminster Society,,Bi-Borough Director of Integrated Care,"1,965.04"
14/10/2020,1249291,Westminster Society,,Bi-Borough Director of Integrated Care,"1,067.44"
14/10/2020,1249291,Westminster Society,,Bi-Borough Director of Integrated Care,721.00
14/10/2020,1249291,Westminster Society,,Bi-Borough Director of Integrated Care,"5,601.72"
14/10/2020,1249291,Westminster Society,,Bi-Borough Director of Integrated Care,853.96
14/10/2020,1249291,Westminster Society,,Bi-Borough Director of Integrated Care,"3,862.32"
14/10/2020,1249291,Westminster Society,,Bi-Borough Director of Integrated Care,"6,640.48"
14/10/2020,1249291,Westminster Society,,Bi-Borough Director of Integrated Care,713.64
14/10/2020,1249291,Westminster Society,,Bi-Borough Director of Integrated Care,540.76
14/10/2020,1249291,Westminster Society,,Bi-Borough Director of Integrated Care,"6,877.64"
14/10/2020,1249291,Westminster Society,,Bi-Borough Director of Integrated Care,540.76
14/10/2020,1249291,Westminster Society,,Bi-Borough Director of Integrated Care,"7,995.68"
14/10/2020,1249291,Westminster Society,,Bi-Borough Director of Integrated Care,"1,624.56"
14/10/2020,1249291,Westminster Society,,Bi-Borough Director of Integrated Care,677.60
14/10/2020,1249291,Westminster Society,,Bi-Borough Director of Integrated Care,853.96
14/10/2020,1249291,Westminster Society,,Bi-Borough Director of Integrated Care,"4,963.44"
14/10/2020,1249291,Westminster Society,,Bi-Borough Director of Integrated Care,"1,829.52"
14/10/2020,1249291,Westminster Society,,Bi-Borough Director of Integrated Care,"2,100.56"
14/10/2020,1249291,Westminster Society,,Bi-Borough Director of Integrated Care,948.64
14/10/2020,1249291,Westminster Society,,Bi-Borough Director of Integrated Care,"1,219.68"
14/10/2020,1249291,Westminster Society,,Bi-Borough Director of Integrated Care,542.08
14/10/2020,1249291,Westminster Society,,Bi-Borough Director of Integrated Care,779.24
21/10/2020,1249291,Westminster Society,B*Voluntary-Spot-V Dep-Enhanced - do not u,Bi-Borough Director of Integrated Care,612.00
21/10/2020,1249291,Westminster Society,B*Voluntary-Spot-V Dep-Enhanced - do not u,Bi-Borough Director of Integrated Care,612.00
21/10/2020,1249291,Westminster Society,B*Voluntary-Spot-V Dep-Enhanced - do not u,Bi-Borough Director of Integrated Care,816.00
21/10/2020,1249291,Westminster Society,B*Voluntary-Spot-V Dep-Enhanced - do not u,Bi-Borough Director of Integrated Care,544.00
21/10/2020,1249291,Westminster Society,B*Voluntary-Spot-V Dep-Enhanced - do not u,Bi-Borough Director of Integrated Care,"8,874.00"
21/10/2020,1249291,Westminster Society,B*Voluntary-Spot-V Dep-Enhanced - do not u,Bi-Borough Director of Integrated Care,680.00
21/10/2020,1249291,Westminster Society,B*Voluntary-Spot-V Dep-Enhanced - do not u,Bi-Borough Director of Integrated Care,612.00
21/10/2020,1249291,Westminster Society,B*Voluntary-Spot-V Dep-Enhanced - do not u,Bi-Borough Director of Integrated Care,748.00
21/10/2020,1249291,Westminster Society,B*Voluntary-Spot-V Dep-Enhanced - do not u,Bi-Borough Director of Integrated Care,612.00
21/10/2020,1249291,Westminster Society,B*Voluntary-Spot-V Dep-Enhanced - do not u,Bi-Borough Director of Integrated Care,544.00
21/10/2020,1249291,Westminster Society,B*Voluntary-Spot-V Dep-Enhanced - do not u,Bi-Borough Director of Integrated Care,816.00
21/10/2020,1249291,Westminster Society,B*Voluntary-Spot-V Dep-Enhanced - do not u,Bi-Borough Director of Integrated Care,680.00
21/10/2020,1249291,Westminster Society,B*Voluntary-Spot-V Dep-Enhanced - do not u,Bi-Borough Director of Integrated Care,680.00
21/10/2020,1249291,Westminster Society,B*Voluntary-Spot-V Dep-Enhanced - do not u,Bi-Borough Director of Integrated Care,510.00
21/10/2020,1249291,Westminster Society,B*Voluntary-Spot-V Dep-Enhanced - do not u,Bi-Borough Director of Integrated Care,816.00
21/10/2020,1249291,Westminster Society,B*Voluntary-Spot-V Dep-Enhanced - do not u,Bi-Borough Director of Integrated Care,"2,040.00"
21/10/2020,1249291,Westminster Society,B*Voluntary-Spot-V Dep-Enhanced - do not u,Bi-Borough Director of Integrated Care,612.00
21/10/2020,1249291,Westminster Society,B*Voluntary-Spot-V Dep-Enhanced - do not u,Bi-Borough Director of Integrated Care,544.00
11/11/2020,1249291,Westminster Society,,Bi-Borough Director of Integrated Care,982.52
11/11/2020,1249291,Westminster Society,,Bi-Borough Director of Integrated Care,"1,761.76"
11/11/2020,1249291,Westminster Society,,Bi-Borough Director of Integrated Care,948.64
11/11/2020,1249291,Westminster Society,,Bi-Borough Director of Integrated Care,"2,330.96"
11/11/2020,1249291,Westminster Society,,Bi-Borough Director of Integrated Care,"4,289.20"
11/11/2020,1249291,Westminster Society,,Bi-Borough Director of Integrated Care,"5,488.56"
11/11/2020,1249291,Westminster Society,,Bi-Borough Director of Integrated Care,"5,601.72"
11/11/2020,1249291,Westminster Society,,Bi-Borough Director of Integrated Care,"1,067.44"
11/11/2020,1249291,Westminster Society,,Bi-Borough Director of Integrated Care,721.00
11/11/2020,1249291,Westminster Society,,Bi-Borough Director of Integrated Care,713.64
11/11/2020,1249291,Westminster Society,,Bi-Borough Director of Integrated Care,"3,442.20"
11/11/2020,1249291,Westminster Society,,Bi-Borough Director of Integrated Care,713.64
11/11/2020,1249291,Westminster Society,,Bi-Borough Director of Integrated Care,"5,522.44"
11/11/2020,1249291,Westminster Society,,Bi-Borough Director of Integrated Care,"6,013.70"
11/11/2020,1249291,Westminster Society,,Bi-Borough Director of Integrated Care,"2,507.12"
11/11/2020,1249291,Westminster Society,,Bi-Borough Director of Integrated Care,"2,574.88"
11/11/2020,1249291,Westminster Society,,Bi-Borough Director of Integrated Care,540.76
11/11/2020,1249291,Westminster Society,,Bi-Borough Director of Integrated Care,"4,269.72"
11/11/2020,1249291,Westminster Society,,Bi-Borough Director of Integrated Care,"1,965.04"
11/11/2020,1249291,Westminster Society,,Bi-Borough Director of Integrated Care,853.96
11/11/2020,1249291,Westminster Society,,Bi-Borough Director of Integrated Care,"3,608.24"
11/11/2020,1249291,Westminster Society,,Bi-Borough Director of Integrated Care,"2,303.84"
11/11/2020,1249291,Westminster Society,,Bi-Borough Director of Integrated Care,"2,371.60"
11/11/2020,1249291,Westminster Society,,Bi-Borough Director of Integrated Care,"2,778.16"
11/11/2020,1249291,Westminster Society,,Bi-Borough Director of Integrated Care,"2,032.80"
11/11/2020,1249291,Westminster Society,,Bi-Borough Director of Integrated Care,713.64
11/11/2020,1249291,Westminster Society,,Bi-Borough Director of Integrated Care,"3,394.76"
11/11/2020,1249291,Westminster Society,,Bi-Borough Director of Integrated Care,853.96
11/11/2020,1249291,Westminster Society,,Bi-Borough Director of Integrated Care,721.00
11/11/2020,1249291,Westminster Society,,Bi-Borough Director of Integrated Care,"3,902.96"
11/11/2020,1249291,Westminster Society,,Bi-Borough Director of Integrated Care,"4,106.24"
11/11/2020,1249291,Westminster Society,,Bi-Borough Director of Integrated Care,853.96
11/11/2020,1249291,Westminster Society,,Bi-Borough Director of Integrated Care,721.00
11/11/2020,1249291,Westminster Society,,Bi-Borough Director of Integrated Care,"1,067.44"
11/11/2020,1249291,Westminster Society,,Bi-Borough Director of Integrated Care,721.00
11/11/2020,1249291,Westminster Society,,Bi-Borough Director of Integrated Care,"5,901.88"
11/11/2020,1249291,Westminster Society,,Bi-Borough Director of Integrated Care,713.64
11/11/2020,1249291,Westminster Society,,Bi-Borough Director of Integrated Care,"2,676.52"
11/11/2020,1249291,Westminster Society,,Bi-Borough Director of Integrated Care,"1,067.44"
11/11/2020,1249291,Westminster Society,,Bi-Borough Director of Integrated Care,721.00
11/11/2020,1249291,Westminster Society,,Bi-Borough Director of Integrated Care,"5,601.72"
11/11/2020,1249291,Westminster Society,,Bi-Borough Director of Integrated Care,713.64
11/11/2020,1249291,Westminster Society,,Bi-Borough Director of Integrated Care,"6,640.48"
11/11/2020,1249291,Westminster Society,,Bi-Borough Director of Integrated Care,"3,049.20"
11/11/2020,1249291,Westminster Society,,Bi-Borough Director of Integrated Care,677.60
11/11/2020,1249291,Westminster Society,,Bi-Borough Director of Integrated Care,"1,829.52"
11/11/2020,1249291,Westminster Society,,Bi-Borough Director of Integrated Care,"1,624.56"
11/11/2020,1249291,Westminster Society,,Bi-Borough Director of Integrated Care,"7,995.68"
11/11/2020,1249291,Westminster Society,,Bi-Borough Director of Integrated Care,540.76
11/11/2020,1249291,Westminster Society,,Bi-Borough Director of Integrated Care,"6,877.64"
11/11/2020,1249291,Westminster Society,,Bi-Borough Director of Integrated Care,540.76
11/11/2020,1249291,Westminster Society,,Bi-Borough Director of Integrated Care,"4,963.44"
11/11/2020,1249291,Westminster Society,,Bi-Borough Director of Integrated Care,853.96
11/11/2020,1249291,Westminster Society,,Bi-Borough Director of Integrated Care,948.64
11/11/2020,1249291,Westminster Society,,Bi-Borough Director of Integrated Care,"1,219.68"
11/11/2020,1249291,Westminster Society,,Bi-Borough Director of Integrated Care,542.08
11/11/2020,1249291,Westminster Society,,Bi-Borough Director of Integrated Care,"2,100.56"
11/11/2020,1249291,Westminster Society,,Bi-Borough Director of Integrated Care,779.24
11/11/2020,1249291,Westminster Society,,Bi-Borough Director of Integrated Care,853.96
11/11/2020,1249291,Westminster Society,,Bi-Borough Director of Integrated Care,"3,862.32"
11/11/2020,1249291,Westminster Society,,Bi-Borough Director of Integrated Care,"3,320.24"
11/11/2020,1249291,Westminster Society,,Bi-Borough Director of Integrated Care,"4,336.64"
11/11/2020,1249291,Westminster Society,,Bi-Borough Director of Integrated Care,"1,406.04"
11/11/2020,1249291,Westminster Society,,Bi-Borough Director of Integrated Care,"2,236.08"
11/11/2020,1249291,Westminster Society,,Bi-Borough Director of Integrated Care,853.96
11/11/2020,1249291,Westminster Society,,Bi-Borough Director of Integrated Care,"3,388.00"
11/11/2020,1249291,Westminster Society,,Bi-Borough Director of Integrated Care,"3,794.56"
11/11/2020,1249291,Westminster Society,,Bi-Borough Director of Integrated Care,542.08
11/11/2020,1249291,Westminster Society,,Bi-Borough Director of Integrated Care,"1,422.96"
11/11/2020,1249291,Westminster Society,,Bi-Borough Director of Integrated Care,713.64
11/11/2020,1249291,Westminster Society,,Bi-Borough Director of Integrated Care,"4,987.12"
11/11/2020,1249291,Westminster Society,,Bi-Borough Director of Integrated Care,713.64
11/11/2020,1249291,Westminster Society,,Bi-Borough Director of Integrated Care,"6,233.92"
11/11/2020,1249291,Westminster Society,,Bi-Borough Director of Integrated Care,853.96
11/11/2020,1249291,Westminster Society,,Bi-Borough Director of Integrated Care,"3,659.04"
11/11/2020,1249291,Westminster Society,,Bi-Borough Director of Integrated Care,540.76
11/11/2020,1249291,Westminster Society,,Bi-Borough Director of Integrated Care,"2,032.80"
11/11/2020,1249291,Westminster Society,,Bi-Borough Director of Integrated Care,"3,676.00"
11/11/2020,1249291,Westminster Society,,Bi-Borough Director of Integrated Care,540.76
11/11/2020,1249291,Westminster Society,,Bi-Borough Director of Integrated Care,"1,897.28"
11/11/2020,1249291,Westminster Society,,Bi-Borough Director of Integrated Care,"3,320.24"
11/11/2020,1249291,Westminster Society,,Bi-Borough Director of Integrated Care,542.08
11/11/2020,1249291,Westminster Society,,Bi-Borough Director of Integrated Care,"4,269.72"
11/11/2020,1249291,Westminster Society,,Bi-Borough Director of Integrated Care,"1,422.96"
11/11/2020,1249291,Westminster Society,,Bi-Borough Director of Integrated Care,"1,421.20"
11/11/2020,1249291,Westminster Society,,Bi-Borough Director of Integrated Care,721.00
11/11/2020,1249291,Westminster Society,,Bi-Borough Director of Integrated Care,"4,901.08"
11/11/2020,1249291,Westminster Society,,Bi-Borough Director of Integrated Care,721.00
11/11/2020,1249291,Westminster Society,,Bi-Borough Director of Integrated Care,853.96
11/11/2020,1249291,Westminster Society,,Bi-Borough Director of Integrated Care,"3,879.28"
11/11/2020,1249291,Westminster Society,,Bi-Borough Director of Integrated Care,"1,185.80"
11/11/2020,1249291,Westminster Society,,Bi-Borough Director of Integrated Care,"3,252.48"
11/11/2020,1249291,Westminster Society,,Bi-Borough Director of Integrated Care,713.64
11/11/2020,1249291,Westminster Society,,Bi-Borough Director of Integrated Care,"6,213.60"
11/11/2020,1249291,Westminster Society,,Bi-Borough Director of Integrated Care,"2,236.08"
11/11/2020,1249291,Westminster Society,,Bi-Borough Director of Integrated Care,853.96
11/11/2020,1249291,Westminster Society,,Bi-Borough Director of Integrated Care,"3,133.92"
11/11/2020,1249291,Westminster Society,,Bi-Borough Director of Integrated Care,"1,624.56"
11/11/2020,1249291,Westminster Society,,Bi-Borough Director of Integrated Care,"1,897.28"
11/11/2020,1249291,Westminster Society,,Bi-Borough Director of Integrated Care,713.64
11/11/2020,1249291,Westminster Society,,Bi-Borough Director of Integrated Care,"3,184.72"
11/11/2020,1249291,Westminster Society,,Bi-Borough Director of Integrated Care,"3,455.76"
11/11/2020,1249291,Westminster Society,,Bi-Borough Director of Integrated Care,"1,829.52"
11/11/2020,1249291,Westminster Society,,Bi-Borough Director of Integrated Care,"4,901.08"
11/11/2020,1249291,Westminster Society,,Bi-Borough Director of Integrated Care,"1,421.20"
11/11/2020,1249291,Westminster Society,,Bi-Borough Director of Integrated Care,"1,253.56"
11/11/2020,1249291,Westminster Society,,Bi-Borough Director of Integrated Care,"1,141.63"
11/11/2020,1249291,Westminster Society,,Bi-Borough Director of Integrated Care,"3,083.08"
11/11/2020,1249291,Westminster Society,,Bi-Borough Director of Integrated Care,"3,455.76"
11/11/2020,1249291,Westminster Society,,Bi-Borough Director of Integrated Care,"3,930.08"
11/11/2020,1249291,Westminster Society,,Bi-Borough Director of Integrated Care,540.76
11/11/2020,1249291,Westminster Society,,Bi-Borough Director of Integrated Care,609.84
11/11/2020,1249291,Westminster Society,,Bi-Borough Director of Integrated Care,721.00
11/11/2020,1249291,Westminster Society,,Bi-Borough Director of Integrated Care,853.96
11/11/2020,1249291,Westminster Society,,Bi-Borough Director of Integrated Care,"8,537.76"
11/11/2020,1249291,Westminster Society,,Bi-Borough Director of Integrated Care,853.96
11/11/2020,1249291,Westminster Society,,Bi-Borough Director of Integrated Care,721.00
11/11/2020,1249291,Westminster Society,,Bi-Borough Director of Integrated Care,"3,902.96"
11/11/2020,1249291,Westminster Society,,Bi-Borough Director of Integrated Care,"1,624.56"
11/11/2020,1249291,Westminster Society,,Bi-Borough Director of Integrated Care,"20,311.06"
11/11/2020,1249291,Westminster Society,,Bi-Borough Director of Integrated Care,"2,710.40"
11/11/2020,1249291,Westminster Society,,Bi-Borough Director of Integrated Care,"2,236.08"
11/11/2020,1249291,Westminster Society,,Bi-Borough Director of Integrated Care,713.64
11/11/2020,1249291,Westminster Society,,Bi-Borough Director of Integrated Care,"3,394.76"
11/11/2020,1249291,Westminster Society,,Bi-Borough Director of Integrated Care,540.76
11/11/2020,1249291,Westminster Society,,Bi-Borough Director of Integrated Care,"1,490.72"
11/11/2020,1249291,Westminster Society,,Bi-Borough Director of Integrated Care,"1,118.04"
11/11/2020,1249291,Westminster Society,,Bi-Borough Director of Integrated Care,"7,833.04"
11/11/2020,1249291,Westminster Society,,Bi-Borough Director of Integrated Care,721.00
11/11/2020,1249291,Westminster Society,,Bi-Borough Director of Integrated Care,853.96
11/11/2020,1249291,Westminster Society,,Bi-Borough Director of Integrated Care,"1,067.44"
11/11/2020,1249291,Westminster Society,,Bi-Borough Director of Integrated Care,"5,601.72"
11/11/2020,1249291,Westminster Society,,Bi-Borough Director of Integrated Care,721.00
11/11/2020,1249291,Westminster Society,,Bi-Borough Director of Integrated Care,540.76
11/11/2020,1249291,Westminster Society,,Bi-Borough Director of Integrated Care,"1,219.68"
11/11/2020,1249291,Westminster Society,,Bi-Borough Director of Integrated Care,540.76
11/11/2020,1249291,Westminster Society,,Bi-Borough Director of Integrated Care,"3,320.24"
13/11/2020,1249291,Westminster Society,B*Voluntary-Spot-V Dep-Enhanced - do not u,Bi-Borough Director of Integrated Care,"1,224.00"
13/11/2020,1249291,Westminster Society,B*Voluntary-Spot-V Dep-Enhanced - do not u,Bi-Borough Director of Integrated Care,510.00
13/11/2020,1249291,Westminster Society,B*Voluntary-Spot-V Dep-Enhanced - do not u,Bi-Borough Director of Integrated Care,765.00
13/11/2020,1249291,Westminster Society,B*Voluntary-Spot-V Dep-Enhanced - do not u,Bi-Borough Director of Integrated Care,510.00
13/11/2020,1249291,Westminster Society,B*Voluntary-Spot-V Dep-Enhanced - do not u,Bi-Borough Director of Integrated Care,510.00
13/11/2020,1249291,Westminster Society,B*Voluntary-Spot-V Dep-Enhanced - do not u,Bi-Borough Director of Integrated Care,510.00
13/11/2020,1249291,Westminster Society,B*Voluntary-Spot-V Dep-Enhanced - do not u,Bi-Borough Director of Integrated Care,510.00
13/11/2020,1249291,Westminster Society,B*Voluntary-Spot-V Dep-Enhanced - do not u,Bi-Borough Director of Integrated Care,510.00
13/11/2020,1249291,Westminster Society,B*Voluntary-Spot-V Dep-Enhanced - do not u,Bi-Borough Director of Integrated Care,510.00
13/11/2020,1249291,Westminster Society,B*Voluntary-Spot-V Dep-Enhanced - do not u,Bi-Borough Director of Integrated Care,510.00
13/11/2020,1249291,Westminster Society,B*Voluntary-Spot-V Dep-Enhanced - do not u,Bi-Borough Director of Integrated Care,510.00
13/11/2020,1249291,Westminster Society,B*Voluntary-Spot-V Dep-Enhanced - do not u,Bi-Borough Director of Integrated Care,510.00
13/11/2020,1249291,Westminster Society,B*Voluntary-Spot-V Dep-Enhanced - do not u,Bi-Borough Director of Integrated Care,510.00
13/11/2020,1249291,Westminster Society,B*Voluntary-Spot-V Dep-Enhanced - do not u,Bi-Borough Director of Integrated Care,765.00
13/11/2020,1249291,Westminster Society,B*Voluntary-Spot-V Dep-Enhanced - do not u,Bi-Borough Director of Integrated Care,510.00
13/11/2020,1249291,Westminster Society,B*Voluntary-Spot-V Dep-Enhanced - do not u,Bi-Borough Director of Integrated Care,510.00
13/11/2020,1249291,Westminster Society,B*Voluntary-Spot-V Dep-Enhanced - do not u,Bi-Borough Director of Integrated Care,510.00
13/11/2020,1249291,Westminster Society,B*Voluntary-Spot-V Dep-Enhanced - do not u,Bi-Borough Director of Integrated Care,510.00
13/11/2020,1249291,Westminster Society,B*Voluntary-Spot-V Dep-Enhanced - do not u,Bi-Borough Director of Integrated Care,"1,020.00"
13/11/2020,1249291,Westminster Society,B*Voluntary-Spot-V Dep-Enhanced - do not u,Bi-Borough Director of Integrated Care,816.00
13/11/2020,1249291,Westminster Society,B*Voluntary-Spot-V Dep-Enhanced - do not u,Bi-Borough Director of Integrated Care,986.00
13/11/2020,1249291,Westminster Society,B*Voluntary-Spot-V Dep-Enhanced - do not u,Bi-Borough Director of Integrated Care,"11,092.50"
13/11/2020,1249291,Westminster Society,B*Voluntary-Spot-V Dep-Enhanced - do not u,Bi-Borough Director of Integrated Care,"1,003.00"
13/11/2020,1249291,Westminster Society,B*Voluntary-Spot-V Dep-Enhanced - do not u,Bi-Borough Director of Integrated Care,510.00
13/11/2020,1249291,Westminster Society,B*Voluntary-Spot-V Dep-Enhanced - do not u,Bi-Borough Director of Integrated Care,510.00
13/11/2020,1249291,Westminster Society,B*Voluntary-Spot-V Dep-Enhanced - do not u,Bi-Borough Director of Integrated Care,935.00
13/11/2020,1249291,Westminster Society,B*Voluntary-Spot-V Dep-Enhanced - do not u,Bi-Borough Director of Integrated Care,765.00
13/11/2020,1249291,Westminster Society,B*Voluntary-Spot-V Dep-Enhanced - do not u,Bi-Borough Director of Integrated Care,680.00
13/11/2020,1249291,Westminster Society,B*Voluntary-Spot-V Dep-Enhanced - do not u,Bi-Borough Director of Integrated Care,"1,326.00"
13/11/2020,1249291,Westminster Society,B*Voluntary-Spot-V Dep-Enhanced - do not u,Bi-Borough Director of Integrated Care,595.00
13/11/2020,1249291,Westminster Society,B*Voluntary-Spot-V Dep-Enhanced - do not u,Bi-Borough Director of Integrated Care,595.00
13/11/2020,1249291,Westminster Society,B*Voluntary-Spot-V Dep-Enhanced - do not u,Bi-Borough Director of Integrated Care,"1,020.00"
13/11/2020,1249291,Westminster Society,B*Voluntary-Spot-V Dep-Enhanced - do not u,Bi-Borough Director of Integrated Care,"1,020.00"
13/11/2020,1249291,Westminster Society,B*Voluntary-Spot-V Dep-Enhanced - do not u,Bi-Borough Director of Integrated Care,850.00
13/11/2020,1249291,Westminster Society,B*Voluntary-Spot-V Dep-Enhanced - do not u,Bi-Borough Director of Integrated Care,935.00
13/11/2020,1249291,Westminster Society,B*Voluntary-Spot-V Dep-Enhanced - do not u,Bi-Borough Director of Integrated Care,773.50
13/11/2020,1249291,Westminster Society,B*Voluntary-Spot-V Dep-Enhanced - do not u,Bi-Borough Director of Integrated Care,"1,581.00"
13/11/2020,1249291,Westminster Society,B*Voluntary-Spot-V Dep-Enhanced - do not u,Bi-Borough Director of Integrated Care,"2,584.00"
13/11/2020,1249291,Westminster Society,B*Voluntary-Spot-V Dep-Enhanced - do not u,Bi-Borough Director of Integrated Care,765.00
13/11/2020,1249291,Westminster Society,B*Voluntary-Spot-V Dep-Enhanced - do not u,Bi-Borough Director of Integrated Care,544.00
07/12/2020,1249291,Westminster Society,Hire of Accommodation and Facilities,Bi-Borough Director of Integrated Care,"6,617.10"
07/12/2020,1249291,Westminster Society,Hire of Accommodation and Facilities,Bi-Borough Director of Integrated Care,"8,034.14"
09/12/2020,1249291,Westminster Society,,Bi-Borough Director of Integrated Care,"3,388.00"
09/12/2020,1249291,Westminster Society,,Bi-Borough Director of Integrated Care,"3,794.56"
09/12/2020,1249291,Westminster Society,,Bi-Borough Director of Integrated Care,"14,639.04"
09/12/2020,1249291,Westminster Society,,Bi-Borough Director of Integrated Care,"13,852.08"
09/12/2020,1249291,Westminster Society,,Bi-Borough Director of Integrated Care,542.08
09/12/2020,1249291,Westminster Society,,Bi-Borough Director of Integrated Care,"4,987.12"
09/12/2020,1249291,Westminster Society,,Bi-Borough Director of Integrated Care,713.64
09/12/2020,1249291,Westminster Society,,Bi-Borough Director of Integrated Care,"6,233.92"
09/12/2020,1249291,Westminster Society,,Bi-Borough Director of Integrated Care,713.64
09/12/2020,1249291,Westminster Society,,Bi-Borough Director of Integrated Care,"3,659.04"
09/12/2020,1249291,Westminster Society,,Bi-Borough Director of Integrated Care,853.96
09/12/2020,1249291,Westminster Society,,Bi-Borough Director of Integrated Care,"2,032.80"
09/12/2020,1249291,Westminster Society,,Bi-Borough Director of Integrated Care,540.76
09/12/2020,1249291,Westminster Society,,Bi-Borough Director of Integrated Care,"3,676.00"
09/12/2020,1249291,Westminster Society,,Bi-Borough Director of Integrated Care,540.76
09/12/2020,1249291,Westminster Society,,Bi-Borough Director of Integrated Care,"1,897.28"
09/12/2020,1249291,Westminster Society,,Bi-Borough Director of Integrated Care,"7,385.84"
09/12/2020,1249291,Westminster Society,,Bi-Borough Director of Integrated Care,"1,624.56"
09/12/2020,1249291,Westminster Society,,Bi-Borough Director of Integrated Care,"2,710.40"
09/12/2020,1249291,Westminster Society,,Bi-Borough Director of Integrated Care,"2,236.08"
09/12/2020,1249291,Westminster Society,,Bi-Borough Director of Integrated Care,982.52
09/12/2020,1249291,Westminster Society,,Bi-Borough Director of Integrated Care,610.92
09/12/2020,1249291,Westminster Society,,Bi-Borough Director of Integrated Care,"1,761.76"
09/12/2020,1249291,Westminster Society,,Bi-Borough Director of Integrated Care,948.64
09/12/2020,1249291,Westminster Society,,Bi-Borough Director of Integrated Care,"2,330.96"
09/12/2020,1249291,Westminster Society,,Bi-Borough Director of Integrated Care,"4,289.20"
09/12/2020,1249291,Westminster Society,,Bi-Borough Director of Integrated Care,"5,488.56"
09/12/2020,1249291,Westminster Society,,Bi-Borough Director of Integrated Care,"5,601.72"
09/12/2020,1249291,Westminster Society,,Bi-Borough Director of Integrated Care,"1,067.44"
09/12/2020,1249291,Westminster Society,,Bi-Borough Director of Integrated Care,721.00
09/12/2020,1249291,Westminster Society,,Bi-Borough Director of Integrated Care,"3,442.20"
09/12/2020,1249291,Westminster Society,,Bi-Borough Director of Integrated Care,713.64
09/12/2020,1249291,Westminster Society,,Bi-Borough Director of Integrated Care,713.64
09/12/2020,1249291,Westminster Society,,Bi-Borough Director of Integrated Care,"5,522.44"
09/12/2020,1249291,Westminster Society,,Bi-Borough Director of Integrated Care,540.76
09/12/2020,1249291,Westminster Society,,Bi-Borough Director of Integrated Care,"7,995.68"
09/12/2020,1249291,Westminster Society,,Bi-Borough Director of Integrated Care,"1,624.56"
09/12/2020,1249291,Westminster Society,,Bi-Borough Director of Integrated Care,"4,963.44"
09/12/2020,1249291,Westminster Society,,Bi-Borough Director of Integrated Care,853.96
09/12/2020,1249291,Westminster Society,,Bi-Borough Director of Integrated Care,948.64
09/12/2020,1249291,Westminster Society,,Bi-Borough Director of Integrated Care,"1,219.68"
09/12/2020,1249291,Westminster Society,,Bi-Borough Director of Integrated Care,542.08
09/12/2020,1249291,Westminster Society,,Bi-Borough Director of Integrated Care,"2,100.56"
09/12/2020,1249291,Westminster Society,,Bi-Borough Director of Integrated Care,779.24
09/12/2020,1249291,Westminster Society,,Bi-Borough Director of Integrated Care,853.96
09/12/2020,1249291,Westminster Society,,Bi-Borough Director of Integrated Care,"3,862.32"
09/12/2020,1249291,Westminster Society,,Bi-Borough Director of Integrated Care,721.00
09/12/2020,1249291,Westminster Society,,Bi-Borough Director of Integrated Care,"1,067.44"
09/12/2020,1249291,Westminster Society,,Bi-Borough Director of Integrated Care,"17,598.28"
09/12/2020,1249291,Westminster Society,,Bi-Borough Director of Integrated Care,"33,852.78"
09/12/2020,1249291,Westminster Society,,Bi-Borough Director of Integrated Care,"6,640.48"
09/12/2020,1249291,Westminster Society,,Bi-Borough Director of Integrated Care,713.64
09/12/2020,1249291,Westminster Society,,Bi-Borough Director of Integrated Care,"2,236.08"
09/12/2020,1249291,Westminster Society,,Bi-Borough Director of Integrated Care,853.96
09/12/2020,1249291,Westminster Society,,Bi-Borough Director of Integrated Care,"3,133.92"
09/12/2020,1249291,Westminster Society,,Bi-Borough Director of Integrated Care,"1,624.56"
09/12/2020,1249291,Westminster Society,,Bi-Borough Director of Integrated Care,"1,897.28"
09/12/2020,1249291,Westminster Society,,Bi-Borough Director of Integrated Care,713.64
09/12/2020,1249291,Westminster Society,,Bi-Borough Director of Integrated Care,"3,184.72"
09/12/2020,1249291,Westminster Society,,Bi-Borough Director of Integrated Care,"3,320.24"
09/12/2020,1249291,Westminster Society,,Bi-Borough Director of Integrated Care,"4,336.64"
09/12/2020,1249291,Westminster Society,,Bi-Borough Director of Integrated Care,"1,406.04"
09/12/2020,1249291,Westminster Society,,Bi-Borough Director of Integrated Care,"2,236.08"
09/12/2020,1249291,Westminster Society,,Bi-Borough Director of Integrated Care,853.96
09/12/2020,1249291,Westminster Society,,Bi-Borough Director of Integrated Care,"3,394.76"
09/12/2020,1249291,Westminster Society,,Bi-Borough Director of Integrated Care,713.64
09/12/2020,1249291,Westminster Society,,Bi-Borough Director of Integrated Care,"3,455.76"
09/12/2020,1249291,Westminster Society,,Bi-Borough Director of Integrated Care,"1,829.52"
09/12/2020,1249291,Westminster Society,,Bi-Borough Director of Integrated Care,"4,901.08"
09/12/2020,1249291,Westminster Society,,Bi-Borough Director of Integrated Care,"5,634.04"
09/12/2020,1249291,Westminster Society,,Bi-Borough Director of Integrated Care,"1,253.56"
09/12/2020,1249291,Westminster Society,,Bi-Borough Director of Integrated Care,"1,229.84"
09/12/2020,1249291,Westminster Society,,Bi-Borough Director of Integrated Care,"3,083.08"
09/12/2020,1249291,Westminster Society,,Bi-Borough Director of Integrated Care,"3,455.76"
09/12/2020,1249291,Westminster Society,,Bi-Borough Director of Integrated Care,"3,930.08"
09/12/2020,1249291,Westminster Society,,Bi-Borough Director of Integrated Care,540.76
09/12/2020,1249291,Westminster Society,,Bi-Borough Director of Integrated Care,609.84
09/12/2020,1249291,Westminster Society,,Bi-Borough Director of Integrated Care,"8,537.76"
09/12/2020,1249291,Westminster Society,,Bi-Borough Director of Integrated Care,721.00
09/12/2020,1249291,Westminster Society,,Bi-Borough Director of Integrated Care,853.96
09/12/2020,1249291,Westminster Society,,Bi-Borough Director of Integrated Care,"3,902.96"
09/12/2020,1249291,Westminster Society,,Bi-Borough Director of Integrated Care,721.00
09/12/2020,1249291,Westminster Society,,Bi-Borough Director of Integrated Care,853.96
09/12/2020,1249291,Westminster Society,,Bi-Borough Director of Integrated Care,"2,507.12"
09/12/2020,1249291,Westminster Society,,Bi-Borough Director of Integrated Care,"4,709.32"
09/12/2020,1249291,Westminster Society,,Bi-Borough Director of Integrated Care,"4,269.72"
09/12/2020,1249291,Westminster Society,,Bi-Borough Director of Integrated Care,540.76
09/12/2020,1249291,Westminster Society,,Bi-Borough Director of Integrated Care,"2,574.88"
09/12/2020,1249291,Westminster Society,,Bi-Borough Director of Integrated Care,"1,965.04"
09/12/2020,1249291,Westminster Society,,Bi-Borough Director of Integrated Care,853.96
09/12/2020,1249291,Westminster Society,,Bi-Borough Director of Integrated Care,"3,608.24"
09/12/2020,1249291,Westminster Society,,Bi-Borough Director of Integrated Care,"2,778.16"
09/12/2020,1249291,Westminster Society,,Bi-Borough Director of Integrated Care,"2,303.84"
09/12/2020,1249291,Westminster Society,,Bi-Borough Director of Integrated Care,"2,371.60"
09/12/2020,1249291,Westminster Society,,Bi-Borough Director of Integrated Care,"3,394.76"
09/12/2020,1249291,Westminster Society,,Bi-Borough Director of Integrated Care,713.64
09/12/2020,1249291,Westminster Society,,Bi-Borough Director of Integrated Care,853.96
09/12/2020,1249291,Westminster Society,,Bi-Borough Director of Integrated Care,721.00
09/12/2020,1249291,Westminster Society,,Bi-Borough Director of Integrated Care,"3,902.96"
09/12/2020,1249291,Westminster Society,,Bi-Borough Director of Integrated Care,853.96
09/12/2020,1249291,Westminster Society,,Bi-Borough Director of Integrated Care,721.00
09/12/2020,1249291,Westminster Society,,Bi-Borough Director of Integrated Care,"4,106.24"
09/12/2020,1249291,Westminster Society,,Bi-Borough Director of Integrated Care,"5,901.88"
09/12/2020,1249291,Westminster Society,,Bi-Borough Director of Integrated Care,"1,067.44"
09/12/2020,1249291,Westminster Society,,Bi-Borough Director of Integrated Care,721.00
09/12/2020,1249291,Westminster Society,,Bi-Borough Director of Integrated Care,713.64
09/12/2020,1249291,Westminster Society,,Bi-Borough Director of Integrated Care,"2,676.52"
09/12/2020,1249291,Westminster Society,,Bi-Borough Director of Integrated Care,677.60
09/12/2020,1249291,Westminster Society,,Bi-Borough Director of Integrated Care,"1,829.52"
09/12/2020,1249291,Westminster Society,,Bi-Borough Director of Integrated Care,540.76
09/12/2020,1249291,Westminster Society,,Bi-Borough Director of Integrated Care,"6,877.64"
09/12/2020,1249291,Westminster Society,,Bi-Borough Director of Integrated Care,"3,049.20"
09/12/2020,1249291,Westminster Society,,Bi-Borough Director of Integrated Care,"3,320.24"
09/12/2020,1249291,Westminster Society,,Bi-Borough Director of Integrated Care,542.08
09/12/2020,1249291,Westminster Society,,Bi-Borough Director of Integrated Care,"1,422.96"
09/12/2020,1249291,Westminster Society,,Bi-Borough Director of Integrated Care,"4,269.72"
09/12/2020,1249291,Westminster Society,,Bi-Borough Director of Integrated Care,"5,634.04"
09/12/2020,1249291,Westminster Society,,Bi-Borough Director of Integrated Care,721.00
09/12/2020,1249291,Westminster Society,,Bi-Borough Director of Integrated Care,"4,901.08"
09/12/2020,1249291,Westminster Society,,Bi-Borough Director of Integrated Care,721.00
09/12/2020,1249291,Westminster Society,,Bi-Borough Director of Integrated Care,"3,879.28"
09/12/2020,1249291,Westminster Society,,Bi-Borough Director of Integrated Care,853.96
09/12/2020,1249291,Westminster Society,,Bi-Borough Director of Integrated Care,"1,185.80"
09/12/2020,1249291,Westminster Society,,Bi-Borough Director of Integrated Care,"3,252.48"
09/12/2020,1249291,Westminster Society,,Bi-Borough Director of Integrated Care,"6,213.60"
09/12/2020,1249291,Westminster Society,,Bi-Borough Director of Integrated Care,713.64
09/12/2020,1249291,Westminster Society,,Bi-Borough Director of Integrated Care,540.76
09/12/2020,1249291,Westminster Society,,Bi-Borough Director of Integrated Care,"1,490.72"
09/12/2020,1249291,Westminster Society,,Bi-Borough Director of Integrated Care,"1,118.04"
09/12/2020,1249291,Westminster Society,,Bi-Borough Director of Integrated Care,853.96
09/12/2020,1249291,Westminster Society,,Bi-Borough Director of Integrated Care,721.00
09/12/2020,1249291,Westminster Society,,Bi-Borough Director of Integrated Care,"7,833.04"
09/12/2020,1249291,Westminster Society,,Bi-Borough Director of Integrated Care,"1,067.44"
09/12/2020,1249291,Westminster Society,,Bi-Borough Director of Integrated Care,721.00
09/12/2020,1249291,Westminster Society,,Bi-Borough Director of Integrated Care,"5,601.72"
09/12/2020,1249291,Westminster Society,,Bi-Borough Director of Integrated Care,"3,320.24"
09/12/2020,1249291,Westminster Society,,Bi-Borough Director of Integrated Care,540.76
09/12/2020,1249291,Westminster Society,,Bi-Borough Director of Integrated Care,540.76
09/12/2020,1249291,Westminster Society,,Bi-Borough Director of Integrated Care,"1,219.68"
18/12/2020,1249291,Westminster Society,B*Voluntary-Spot-V Dep-Enhanced - do not u,Bi-Borough Director of Integrated Care,612.00
18/12/2020,1249291,Westminster Society,B*Voluntary-Spot-V Dep-Enhanced - do not u,Bi-Borough Director of Integrated Care,612.00
18/12/2020,1249291,Westminster Society,B*Voluntary-Spot-V Dep-Enhanced - do not u,Bi-Borough Director of Integrated Care,816.00
18/12/2020,1249291,Westminster Society,B*Voluntary-Spot-V Dep-Enhanced - do not u,Bi-Borough Director of Integrated Care,816.00
18/12/2020,1249291,Westminster Society,B*Voluntary-Spot-V Dep-Enhanced - do not u,Bi-Borough Director of Integrated Care,680.00
18/12/2020,1249291,Westminster Society,B*Voluntary-Spot-V Dep-Enhanced - do not u,Bi-Borough Director of Integrated Care,680.00
18/12/2020,1249291,Westminster Society,B*Voluntary-Spot-V Dep-Enhanced - do not u,Bi-Borough Director of Integrated Care,833.00
18/12/2020,1249291,Westminster Society,B*Voluntary-Spot-V Dep-Enhanced - do not u,Bi-Borough Director of Integrated Care,782.00
18/12/2020,1249291,Westminster Society,B*Voluntary-Spot-V Dep-Enhanced - do not u,Bi-Borough Director of Integrated Care,"1,360.00"
18/12/2020,1249291,Westminster Society,B*Voluntary-Spot-V Dep-Enhanced - do not u,Bi-Borough Director of Integrated Care,"2,244.00"
18/12/2020,1249291,Westminster Society,B*Voluntary-Spot-V Dep-Enhanced - do not u,Bi-Borough Director of Integrated Care,612.00
31/12/2020,1249291,Westminster Society,B*Voluntary-Spot-V Dep-Enhanced - do not u,Bi-Borough Director of Integrated Care,952.00
31/12/2020,1249291,Westminster Society,B*Voluntary-Spot-V Dep-Enhanced - do not u,Bi-Borough Director of Integrated Care,"9,282.00"
31/12/2020,1249291,Westminster Society,B*Voluntary-Spot-V Dep-Enhanced - do not u,Bi-Borough Director of Integrated Care,544.00
31/12/2020,1249291,Westminster Society,B*Voluntary-Spot-V Dep-Enhanced - do not u,Bi-Borough Director of Integrated Care,612.00
31/12/2020,1249291,Westminster Society,B*Voluntary-Spot-V Dep-Enhanced - do not u,Bi-Borough Director of Integrated Care,884.00
31/12/2020,1249291,Westminster Society,B*Voluntary-Spot-V Dep-Enhanced - do not u,Bi-Borough Director of Integrated Care,612.00
31/12/2020,1249291,Westminster Society,B*Voluntary-Spot-V Dep-Enhanced - do not u,Bi-Borough Director of Integrated Care,544.00
31/12/2020,1249291,Westminster Society,B*Voluntary-Spot-V Dep-Enhanced - do not u,Bi-Borough Director of Integrated Care,748.00
14/10/2020,1246224,Whitmore Vale Housing Association,,Bi-Borough Director of Integrated Care,"3,688.80"
11/11/2020,1246224,Whitmore Vale Housing Association,,Bi-Borough Director of Integrated Care,"3,688.80"
09/12/2020,1246224,Whitmore Vale Housing Association,,Bi-Borough Director of Integrated Care,"3,688.80"
14/10/2020,1243566,Yarrow Housing Ltd,,Bi-Borough Director of Integrated Care,"8,301.92"
14/10/2020,1243566,Yarrow Housing Ltd,,Bi-Borough Director of Integrated Care,"6,646.68"
14/10/2020,1243566,Yarrow Housing Ltd,,Bi-Borough Director of Integrated Care,"3,632.88"
14/10/2020,1243566,Yarrow Housing Ltd,,Bi-Borough Director of Integrated Care,814.08
14/10/2020,1243566,Yarrow Housing Ltd,,Bi-Borough Director of Integrated Care,"3,651.20"
14/10/2020,1243566,Yarrow Housing Ltd,,Bi-Borough Director of Integrated Care,"2,985.52"
14/10/2020,1243566,Yarrow Housing Ltd,,Bi-Borough Director of Integrated Care,"4,204.00"
14/10/2020,1243566,Yarrow Housing Ltd,,Bi-Borough Director of Integrated Care,"3,387.52"
14/10/2020,1243566,Yarrow Housing Ltd,,Bi-Borough Director of Integrated Care,"7,297.56"
19/10/2020,1243566,Yarrow Housing Ltd,,Bi-Borough Director of Integrated Care,"15,846.40"
11/11/2020,1243566,Yarrow Housing Ltd,,Bi-Borough Director of Integrated Care,"4,651.33"
11/11/2020,1243566,Yarrow Housing Ltd,,Bi-Borough Director of Integrated Care,"3,651.20"
11/11/2020,1243566,Yarrow Housing Ltd,,Bi-Borough Director of Integrated Care,"28,341.50"
11/11/2020,1243566,Yarrow Housing Ltd,,Bi-Borough Director of Integrated Care,"2,985.52"
11/11/2020,1243566,Yarrow Housing Ltd,,Bi-Borough Director of Integrated Care,814.08
11/11/2020,1243566,Yarrow Housing Ltd,,Bi-Borough Director of Integrated Care,"27,143.82"
11/11/2020,1243566,Yarrow Housing Ltd,,Bi-Borough Director of Integrated Care,"3,387.52"
11/11/2020,1243566,Yarrow Housing Ltd,,Bi-Borough Director of Integrated Care,"7,297.56"
11/11/2020,1243566,Yarrow Housing Ltd,,Bi-Borough Director of Integrated Care,"8,301.92"
11/11/2020,1243566,Yarrow Housing Ltd,,Bi-Borough Director of Integrated Care,"63,345.16"
11/11/2020,1243566,Yarrow Housing Ltd,,Bi-Borough Director of Integrated Care,"3,632.88"
09/12/2020,1243566,Yarrow Housing Ltd,,Bi-Borough Director of Integrated Care,814.08
09/12/2020,1243566,Yarrow Housing Ltd,,Bi-Borough Director of Integrated Care,"7,297.56"
09/12/2020,1243566,Yarrow Housing Ltd,,Bi-Borough Director of Integrated Care,"8,301.92"
09/12/2020,1243566,Yarrow Housing Ltd,,Bi-Borough Director of Integrated Care,"7,851.20"
09/12/2020,1243566,Yarrow Housing Ltd,,Bi-Borough Director of Integrated Care,"3,632.88"
09/12/2020,1243566,Yarrow Housing Ltd,,Bi-Borough Director of Integrated Care,"2,985.52"
09/12/2020,1243566,Yarrow Housing Ltd,,Bi-Borough Director of Integrated Care,"3,651.20"
09/12/2020,1243566,Yarrow Housing Ltd,,Bi-Borough Director of Integrated Care,"3,387.52"
09/12/2020,1243566,Yarrow Housing Ltd,,Bi-Borough Director of Integrated Care,"2,700.84"
10/12/2020,1243566,Yarrow Housing Ltd,,Bi-Borough Director of Integrated Care,"31,692.80"
08/10/2020,1249317,Zocalo Ltd T/as Bluebird Care,,Bi-Borough Director of Integrated Care,"1,230.62"
08/10/2020,1249317,Zocalo Ltd T/as Bluebird Care,,Bi-Borough Director of Integrated Care,"5,254.38"
08/10/2020,1249317,Zocalo Ltd T/as Bluebird Care,,Bi-Borough Director of Integrated Care,"2,272.22"
20/11/2020,1249317,Zocalo Ltd T/as Bluebird Care,,Bi-Borough Director of Integrated Care,"5,436.00"
20/11/2020,1249317,Zocalo Ltd T/as Bluebird Care,,Bi-Borough Director of Integrated Care,"2,346.31"
21/12/2020,1249317,Zocalo Ltd T/as Bluebird Care,,Bi-Borough Director of Integrated Care,"5,436.00"
21/12/2020,1249317,Zocalo Ltd T/as Bluebird Care,,Bi-Borough Director of Integrated Care,"2,229.48"
14/10/2020,1249318,Zodiac Arts Ltd,B*Voluntary-Spot-V Dep-Enhanced - do not u,Bi-Borough Director of Integrated Care,715.50
06/11/2020,1249318,Zodiac Arts Ltd,B*Voluntary-Spot-V Dep-Enhanced - do not u,Bi-Borough Director of Integrated Care,715.50
08/12/2020,1249318,Zodiac Arts Ltd,B*Voluntary-Spot-V Dep-Enhanced - do not u,Bi-Borough Director of Integrated Care,715.50
31/12/2020,1249318,Zodiac Arts Ltd,B*Voluntary-Spot-V Dep-Enhanced - do not u,Bi-Borough Director of Integrated Care,715.50
13/10/2020,1246364,Central Recruitment Services Ltd,Agency Staff,Bi-Borough Director of Integrated Care,648.00
13/10/2020,1246364,Central Recruitment Services Ltd,Agency Staff,Bi-Borough Director of Integrated Care,648.00
10/12/2020,1243893,Alphabet (GB) Ltd,HTM / Other Vehicle - Hire Charges,Bi-Borough Director of Integrated Care,"4,260.88"
08/12/2020,1243963,Automotive Leasing,Vehicles and Plant - Repairs and Main,Bi-Borough Director of Integrated Care,"6,790.26"
04/12/2020,1243797,Central & North West London Nhs,Payments to Health Authorities,Bi-Borough Director of Integrated Care,"50,030.00"
10/11/2020,1251199,Cornerstone Barristers,Legal Costs,Bi-Borough Director of Integrated Care,"1,750.00"
11/11/2020,1251199,Cornerstone Barristers,Legal Costs,Bi-Borough Director of Integrated Care,"1,750.00"
23/10/2020,1263863,Barry Bros Security Limited,,Bi-Borough Director of Integrated Care,"1,490.40"
14/10/2020,1248618,Riverside Echg,,Bi-Borough Director of Integrated Care,"1,235.92"
11/11/2020,1248618,Riverside Echg,,Bi-Borough Director of Integrated Care,"1,235.92"
09/12/2020,1248618,Riverside Echg,,Bi-Borough Director of Integrated Care,"1,235.92"
14/10/2020,1259100,Care Assist Limited,,Bi-Borough Director of Integrated Care,"3,728.96"
11/11/2020,1259100,Care Assist Limited,,Bi-Borough Director of Integrated Care,"3,728.96"
09/12/2020,1259100,Care Assist Limited,,Bi-Borough Director of Integrated Care,"3,728.96"
14/10/2020,1246561,Church Army Marylebone Project,,Bi-Borough Director of Integrated Care,990.12
11/11/2020,1246561,Church Army Marylebone Project,,Bi-Borough Director of Integrated Care,990.12
09/12/2020,1246561,Church Army Marylebone Project,,Bi-Borough Director of Integrated Care,990.12
10/11/2020,D000000016,PERSONAL PAYMENTS,,Bi-Borough Director of Integrated Care,"5,000.00"
14/10/2020,1247852,Look Ahead Care and Support Ltd,,Bi-Borough Director of Integrated Care,917.80
14/10/2020,1247852,Look Ahead Care and Support Ltd,,Bi-Borough Director of Integrated Care,"1,530.32"
14/10/2020,1247852,Look Ahead Care and Support Ltd,,Bi-Borough Director of Integrated Care,917.80
14/10/2020,1247852,Look Ahead Care and Support Ltd,,Bi-Borough Director of Integrated Care,992.60
14/10/2020,1247852,Look Ahead Care and Support Ltd,,Bi-Borough Director of Integrated Care,890.60
14/10/2020,1247852,Look Ahead Care and Support Ltd,,Bi-Borough Director of Integrated Care,992.60
14/10/2020,1247852,Look Ahead Care and Support Ltd,,Bi-Borough Director of Integrated Care,"1,193.80"
14/10/2020,1247852,Look Ahead Care and Support Ltd,,Bi-Borough Director of Integrated Care,"1,267.56"
14/10/2020,1247852,Look Ahead Care and Support Ltd,,Bi-Borough Director of Integrated Care,"1,339.08"
14/10/2020,1247852,Look Ahead Care and Support Ltd,,Bi-Borough Director of Integrated Care,"1,339.08"
14/10/2020,1247852,Look Ahead Care and Support Ltd,,Bi-Borough Director of Integrated Care,917.80
11/11/2020,1247852,Look Ahead Care and Support Ltd,,Bi-Borough Director of Integrated Care,992.60
11/11/2020,1247852,Look Ahead Care and Support Ltd,,Bi-Borough Director of Integrated Care,890.60
11/11/2020,1247852,Look Ahead Care and Support Ltd,,Bi-Borough Director of Integrated Care,992.60
11/11/2020,1247852,Look Ahead Care and Support Ltd,,Bi-Borough Director of Integrated Care,"1,193.80"
11/11/2020,1247852,Look Ahead Care and Support Ltd,,Bi-Borough Director of Integrated Care,"1,267.56"
11/11/2020,1247852,Look Ahead Care and Support Ltd,,Bi-Borough Director of Integrated Care,"1,339.08"
11/11/2020,1247852,Look Ahead Care and Support Ltd,,Bi-Borough Director of Integrated Care,"1,339.08"
11/11/2020,1247852,Look Ahead Care and Support Ltd,,Bi-Borough Director of Integrated Care,917.80
11/11/2020,1247852,Look Ahead Care and Support Ltd,,Bi-Borough Director of Integrated Care,917.80
11/11/2020,1247852,Look Ahead Care and Support Ltd,,Bi-Borough Director of Integrated Care,"1,530.32"
09/12/2020,1247852,Look Ahead Care and Support Ltd,,Bi-Borough Director of Integrated Care,992.60
09/12/2020,1247852,Look Ahead Care and Support Ltd,,Bi-Borough Director of Integrated Care,890.60
09/12/2020,1247852,Look Ahead Care and Support Ltd,,Bi-Borough Director of Integrated Care,"1,193.80"
09/12/2020,1247852,Look Ahead Care and Support Ltd,,Bi-Borough Director of Integrated Care,"1,267.56"
09/12/2020,1247852,Look Ahead Care and Support Ltd,,Bi-Borough Director of Integrated Care,"1,339.08"
09/12/2020,1247852,Look Ahead Care and Support Ltd,,Bi-Borough Director of Integrated Care,"1,339.08"
09/12/2020,1247852,Look Ahead Care and Support Ltd,,Bi-Borough Director of Integrated Care,917.80
09/12/2020,1247852,Look Ahead Care and Support Ltd,,Bi-Borough Director of Integrated Care,917.80
09/12/2020,1247852,Look Ahead Care and Support Ltd,,Bi-Borough Director of Integrated Care,"1,530.32"
09/12/2020,1247852,Look Ahead Care and Support Ltd,,Bi-Borough Director of Integrated Care,992.60
11/11/2020,1244970,Octavia Housing & Care (Rent,,Bi-Borough Director of Integrated Care,"1,140.02"
09/12/2020,1244970,Octavia Housing & Care (Rent,,Bi-Borough Director of Integrated Care,679.16
14/10/2020,1248618,Riverside Echg,,Bi-Borough Director of Integrated Care,964.60
14/10/2020,1248618,Riverside Echg,,Bi-Borough Director of Integrated Care,721.28
14/10/2020,1248618,Riverside Echg,,Bi-Borough Director of Integrated Care,698.60
14/10/2020,1248618,Riverside Echg,,Bi-Borough Director of Integrated Care,966.52
14/10/2020,1248618,Riverside Echg,,Bi-Borough Director of Integrated Care,"1,228.36"
14/10/2020,1248618,Riverside Echg,,Bi-Borough Director of Integrated Care,868.56
14/10/2020,1248618,Riverside Echg,,Bi-Borough Director of Integrated Care,"1,228.36"
14/10/2020,1248618,Riverside Echg,,Bi-Borough Director of Integrated Care,970.76
14/10/2020,1248618,Riverside Echg,,Bi-Borough Director of Integrated Care,"1,152.20"
14/10/2020,1248618,Riverside Echg,,Bi-Borough Director of Integrated Care,"1,090.88"
14/10/2020,1248618,Riverside Echg,,Bi-Borough Director of Integrated Care,970.76
11/11/2020,1248618,Riverside Echg,,Bi-Borough Director of Integrated Care,"2,152.50"
11/11/2020,1248618,Riverside Echg,,Bi-Borough Director of Integrated Care,"1,228.36"
11/11/2020,1248618,Riverside Echg,,Bi-Borough Director of Integrated Care,970.76
11/11/2020,1248618,Riverside Echg,,Bi-Borough Director of Integrated Care,721.28
11/11/2020,1248618,Riverside Echg,,Bi-Borough Director of Integrated Care,"1,228.36"
11/11/2020,1248618,Riverside Echg,,Bi-Borough Director of Integrated Care,966.52
11/11/2020,1248618,Riverside Echg,,Bi-Borough Director of Integrated Care,698.60
11/11/2020,1248618,Riverside Echg,,Bi-Borough Director of Integrated Care,"1,152.20"
11/11/2020,1248618,Riverside Echg,,Bi-Borough Director of Integrated Care,"1,090.88"
11/11/2020,1248618,Riverside Echg,,Bi-Borough Director of Integrated Care,964.60
09/12/2020,1248618,Riverside Echg,,Bi-Borough Director of Integrated Care,698.60
09/12/2020,1248618,Riverside Echg,,Bi-Borough Director of Integrated Care,"1,228.36"
09/12/2020,1248618,Riverside Echg,,Bi-Borough Director of Integrated Care,966.52
09/12/2020,1248618,Riverside Echg,,Bi-Borough Director of Integrated Care,861.00
09/12/2020,1248618,Riverside Echg,,Bi-Borough Director of Integrated Care,"1,228.36"
09/12/2020,1248618,Riverside Echg,,Bi-Borough Director of Integrated Care,970.76
09/12/2020,1248618,Riverside Echg,,Bi-Borough Director of Integrated Care,"1,152.20"
09/12/2020,1248618,Riverside Echg,,Bi-Borough Director of Integrated Care,"1,090.88"
09/12/2020,1248618,Riverside Echg,,Bi-Borough Director of Integrated Care,964.60
09/12/2020,1248618,Riverside Echg,,Bi-Borough Director of Integrated Care,721.28
14/10/2020,1245584,Single Homeless Project,,Bi-Borough Director of Integrated Care,"1,494.08"
14/10/2020,1245584,Single Homeless Project,,Bi-Borough Director of Integrated Care,"1,494.08"
11/11/2020,1245584,Single Homeless Project,,Bi-Borough Director of Integrated Care,"1,494.08"
11/11/2020,1245584,Single Homeless Project,,Bi-Borough Director of Integrated Care,"1,494.08"
09/12/2020,1245584,Single Homeless Project,,Bi-Borough Director of Integrated Care,"1,494.08"
09/12/2020,1245584,Single Homeless Project,,Bi-Borough Director of Integrated Care,"1,494.08"
14/10/2020,1245636,St Mungos Broadway (Grants &,,Bi-Borough Director of Integrated Care,"1,651.84"
14/10/2020,1245636,St Mungos Broadway (Grants &,,Bi-Borough Director of Integrated Care,"1,427.20"
14/10/2020,1245636,St Mungos Broadway (Grants &,,Bi-Borough Director of Integrated Care,"1,161.20"
14/10/2020,1245636,St Mungos Broadway (Grants &,,Bi-Borough Director of Integrated Care,"1,427.20"
14/10/2020,1245636,St Mungos Broadway (Grants &,,Bi-Borough Director of Integrated Care,"1,651.84"
14/10/2020,1245636,St Mungos Broadway (Grants &,,Bi-Borough Director of Integrated Care,"1,161.20"
11/11/2020,1245636,St Mungos Broadway (Grants &,,Bi-Borough Director of Integrated Care,"1,161.20"
11/11/2020,1245636,St Mungos Broadway (Grants &,,Bi-Borough Director of Integrated Care,"1,427.20"
11/11/2020,1245636,St Mungos Broadway (Grants &,,Bi-Borough Director of Integrated Care,"1,651.84"
11/11/2020,1245636,St Mungos Broadway (Grants &,,Bi-Borough Director of Integrated Care,"1,161.20"
11/11/2020,1245636,St Mungos Broadway (Grants &,,Bi-Borough Director of Integrated Care,"1,427.20"
11/11/2020,1245636,St Mungos Broadway (Grants &,,Bi-Borough Director of Integrated Care,"1,651.84"
09/12/2020,1245636,St Mungos Broadway (Grants &,,Bi-Borough Director of Integrated Care,"1,427.20"
09/12/2020,1245636,St Mungos Broadway (Grants &,,Bi-Borough Director of Integrated Care,"1,161.20"
09/12/2020,1245636,St Mungos Broadway (Grants &,,Bi-Borough Director of Integrated Care,"1,651.84"
09/12/2020,1245636,St Mungos Broadway (Grants &,,Bi-Borough Director of Integrated Care,"1,161.20"
09/12/2020,1245636,St Mungos Broadway (Grants &,,Bi-Borough Director of Integrated Care,"1,427.20"
09/12/2020,1245636,St Mungos Broadway (Grants &,,Bi-Borough Director of Integrated Care,"1,070.40"
09/12/2020,1245636,St Mungos Broadway (Grants &,,Bi-Borough Director of Integrated Care,"1,651.84"
03/11/2020,1245800,Action On Hearing Loss,B*Voluntary-Spot-V Dep-Enhanced - do not u,Bi-Borough Director of Integrated Care,"1,400.00"
02/12/2020,1245800,Action On Hearing Loss,B*Voluntary-Spot-V Dep-Enhanced - do not u,Bi-Borough Director of Integrated Care,"1,288.00"
08/12/2020,1246011,Art4Space,B*Voluntary-Spot-V Dep-Enhanced - do not u,Bi-Borough Director of Integrated Care,"1,350.00"
17/12/2020,1246011,Art4Space,B*Voluntary-Spot-V Dep-Enhanced - do not u,Bi-Borough Director of Integrated Care,"1,150.00"
17/12/2020,1246011,Art4Space,B*Voluntary-Spot-V Dep-Enhanced - do not u,Bi-Borough Director of Integrated Care,"1,150.00"
17/12/2020,1246011,Art4Space,B*Voluntary-Spot-V Dep-Enhanced - do not u,Bi-Borough Director of Integrated Care,"1,150.00"
17/12/2020,1246011,Art4Space,B*Voluntary-Spot-V Dep-Enhanced - do not u,Bi-Borough Director of Integrated Care,"1,150.00"
17/12/2020,1246011,Art4Space,B*Voluntary-Spot-V Dep-Enhanced - do not u,Bi-Borough Director of Integrated Care,"1,150.00"
17/12/2020,1246011,Art4Space,B*Voluntary-Spot-V Dep-Enhanced - do not u,Bi-Borough Director of Integrated Care,"1,150.00"
08/10/2020,1243931,Ashbourne Healthcare Services,,Bi-Borough Director of Integrated Care,"1,145.90"
21/10/2020,1243931,Ashbourne Healthcare Services,,Bi-Borough Director of Integrated Care,"1,145.90"
02/11/2020,1243931,Ashbourne Healthcare Services,,Bi-Borough Director of Integrated Care,"1,145.90"
18/11/2020,1243931,Ashbourne Healthcare Services,,Bi-Borough Director of Integrated Care,"1,145.90"
08/12/2020,1243931,Ashbourne Healthcare Services,,Bi-Borough Director of Integrated Care,"1,145.90"
17/12/2020,1243931,Ashbourne Healthcare Services,,Bi-Borough Director of Integrated Care,916.72
30/12/2020,1243931,Ashbourne Healthcare Services,,Bi-Borough Director of Integrated Care,"1,031.31"
04/11/2020,1245073,Astoria Healthcare Ltd,,Bi-Borough Director of Integrated Care,936.00
14/10/2020,1271022,BONZA CARE LTD,,Bi-Borough Director of Integrated Care,"3,800.00"
14/10/2020,1271022,BONZA CARE LTD,,Bi-Borough Director of Integrated Care,746.43
11/11/2020,1271022,BONZA CARE LTD,,Bi-Borough Director of Integrated Care,"3,800.00"
11/11/2020,1271022,BONZA CARE LTD,,Bi-Borough Director of Integrated Care,"1,610.72"
09/12/2020,1271022,BONZA CARE LTD,,Bi-Borough Director of Integrated Care,"3,800.00"
09/12/2020,1271022,BONZA CARE LTD,,Bi-Borough Director of Integrated Care,"1,500.00"
08/10/2020,1246262,Brent Wandsworth & Westminster,B*Voluntary-Spot-V Dep-Enhanced - do not u,Bi-Borough Director of Integrated Care,540.00
08/10/2020,1246262,Brent Wandsworth & Westminster,B*Voluntary-Spot-V Dep-Enhanced - do not u,Bi-Borough Director of Integrated Care,780.00
08/10/2020,1246262,Brent Wandsworth & Westminster,B*Voluntary-Spot-V Dep-Enhanced - do not u,Bi-Borough Director of Integrated Care,540.00
08/10/2020,1246262,Brent Wandsworth & Westminster,B*Voluntary-Spot-V Dep-Enhanced - do not u,Bi-Borough Director of Integrated Care,540.00
05/11/2020,1246261,Brent Wandsworth & Westminster,,Bi-Borough Director of Integrated Care,706.23
10/11/2020,1246262,Brent Wandsworth & Westminster,B*Voluntary-Spot-V Dep-Enhanced - do not u,Bi-Borough Director of Integrated Care,540.00
10/11/2020,1246262,Brent Wandsworth & Westminster,B*Voluntary-Spot-V Dep-Enhanced - do not u,Bi-Borough Director of Integrated Care,840.00
10/11/2020,1246262,Brent Wandsworth & Westminster,B*Voluntary-Spot-V Dep-Enhanced - do not u,Bi-Borough Director of Integrated Care,540.00
10/11/2020,1246262,Brent Wandsworth & Westminster,B*Voluntary-Spot-V Dep-Enhanced - do not u,Bi-Borough Director of Integrated Care,540.00
11/11/2020,1246261,Brent Wandsworth & Westminster,,Bi-Borough Director of Integrated Care,592.35
17/11/2020,1246261,Brent Wandsworth & Westminster,,Bi-Borough Director of Integrated Care,646.20
17/12/2020,1246262,Brent Wandsworth & Westminster,B*Voluntary-Spot-V Dep-Enhanced - do not u,Bi-Borough Director of Integrated Care,720.00
14/10/2020,1247482,PERSONAL PAYMENTS,,Bi-Borough Director of Integrated Care,833.28
11/11/2020,1247482,PERSONAL PAYMENTS,,Bi-Borough Director of Integrated Care,833.28
09/12/2020,1247482,PERSONAL PAYMENTS,,Bi-Borough Director of Integrated Care,833.28
14/10/2020,1246321,Camphill Village Trust,,Bi-Borough Director of Integrated Care,"1,109.60"
11/11/2020,1246321,Camphill Village Trust,,Bi-Borough Director of Integrated Care,"1,109.60"
09/12/2020,1246321,Camphill Village Trust,,Bi-Borough Director of Integrated Care,"1,109.60"
06/11/2020,1246581,Clearup Solutions Limited,,Bi-Borough Director of Integrated Care,500.00
09/11/2020,1246581,Clearup Solutions Limited,,Bi-Borough Director of Integrated Care,550.00
17/11/2020,1246581,Clearup Solutions Limited,,Bi-Borough Director of Integrated Care,550.00
30/12/2020,1246581,Clearup Solutions Limited,,Bi-Borough Director of Integrated Care,"1,285.00"
21/10/2020,1244190,Clouds End Services Ltd,,Bi-Borough Director of Integrated Care,"1,200.00"
20/11/2020,1244190,Clouds End Services Ltd,,Bi-Borough Director of Integrated Care,"1,200.00"
22/12/2020,1244190,Clouds End Services Ltd,,Bi-Borough Director of Integrated Care,"1,200.00"
14/10/2020,1246602,Community Housing Therapy,,Bi-Borough Director of Integrated Care,"1,940.00"
11/11/2020,1246602,Community Housing Therapy,,Bi-Borough Director of Integrated Care,"1,940.00"
09/12/2020,1246602,Community Housing Therapy,,Bi-Borough Director of Integrated Care,"1,940.00"
15/10/2020,1247257,Health Vision Uk,,Bi-Borough Director of Integrated Care,504.16
15/10/2020,1247257,Health Vision Uk,,Bi-Borough Director of Integrated Care,505.40
15/10/2020,1247257,Health Vision Uk,,Bi-Borough Director of Integrated Care,"1,024.96"
15/10/2020,1247257,Health Vision Uk,,Bi-Borough Director of Integrated Care,"1,230.56"
15/10/2020,1247257,Health Vision Uk,,Bi-Borough Director of Integrated Care,"2,392.90"
15/10/2020,1247257,Health Vision Uk,,Bi-Borough Director of Integrated Care,540.53
16/11/2020,1247257,Health Vision Uk,,Bi-Borough Director of Integrated Care,594.72
16/11/2020,1247257,Health Vision Uk,,Bi-Borough Director of Integrated Care,781.97
16/11/2020,1247257,Health Vision Uk,,Bi-Borough Director of Integrated Care,511.72
16/11/2020,1247257,Health Vision Uk,,Bi-Borough Director of Integrated Care,"1,015.86"
16/11/2020,1247257,Health Vision Uk,,Bi-Borough Director of Integrated Care,"1,143.65"
16/12/2020,1247257,Health Vision Uk,,Bi-Borough Director of Integrated Care,654.40
16/12/2020,1247257,Health Vision Uk,,Bi-Borough Director of Integrated Care,949.96
16/12/2020,1247257,Health Vision Uk,,Bi-Borough Director of Integrated Care,"1,399.09"
16/12/2020,1247257,Health Vision Uk,,Bi-Borough Director of Integrated Care,763.28
16/12/2020,1247257,Health Vision Uk,,Bi-Borough Director of Integrated Care,545.20
01/10/2020,1256893,Kapital Care WCC,,Bi-Borough Director of Integrated Care,916.72
05/11/2020,1256893,Kapital Care WCC,,Bi-Borough Director of Integrated Care,916.72
04/12/2020,1256893,Kapital Care WCC,,Bi-Borough Director of Integrated Care,916.72
15/10/2020,1247650,London Care Ltd,,Bi-Borough Director of Integrated Care,818.54
15/10/2020,1247650,London Care Ltd,,Bi-Borough Director of Integrated Care,512.29
15/10/2020,1247650,London Care Ltd,,Bi-Borough Director of Integrated Care,685.73
15/10/2020,1247650,London Care Ltd,,Bi-Borough Director of Integrated Care,510.49
15/10/2020,1247650,London Care Ltd,,Bi-Borough Director of Integrated Care,"1,019.24"
16/11/2020,1247650,London Care Ltd,,Bi-Borough Director of Integrated Care,503.67
16/11/2020,1247650,London Care Ltd,,Bi-Borough Director of Integrated Care,616.88
16/11/2020,1247650,London Care Ltd,,Bi-Borough Director of Integrated Care,985.19
16/11/2020,1247650,London Care Ltd,,Bi-Borough Director of Integrated Care,963.09
10/12/2020,1247650,London Care Ltd,,Bi-Borough Director of Integrated Care,632.01
10/12/2020,1247650,London Care Ltd,,Bi-Borough Director of Integrated Care,"1,000.26"
10/12/2020,1247650,London Care Ltd,,Bi-Borough Director of Integrated Care,581.44
10/12/2020,1247650,London Care Ltd,,Bi-Borough Director of Integrated Care,503.61
10/12/2020,1247650,London Care Ltd,,Bi-Borough Director of Integrated Care,790.25
14/10/2020,1262948,Lotus House,,Bi-Borough Director of Integrated Care,"2,928.00"
11/11/2020,1262948,Lotus House,,Bi-Borough Director of Integrated Care,"2,928.00"
09/12/2020,1262948,Lotus House,,Bi-Borough Director of Integrated Care,"2,928.00"
14/10/2020,1244866,Micado Community Living Services,,Bi-Borough Director of Integrated Care,"2,880.00"
11/11/2020,1244866,Micado Community Living Services,,Bi-Borough Director of Integrated Care,"2,880.00"
09/12/2020,1244866,Micado Community Living Services,,Bi-Borough Director of Integrated Care,"2,880.00"
03/11/2020,1244905,Nas Services Ltd (Residential),B*Voluntary-Spot-V Dep-Enhanced - do not u,Bi-Borough Director of Integrated Care,"1,065.12"
11/11/2020,1244905,Nas Services Ltd (Residential),B*Voluntary-Spot-V Dep-Enhanced - do not u,Bi-Borough Director of Integrated Care,"1,065.12"
08/12/2020,1244905,Nas Services Ltd (Residential),B*Voluntary-Spot-V Dep-Enhanced - do not u,Bi-Borough Director of Integrated Care,"1,065.12"
14/10/2020,1270326,New Directions Flexible Social Care,,Bi-Borough Director of Integrated Care,"1,400.00"
11/11/2020,1270326,New Directions Flexible Social Care,,Bi-Borough Director of Integrated Care,"1,400.00"
09/12/2020,1270326,New Directions Flexible Social Care,,Bi-Borough Director of Integrated Care,"1,400.00"
23/10/2020,1266895,PERSONAL PAYMENTS,Social Care - Direct Payments,Bi-Borough Director of Integrated Care,728.00
23/10/2020,1247479,PERSONAL PAYMENTS,Social Care - Direct Payments,Bi-Borough Director of Integrated Care,"1,639.08"
23/10/2020,1259940,PERSONAL PAYMENTS,Adult Social Care - Other Transfer Pay,Bi-Borough Director of Integrated Care,"1,913.76"
23/10/2020,1254334,PERSONAL PAYMENTS,Adult Social Care - Other Transfer Pay,Bi-Borough Director of Integrated Care,"1,500.00"
13/11/2020,1243549,St Georges Retreat,Adult Social Care - Other Transfer Pay,Bi-Borough Director of Integrated Care,"8,125.00"
20/11/2020,1266895,PERSONAL PAYMENTS,Social Care - Direct Payments,Bi-Borough Director of Integrated Care,728.00
20/11/2020,1247479,PERSONAL PAYMENTS,Social Care - Direct Payments,Bi-Borough Director of Integrated Care,"1,639.08"
20/11/2020,1259940,PERSONAL PAYMENTS,Adult Social Care - Other Transfer Pay,Bi-Borough Director of Integrated Care,"1,913.76"
20/11/2020,1254334,PERSONAL PAYMENTS,Adult Social Care - Other Transfer Pay,Bi-Borough Director of Integrated Care,"1,500.00"
18/12/2020,1259940,PERSONAL PAYMENTS,Adult Social Care - Other Transfer Pay,Bi-Borough Director of Integrated Care,"1,913.76"
18/12/2020,1266895,PERSONAL PAYMENTS,Social Care - Direct Payments,Bi-Borough Director of Integrated Care,728.00
18/12/2020,1247479,PERSONAL PAYMENTS,Social Care - Direct Payments,Bi-Borough Director of Integrated Care,"1,639.08"
18/12/2020,1254334,PERSONAL PAYMENTS,Adult Social Care - Other Transfer Pay,Bi-Borough Director of Integrated Care,"1,500.00"
01/10/2020,1248541,Priory Nursing Agency & Home Care,,Bi-Borough Director of Integrated Care,"1,211.38"
04/11/2020,1248541,Priory Nursing Agency & Home Care,,Bi-Borough Director of Integrated Care,"1,211.38"
15/12/2020,1248541,Priory Nursing Agency & Home Care,,Bi-Borough Director of Integrated Care,"1,211.38"
05/10/2020,1245316,Respect Care Services Ltd,,Bi-Borough Director of Integrated Care,589.32
05/10/2020,1245316,Respect Care Services Ltd,,Bi-Borough Director of Integrated Care,605.76
05/10/2020,1245316,Respect Care Services Ltd,,Bi-Borough Director of Integrated Care,916.72
29/10/2020,1245316,Respect Care Services Ltd,,Bi-Borough Director of Integrated Care,605.76
29/10/2020,1245316,Respect Care Services Ltd,,Bi-Borough Director of Integrated Care,916.72
29/10/2020,1245316,Respect Care Services Ltd,,Bi-Borough Director of Integrated Care,589.32
02/11/2020,1245316,Respect Care Services Ltd,,Bi-Borough Director of Integrated Care,589.32
02/11/2020,1245316,Respect Care Services Ltd,,Bi-Borough Director of Integrated Care,605.76
02/11/2020,1245316,Respect Care Services Ltd,,Bi-Borough Director of Integrated Care,916.72
20/11/2020,1245316,Respect Care Services Ltd,,Bi-Borough Director of Integrated Care,589.32
20/11/2020,1245316,Respect Care Services Ltd,,Bi-Borough Director of Integrated Care,605.76
01/12/2020,1245316,Respect Care Services Ltd,,Bi-Borough Director of Integrated Care,589.32
01/12/2020,1245316,Respect Care Services Ltd,,Bi-Borough Director of Integrated Care,605.76
21/12/2020,1245316,Respect Care Services Ltd,,Bi-Borough Director of Integrated Care,605.76
21/12/2020,1245316,Respect Care Services Ltd,,Bi-Borough Director of Integrated Care,589.32
23/12/2020,1245316,Respect Care Services Ltd,,Bi-Borough Director of Integrated Care,605.76
23/12/2020,1245316,Respect Care Services Ltd,,Bi-Borough Director of Integrated Care,589.32
14/10/2020,1272438,ST GEORGES SUPPORTED LIVING LTD,,Bi-Borough Director of Integrated Care,"1,882.14"
11/11/2020,1272438,ST GEORGES SUPPORTED LIVING LTD,,Bi-Borough Director of Integrated Care,"1,700.00"
09/12/2020,1272438,ST GEORGES SUPPORTED LIVING LTD,,Bi-Borough Director of Integrated Care,"1,700.00"
15/10/2020,1248843,Sage Care Ltd,,Bi-Borough Director of Integrated Care,"1,026.52"
15/10/2020,1248843,Sage Care Ltd,,Bi-Borough Director of Integrated Care,"1,038.21"
15/10/2020,1248843,Sage Care Ltd,,Bi-Borough Director of Integrated Care,"1,835.85"
15/10/2020,1248843,Sage Care Ltd,,Bi-Borough Director of Integrated Care,"1,868.04"
15/10/2020,1248843,Sage Care Ltd,,Bi-Borough Director of Integrated Care,"1,359.94"
16/11/2020,1248843,Sage Care Ltd,,Bi-Borough Director of Integrated Care,"1,028.94"
16/11/2020,1248843,Sage Care Ltd,,Bi-Borough Director of Integrated Care,"1,780.28"
16/11/2020,1248843,Sage Care Ltd,,Bi-Borough Director of Integrated Care,"2,257.27"
16/11/2020,1248843,Sage Care Ltd,,Bi-Borough Director of Integrated Care,"1,345.35"
20/11/2020,1245596,Smart,B*Voluntary-Spot-V Dep-Enhanced - do not u,Bi-Borough Director of Integrated Care,604.17
08/10/2020,1245182,Supporting Care Ltd,,Bi-Borough Director of Integrated Care,"2,962.97"
27/10/2020,1245182,Supporting Care Ltd,,Bi-Borough Director of Integrated Care,"1,849.79"
27/10/2020,1245182,Supporting Care Ltd,,Bi-Borough Director of Integrated Care,556.54
22/12/2020,1245182,Supporting Care Ltd,,Bi-Borough Director of Integrated Care,"3,044.82"
08/12/2020,1268855,Supreme Care Services Ltd,,Bi-Borough Director of Integrated Care,716.19
14/10/2020,1270462,TRIVENI CARE LTD,,Bi-Borough Director of Integrated Care,"2,280.00"
11/11/2020,1270462,TRIVENI CARE LTD,,Bi-Borough Director of Integrated Care,"2,280.00"
09/12/2020,1270462,TRIVENI CARE LTD,,Bi-Borough Director of Integrated Care,"2,280.00"
14/10/2020,1246095,Theana Ltd T/a Enlighten Homes,,Bi-Borough Director of Integrated Care,"3,940.00"
11/11/2020,1246095,Theana Ltd T/a Enlighten Homes,,Bi-Borough Director of Integrated Care,"3,940.00"
09/12/2020,1246095,Theana Ltd T/a Enlighten Homes,,Bi-Borough Director of Integrated Care,"3,940.00"
15/10/2020,1249232,Vincentian Care Plus,,Bi-Borough Director of Integrated Care,"1,251.13"
22/10/2020,1249232,Vincentian Care Plus,,Bi-Borough Director of Integrated Care,786.99
22/10/2020,1249232,Vincentian Care Plus,,Bi-Borough Director of Integrated Care,949.36
22/10/2020,1249232,Vincentian Care Plus,,Bi-Borough Director of Integrated Care,973.78
22/10/2020,1249232,Vincentian Care Plus,,Bi-Borough Director of Integrated Care,"1,267.18"
22/10/2020,1249232,Vincentian Care Plus,,Bi-Borough Director of Integrated Care,501.50
22/10/2020,1249232,Vincentian Care Plus,,Bi-Borough Director of Integrated Care,"1,563.64"
22/10/2020,1249232,Vincentian Care Plus,,Bi-Borough Director of Integrated Care,631.11
22/10/2020,1249232,Vincentian Care Plus,,Bi-Borough Director of Integrated Care,"1,125.95"
22/10/2020,1249232,Vincentian Care Plus,,Bi-Borough Director of Integrated Care,"2,545.01"
22/10/2020,1249232,Vincentian Care Plus,,Bi-Borough Director of Integrated Care,"1,974.20"
22/10/2020,1249232,Vincentian Care Plus,,Bi-Borough Director of Integrated Care,581.44
22/10/2020,1249232,Vincentian Care Plus,,Bi-Borough Director of Integrated Care,"1,346.47"
16/11/2020,1249232,Vincentian Care Plus,,Bi-Borough Director of Integrated Care,649.29
16/11/2020,1249232,Vincentian Care Plus,,Bi-Borough Director of Integrated Care,501.67
16/11/2020,1249232,Vincentian Care Plus,,Bi-Borough Director of Integrated Care,"1,118.67"
16/11/2020,1249232,Vincentian Care Plus,,Bi-Borough Director of Integrated Care,"2,532.27"
16/11/2020,1249232,Vincentian Care Plus,,Bi-Borough Director of Integrated Care,"1,966.49"
16/11/2020,1249232,Vincentian Care Plus,,Bi-Borough Director of Integrated Care,570.84
16/11/2020,1249232,Vincentian Care Plus,,Bi-Borough Director of Integrated Care,"1,391.09"
16/11/2020,1249232,Vincentian Care Plus,,Bi-Borough Director of Integrated Care,955.47
16/11/2020,1249232,Vincentian Care Plus,,Bi-Borough Director of Integrated Care,975.27
16/11/2020,1249232,Vincentian Care Plus,,Bi-Borough Director of Integrated Care,"1,241.56"
16/11/2020,1249232,Vincentian Care Plus,,Bi-Borough Director of Integrated Care,"1,225.46"
16/11/2020,1249232,Vincentian Care Plus,,Bi-Borough Director of Integrated Care,"1,569.72"
16/11/2020,1249232,Vincentian Care Plus,,Bi-Borough Director of Integrated Care,809.43
16/12/2020,1249232,Vincentian Care Plus,,Bi-Borough Director of Integrated Care,"1,544.21"
21/12/2020,1249232,Vincentian Care Plus,,Bi-Borough Director of Integrated Care,"1,497.51"
21/12/2020,1249232,Vincentian Care Plus,,Bi-Borough Director of Integrated Care,"1,074.23"
21/12/2020,1249232,Vincentian Care Plus,,Bi-Borough Director of Integrated Care,"1,542.46"
21/12/2020,1249232,Vincentian Care Plus,,Bi-Borough Director of Integrated Care,654.12
21/12/2020,1249232,Vincentian Care Plus,,Bi-Borough Director of Integrated Care,599.61
21/12/2020,1249232,Vincentian Care Plus,,Bi-Borough Director of Integrated Care,517.85
21/12/2020,1249232,Vincentian Care Plus,,Bi-Borough Director of Integrated Care,"1,271.90"
21/12/2020,1249232,Vincentian Care Plus,,Bi-Borough Director of Integrated Care,"1,532.36"
21/12/2020,1249232,Vincentian Care Plus,,Bi-Borough Director of Integrated Care,"2,543.80"
21/12/2020,1249232,Vincentian Care Plus,,Bi-Borough Director of Integrated Care,"1,998.70"
21/12/2020,1249232,Vincentian Care Plus,,Bi-Borough Director of Integrated Care,799.46
21/12/2020,1249232,Vincentian Care Plus,,Bi-Borough Director of Integrated Care,"1,017.52"
21/12/2020,1249232,Vincentian Care Plus,,Bi-Borough Director of Integrated Care,"2,289.42"
11/11/2020,1249291,Westminster Society,,Bi-Borough Director of Integrated Care,"1,088.00"
11/11/2020,1249291,Westminster Society,,Bi-Borough Director of Integrated Care,"1,360.00"
14/10/2020,1243566,Yarrow Housing Ltd,,Bi-Borough Director of Integrated Care,"1,408.68"
11/11/2020,1243566,Yarrow Housing Ltd,,Bi-Borough Director of Integrated Care,"1,408.68"
09/12/2020,1243566,Yarrow Housing Ltd,,Bi-Borough Director of Integrated Care,"1,408.68"
14/10/2020,1243431,Abba Residential Home,,Bi-Borough Director of Integrated Care,"1,582.44"
14/10/2020,1243431,Abba Residential Home,,Bi-Borough Director of Integrated Care,"1,582.44"
14/10/2020,1243431,Abba Residential Home,,Bi-Borough Director of Integrated Care,"2,400.00"
14/10/2020,1243431,Abba Residential Home,,Bi-Borough Director of Integrated Care,"2,400.00"
14/10/2020,1243431,Abba Residential Home,,Bi-Borough Director of Integrated Care,"2,385.64"
11/11/2020,1243431,Abba Residential Home,,Bi-Borough Director of Integrated Care,"2,400.00"
11/11/2020,1243431,Abba Residential Home,,Bi-Borough Director of Integrated Care,"2,400.00"
11/11/2020,1243431,Abba Residential Home,,Bi-Borough Director of Integrated Care,"1,582.44"
11/11/2020,1243431,Abba Residential Home,,Bi-Borough Director of Integrated Care,"1,582.44"
11/11/2020,1243431,Abba Residential Home,,Bi-Borough Director of Integrated Care,"2,385.64"
09/12/2020,1243431,Abba Residential Home,,Bi-Borough Director of Integrated Care,"1,582.44"
09/12/2020,1243431,Abba Residential Home,,Bi-Borough Director of Integrated Care,"1,582.44"
09/12/2020,1243431,Abba Residential Home,,Bi-Borough Director of Integrated Care,"2,400.00"
09/12/2020,1243431,Abba Residential Home,,Bi-Borough Director of Integrated Care,"2,400.00"
09/12/2020,1243431,Abba Residential Home,,Bi-Borough Director of Integrated Care,"2,385.64"
14/10/2020,1243841,About Me Care & Support Ltd,,Bi-Borough Director of Integrated Care,"2,766.40"
14/10/2020,1243841,About Me Care & Support Ltd,,Bi-Borough Director of Integrated Care,"2,766.40"
11/11/2020,1243841,About Me Care & Support Ltd,,Bi-Borough Director of Integrated Care,"2,766.40"
11/11/2020,1243841,About Me Care & Support Ltd,,Bi-Borough Director of Integrated Care,"2,766.40"
09/12/2020,1243841,About Me Care & Support Ltd,,Bi-Borough Director of Integrated Care,"2,766.40"
09/12/2020,1243841,About Me Care & Support Ltd,,Bi-Borough Director of Integrated Care,"2,766.40"
14/10/2020,1243851,Accomplish Group Ltd,,Bi-Borough Director of Integrated Care,"3,730.00"
14/10/2020,1243851,Accomplish Group Ltd,,Bi-Borough Director of Integrated Care,"3,730.00"
11/11/2020,1243851,Accomplish Group Ltd,,Bi-Borough Director of Integrated Care,"3,730.00"
11/11/2020,1243851,Accomplish Group Ltd,,Bi-Borough Director of Integrated Care,"3,730.00"
09/12/2020,1243851,Accomplish Group Ltd,,Bi-Borough Director of Integrated Care,"3,730.00"
09/12/2020,1243851,Accomplish Group Ltd,,Bi-Borough Director of Integrated Care,"3,730.00"
14/10/2020,1245067,Andover Care Ltd T/A Andover,,Bi-Borough Director of Integrated Care,"6,503.04"
11/11/2020,1245067,Andover Care Ltd T/A Andover,,Bi-Borough Director of Integrated Care,"6,503.04"
09/12/2020,1245067,Andover Care Ltd T/A Andover,,Bi-Borough Director of Integrated Care,"6,503.04"
14/10/2020,1267747,Apex Care Homes Ltd,,Bi-Borough Director of Integrated Care,"1,710.00"
14/10/2020,1267747,Apex Care Homes Ltd,,Bi-Borough Director of Integrated Care,"1,710.00"
11/11/2020,1267747,Apex Care Homes Ltd,,Bi-Borough Director of Integrated Care,"1,710.00"
11/11/2020,1267747,Apex Care Homes Ltd,,Bi-Borough Director of Integrated Care,"1,710.00"
09/12/2020,1267747,Apex Care Homes Ltd,,Bi-Borough Director of Integrated Care,"1,710.00"
09/12/2020,1267747,Apex Care Homes Ltd,,Bi-Borough Director of Integrated Care,"1,710.00"
14/10/2020,1266508,Ashley Healthcare Ltd,,Bi-Borough Director of Integrated Care,"1,700.00"
14/10/2020,1266508,Ashley Healthcare Ltd,,Bi-Borough Director of Integrated Care,"1,700.00"
11/11/2020,1266508,Ashley Healthcare Ltd,,Bi-Borough Director of Integrated Care,"1,700.00"
11/11/2020,1266508,Ashley Healthcare Ltd,,Bi-Borough Director of Integrated Care,"1,700.00"
09/12/2020,1266508,Ashley Healthcare Ltd,,Bi-Borough Director of Integrated Care,"1,700.00"
09/12/2020,1266508,Ashley Healthcare Ltd,,Bi-Borough Director of Integrated Care,"1,700.00"
14/10/2020,1272521,Ashurst Lodge Healthcare Ltd,,Bi-Borough Director of Integrated Care,"1,869.00"
14/10/2020,1272521,Ashurst Lodge Healthcare Ltd,,Bi-Borough Director of Integrated Care,"1,869.00"
11/11/2020,1272521,Ashurst Lodge Healthcare Ltd,,Bi-Borough Director of Integrated Care,"2,492.00"
11/11/2020,1272521,Ashurst Lodge Healthcare Ltd,,Bi-Borough Director of Integrated Care,"2,492.00"
09/12/2020,1272521,Ashurst Lodge Healthcare Ltd,,Bi-Borough Director of Integrated Care,"2,492.00"
09/12/2020,1272521,Ashurst Lodge Healthcare Ltd,,Bi-Borough Director of Integrated Care,"2,492.00"
14/10/2020,1245072,Aster Healthcare Ltd,,Bi-Borough Director of Integrated Care,"3,287.68"
14/10/2020,1245072,Aster Healthcare Ltd,,Bi-Borough Director of Integrated Care,"3,400.00"
11/11/2020,1245072,Aster Healthcare Ltd,,Bi-Borough Director of Integrated Care,"3,287.68"
11/11/2020,1245072,Aster Healthcare Ltd,,Bi-Borough Director of Integrated Care,"3,400.00"
09/12/2020,1245072,Aster Healthcare Ltd,,Bi-Borough Director of Integrated Care,"3,287.68"
09/12/2020,1245072,Aster Healthcare Ltd,,Bi-Borough Director of Integrated Care,"3,400.00"
14/10/2020,1245074,Astra Homes Ltd,,Bi-Borough Director of Integrated Care,"1,750.00"
14/10/2020,1245074,Astra Homes Ltd,,Bi-Borough Director of Integrated Care,"1,750.00"
14/10/2020,1245074,Astra Homes Ltd,,Bi-Borough Director of Integrated Care,"1,600.00"
14/10/2020,1245074,Astra Homes Ltd,,Bi-Borough Director of Integrated Care,"1,600.00"
11/11/2020,1245074,Astra Homes Ltd,,Bi-Borough Director of Integrated Care,"1,750.00"
11/11/2020,1245074,Astra Homes Ltd,,Bi-Borough Director of Integrated Care,"1,750.00"
11/11/2020,1245074,Astra Homes Ltd,,Bi-Borough Director of Integrated Care,"1,600.00"
11/11/2020,1245074,Astra Homes Ltd,,Bi-Borough Director of Integrated Care,"1,600.00"
09/12/2020,1245074,Astra Homes Ltd,,Bi-Borough Director of Integrated Care,"1,600.00"
09/12/2020,1245074,Astra Homes Ltd,,Bi-Borough Director of Integrated Care,"1,600.00"
09/12/2020,1245074,Astra Homes Ltd,,Bi-Borough Director of Integrated Care,"1,750.00"
09/12/2020,1245074,Astra Homes Ltd,,Bi-Borough Director of Integrated Care,"1,750.00"
14/10/2020,1271022,BONZA CARE LTD,,Bi-Borough Director of Integrated Care,"1,335.72"
11/11/2020,1271022,BONZA CARE LTD,,Bi-Borough Director of Integrated Care,"1,703.57"
09/12/2020,1271022,BONZA CARE LTD,,Bi-Borough Director of Integrated Care,"1,500.00"
14/10/2020,1268910,BROWNLOW ENTERPRISES Ltd,,Bi-Borough Director of Integrated Care,"6,750.00"
14/10/2020,1268910,BROWNLOW ENTERPRISES Ltd,,Bi-Borough Director of Integrated Care,"1,800.00"
14/10/2020,1268910,BROWNLOW ENTERPRISES Ltd,,Bi-Borough Director of Integrated Care,"1,800.00"
11/11/2020,1268910,BROWNLOW ENTERPRISES Ltd,,Bi-Borough Director of Integrated Care,"3,000.00"
11/11/2020,1268910,BROWNLOW ENTERPRISES Ltd,,Bi-Borough Director of Integrated Care,"1,800.00"
11/11/2020,1268910,BROWNLOW ENTERPRISES Ltd,,Bi-Borough Director of Integrated Care,"1,800.00"
09/12/2020,1268910,BROWNLOW ENTERPRISES Ltd,,Bi-Borough Director of Integrated Care,"3,000.00"
09/12/2020,1268910,BROWNLOW ENTERPRISES Ltd,,Bi-Borough Director of Integrated Care,"1,800.00"
09/12/2020,1268910,BROWNLOW ENTERPRISES Ltd,,Bi-Borough Director of Integrated Care,"1,800.00"
14/10/2020,1245081,Barchester Healthcare Homes Ltd,,Bi-Borough Director of Integrated Care,"2,720.00"
14/10/2020,1245081,Barchester Healthcare Homes Ltd,,Bi-Borough Director of Integrated Care,"2,720.00"
11/11/2020,1245081,Barchester Healthcare Homes Ltd,,Bi-Borough Director of Integrated Care,"2,720.00"
11/11/2020,1245081,Barchester Healthcare Homes Ltd,,Bi-Borough Director of Integrated Care,"2,720.00"
09/12/2020,1245081,Barchester Healthcare Homes Ltd,,Bi-Borough Director of Integrated Care,"2,720.00"
09/12/2020,1245081,Barchester Healthcare Homes Ltd,,Bi-Borough Director of Integrated Care,"2,720.00"
14/10/2020,1245083,Bayswift Ltd T/A Chegworth,,Bi-Borough Director of Integrated Care,"1,803.04"
14/10/2020,1245083,Bayswift Ltd T/A Chegworth,,Bi-Borough Director of Integrated Care,"1,700.00"
11/11/2020,1245083,Bayswift Ltd T/A Chegworth,,Bi-Borough Director of Integrated Care,"1,803.04"
11/11/2020,1245083,Bayswift Ltd T/A Chegworth,,Bi-Borough Director of Integrated Care,"1,700.00"
09/12/2020,1245083,Bayswift Ltd T/A Chegworth,,Bi-Borough Director of Integrated Care,"1,700.00"
09/12/2020,1245083,Bayswift Ltd T/A Chegworth,,Bi-Borough Director of Integrated Care,"1,803.04"
14/10/2020,1268306,Beresford House,,Bi-Borough Director of Integrated Care,"1,700.00"
14/10/2020,1268306,Beresford House,,Bi-Borough Director of Integrated Care,"1,700.00"
11/11/2020,1268306,Beresford House,,Bi-Borough Director of Integrated Care,"1,700.00"
11/11/2020,1268306,Beresford House,,Bi-Borough Director of Integrated Care,"1,700.00"
09/12/2020,1268306,Beresford House,,Bi-Borough Director of Integrated Care,"1,700.00"
09/12/2020,1268306,Beresford House,,Bi-Borough Director of Integrated Care,"1,700.00"
14/10/2020,1243453,Bupa Care Homes(ANS ) Ltd - T/a,,Bi-Borough Director of Integrated Care,"2,563.80"
11/11/2020,1243453,Bupa Care Homes(ANS ) Ltd - T/a,,Bi-Borough Director of Integrated Care,"2,563.80"
09/12/2020,1243453,Bupa Care Homes(ANS ) Ltd - T/a,,Bi-Borough Director of Integrated Care,"2,563.80"
14/10/2020,1243455,Bupa Care Homes(BNH) Ltd - T/a,,Bi-Borough Director of Integrated Care,"4,419.16"
11/11/2020,1243455,Bupa Care Homes(BNH) Ltd - T/a,,Bi-Borough Director of Integrated Care,"4,419.16"
09/12/2020,1243455,Bupa Care Homes(BNH) Ltd - T/a,,Bi-Borough Director of Integrated Care,"4,419.16"
14/10/2020,1266973,C Gopaul & LA Gopaul T/A,,Bi-Borough Director of Integrated Care,"2,473.44"
14/10/2020,1266973,C Gopaul & LA Gopaul T/A,,Bi-Borough Director of Integrated Care,"2,400.00"
11/11/2020,1266973,C Gopaul & LA Gopaul T/A,,Bi-Borough Director of Integrated Care,"2,400.00"
11/11/2020,1266973,C Gopaul & LA Gopaul T/A,,Bi-Borough Director of Integrated Care,"2,473.44"
09/12/2020,1266973,C Gopaul & LA Gopaul T/A,,Bi-Borough Director of Integrated Care,"2,400.00"
09/12/2020,1266973,C Gopaul & LA Gopaul T/A,,Bi-Borough Director of Integrated Care,"2,473.44"
14/10/2020,1259100,Care Assist Limited,,Bi-Borough Director of Integrated Care,"2,102.00"
14/10/2020,1259100,Care Assist Limited,,Bi-Borough Director of Integrated Care,"2,102.00"
11/11/2020,1259100,Care Assist Limited,,Bi-Borough Director of Integrated Care,"2,102.00"
11/11/2020,1259100,Care Assist Limited,,Bi-Borough Director of Integrated Care,"2,102.00"
09/12/2020,1259100,Care Assist Limited,,Bi-Borough Director of Integrated Care,"2,102.00"
09/12/2020,1259100,Care Assist Limited,,Bi-Borough Director of Integrated Care,"2,102.00"
14/10/2020,1268990,Care UK Partnerships Ltd T/a,,Bi-Borough Director of Integrated Care,"1,340.00"
14/10/2020,1268990,Care UK Partnerships Ltd T/a,,Bi-Borough Director of Integrated Care,"1,340.00"
14/10/2020,1268990,Care UK Partnerships Ltd T/a,,Bi-Borough Director of Integrated Care,"2,740.00"
